Workbook

Sheet Ändring23_3 (hidden)
B3: Specifikation av ändrade ramar för utgiftsområden och ändrade och nya anslag 2023
B5: Tusental kronor
B6: Utgiftsområde | C6: Anslagsnummer | E6: Beslutad ram/anvisat anslag | F6: Förändring av ram/anslag | G6: Ny ram/ny anslagsnivå
B7: 6 | D7: Försvar och samhällets krisberedskap | E7: 93952930 | F7: 1687100 | G7: 95640030
C8: 1:1 | D8: Förbandsverksamhet och beredskap | E8: 51453048 | F8: 349500 | G8: 51802548
C9: 1:3 | D9: Anskaffning av materiel och anläggningar | E9: 27949405 | F9: 1337600 | G9: 29287005
B10: 21 | D10: Energi | E10: 4944849 | F10: 150000 | G10: 5094849
C11: 1:12 | D11: Gasprisstöd | E11: 0 | F11: 150000 | G11: 150000
B12: 24 | D12: Näringsliv | E12: 11407773 | F12: -50000 | G12: 11357773
C13: 1:2 | D13: Verket för innovationssystem: Forskning och utveckling | E13: 3439755 | F13: -50000 | G13: 3389755
D14: Summa anslagsförändring på ändringsbudget | F14: 1787100

Sheet Ändring23_2 (hidden)
B3: Specifikation av ändrade ramar för utgiftsområden och ändrade anslag 2023
B5: Tusental kronor
B6: Utgiftsområde | C6: Anslagsnummer | E6: Beslutad ram/anvisat anslag | F6: Förändring av ram/anslag | G6: Ny ram/ny anslagsnivå
B7: 6 | D7: Försvar och samhällets krisberedskap | E7: 95640030 | F7: 729500 | G7: 96369530
C8: 1:1 | D8: Förbandsverksamhet och beredskap | E8: 51802548 | F8: 524500 | G8: 52327048
C9: 1:3 | D9: Anskaffning av materiel och anläggningar | E9: 29287005 | F9: 205000 | G9: 29492005
D10: Summa anslagsförändring på ändringsbudget | F10: 729500

Sheet Report1
D9: Sum of MedborgarKronorMånad | G9: År
D10: mainCategoryAdjusted | E10: Category | F10: SubCategory | G10: 2026
D11: Försvar och samhällets krisberedskap | G11: 1771.053502
D12: Allmänna bidrag till kommuner | G12: 1422.394429
D13: Hälsovård, sjukvård och social omsorg | G13: 1005.128277
D14: Ekonomisk trygghet vid sjukdom och funktionsnedsättning | G14: 960.1629282
D15: Utbildning och universitetsforskning | G15: 841.6519353
D16: Kommunikationer | G16: 839.826563
D17: Ekonomisk trygghet för familjer och barn | G17: 820.3355639
D18: Rättsväsendet | G18: 745.6884036
D19: Arbetsmarknad och arbetsliv | G19: 717.5013382
D20: Ekonomisk trygghet vid ålderdom | G20: 466.8958559
D21: Avgiften till Europeiska unionen | G21: 426.5833077
D22: Internationellt bistånd | G22: 343.5731239
D23: Studiestöd | G23: 281.6684906
D24: Statsskuldsräntor m.m. | G24: 212.1525828
D25: Areella näringar, landsbygd och livsmedel | G25: 177.6122578
D26: Samhällsekonomi och finansförvaltning | G26: 173.4569707
D27: Rikets styrelse | G27: 170.1168851
D28: Klimat, miljö och natur | G28: 154.4624703
D29: Kultur, medier, trossamfund och fritid | G29: 136.4535454
D30: Skatt, tull och exekution | G30: 122.0873607
D31: Migration | G31: 106.4443189
D32: Näringsliv | G32: 70.48179112
D33: Energi | G33: 62.49080915
D34: Integration och jämställdhet | G34: 46.1704976
D35: Regional utveckling | G35: 38.36270297
D36: Internationell samverkan | G36: 20.04947845
D37: Samhällsplanering, bostadsförsörjning och byggande samt konsumentpolitik | G37: 13.97125564
D38: Grand Total | G38: 12146.77665

Sheet UtvecklingEnskild
F9: mainCategoryAdjusted | G9: År | H9: Sum of MedborgarKronorMånad
F10: Försvar och samhällets krisberedskap | G10: 2022 | H10: 609.8364991
G11: 2023 | H11: 743.9782717
G12: 2024 | H12: 995.727044
G13: 2025 | H13: 1335.47973
G14: 2026 | H14: 1771.053502
F15: Grand Total | H15: 5456.075047

Sheet DetaljerEnskild
F9: mainCategoryAdjusted | G9: Category | H9: SubCategory | I9: Sum of MedborgarKronorMånad
F10: Försvar och samhällets krisberedskap | G10: Försvar | H10: Förbandsverksamhet och beredskap | I10: 606.5592763
H11: Anskaffning av materiel och anläggningar | I11: 560.3194548
H12: Stöd till Ukraina | I12: 312.6580901
H13: Försvarsmaktens insatser internationellt | I13: 120.4694721
H14: Försvarets materielverk | I14: 33.44175977
H15: Försvarets radioanstalt | I15: 26.95926553
H16: Forskning och teknikutveckling | I16: 11.5217556
H17: Totalförsvarets forskningsinstitut | I17: 6.267808918
H18: Totalförsvarets plikt- och prövningsverk | I18: 4.108543744
H19: Officersutbildning m.m. | I19: 3.006397413
H20: Myndigheten för Totalförsvarsanalys | I20: 0.738424032
H21: Statens inspektion för försvarsunderrättelseverksamheten | I21: 0.1242053447
H22: Försvarsunderrättelsedomstolen | I22: 0.1179088948
H23: Nämnder m.m. | I23: 0.07269251403
G24: Samhällets krisberedskap | H24: Krisberedskap | I24: 31.80107021
H25: Kustbevakningen | I25: 15.99044841
H26: Myndigheten för civilt försvar | I26: 15.87845818
H27: Rakel Generation 2 | I27: 6.291640981
H28: Förebyggande åtgärder mot jordskred och andra naturolyckor | I28: 3.989194536
H29: Ersättning till SOS Alarm Sverige AB för alarmeringstjänst enligt avtal | I29: 3.578516463
H30: Myndigheten för psykologiskt försvar | I30: 1.257668643
H31: Statens haverikommission | I31: 0.528437428
H32: Ersättning för räddningstjänst m.m. | I32: 0.2170701101
G33: Strålsäkerhet | H33: Strålsäkerhetsmyndigheten | I33: 5.155942443
F34: Grand Total | I34: 1771.053502

Sheet Inkomster2023 (hidden)
A1: Specifikation av budgetens inkomster för 2023
A3: Inkomsttyp
A4: Skatt på arbete | D4: 1450326094
A5: 1100 | B5: Direkta skatter på arbete | D5: 738820481
A6: 1110 | B6: Inkomstskatter | D6: 935032518
B7: 1111 | C7: Statlig inkomstskatt | D7: 53723921
B8: 1115 | C8: Kommunal inkomstskatt | D8: 881308597
A9: 1120 | B9: Allmän pensionsavgift | D9: 151593946
B10: 1121 | C10: Allmän pensionsavgift | D10: 151593946
A11: 1130 | B11: Artistskatt | D11: 0
B12: 1131 | C12: Artistskatt | D12: 0
A13: 1140-1160 Skattereduktioner | D13: -347805983
B14: 1141 | C14: Allmän pensionsavgift | D14: -151560872
B15: 1143 | C15: Arbetslöshetskassa | D15: -1636763
B16: 1144 | C16: Fastighetsavgift | D16: -437114
B17: 1151 | C17: Sjöinkomst | D17: -42781
B18: 1153 | C18: Jobbskatteavdrag | D18: -157321823
B19: 1154 | C19: Husavdrag | D19: -20208456
B20: 1155 | C20: Gåvor till ideell verksamhet | D20: -373267
B21: 1156 | C21: Övriga skattereduktioner | D21: 0
B22: 1157 | C22: Skattereduktion för boende i vissa glest befolkade områden | D22: -1349817
B23: 1158 | C23: Skattereduktion sjuk- och aktivitetsersättning | D23: -3926910
B24: 1159 | C24: Skattereduktion för förnybar el | D24: -179182
B25: 1161 | C25: Skattereduktion för installation av grön teknik | D25: -2140000
B26: 1162 | C26: Skattereduktion för förvärvsinkomster | D26: -8628998
A27: 1200 | B27: Indirekta skatter på arbete | D27: 711505613
A28: 1210 | B28: Arbetsgivaravgifter | D28: 697492373
B29: 1211 | C29: Sjukförsäkringsavgift | D29: 77218080
B30: 1212 | C30: Föräldraförsäkringsavgift | D30: 56554087
B31: 1213 | C31: Arbetsskadeavgift | D31: 4350314
B32: 1214 | C32: Ålderspensionsavgift | D32: 230093936
B33: 1215 | C33: Efterlevandepensionsavgift | D33: 13050943
B34: 1216 | C34: Arbetsmarknadsavgift | D34: 56781312
B35: 1217 | C35: Allmän löneavgift | D35: 252753266
B36: 1218 | C36: Ofördelade avgifter | D36: 0
B37: 1219 | C37: Nedsatta avgifter | D37: 6690435
A38: 1240 | B38: Egenavgifter | D38: 12664870
B39: 1241 | C39: Sjukförsäkringsavgift | D39: 138958
B40: 1242 | C40: Föräldraförsäkringsavgift | D40: 581761
B41: 1243 | C41: Arbetsskadeavgift | D41: 55824
B42: 1244 | C42: Ålderspensionsavgift, netto | D42: 4997167
B43: 1245 | C43: Efterlevandepensionsavgift | D43: 173685
B44: 1246 | C44: Arbetsmarknadsavgift | D44: 3027
B45: 1247 | C45: Allmän löneavgift | D45: 4866651
B46: 1248 | C46: Ofördelade avgifter | D46: 0
B47: 1249 | C47: Nedsatta avgifter | D47: 1847797
A48: 1260 | B48: Avgifter till premiepensionssystemet | D48: -48492443
B49: 1261 | C49: Avgifter till premiepensionssystemet | D49: -48492443
A50: 1270 | B50: Särskild löneskatt | D50: 57769404
B51: 1271 | C51: Pensionskostnader, företag | D51: 51816170
B52: 1272 | C52: Pensionskostnader, staten | D52: 4836844
B53: 1273 | C53: Förvärvsinkomster | D53: 381902
B54: 1274 | C54: Egenföretagare | D54: 734488
B55: 1275 | C55: Övrigt | D55: 0
A56: 1280 | B56: Nedsättningar | D56: -8538232
B57: 1282 | C57: Arbetsgivaravgifter | D57: -6690435
B58: 1283 | C58: Egenavgifter, generell nedsättning | D58: -1769827
B59: 1284 | C59: Egenavgifter, regional nedsättning | D59: -77970
A60: 1290 | B60: Tjänstegruppliv | D60: 609641
B61: 1291 | C61: Tjänstegruppliv | D61: 609641
A62: 1300 | B62: Skatt på kapital | D62: 345261868
A63: 1310 | B63: Skatt på kapital, hushåll | D63: 77585859
B64: 1311 | C64: Skatt på kapital | D64: 115156465
B65: 1312 | C65: Skattereduktion kapital | D65: -37616234
B66: 1313 | C66: Expansionsmedelsskatt | D66: 45628
A67: 1320 | B67: Skatt på företagsvinster | D67: 178077471
B68: 1321 | C68: Skatt på företagsvinster | D68: 179481431
B69: 1322 | C69: Skattereduktioner | D69: -1403960
A70: 1330 | B70: Kupongskatt | D70: 10146640
B71: 1331 | C71: Kupongskatt | D71: 10146640
A72: 1340 | B72: Avkastningsskatt | D72: 19323373
B73: 1341 | C73: Avkastningsskatt, hushåll | D73: 200018
B74: 1342 | C74: Avkastningsskatt, företag | D74: 19018440
B75: 1343 | C75: Avkastningsskatt på individuellt pensionssparande | D75: 104915
A76: 1350 | B76: Fastighetsskatt | D76: 37959490
B77: 1351 | C77: Fastighetsskatt, hushåll | D77: 778209
B78: 1352 | C78: Fastighetsskatt, företag | D78: 15085272
B79: 1353 | C79: Kommunal fastighetsavgift, hushåll | D79: 17500834
B80: 1354 | C80: Kommunal fastighetsavgift, företag | D80: 4595175
A81: 1360 | B81: Stämpelskatt | D81: 14612035
B82: 1361 | C82: Stämpelskatt | D82: 14612035
A83: 1390 | B83: Riskskatt för kreditinstitut | D83: 7557000
B84: 1391 | C84: Riskskatt för kreditinstitut | D84: 7557000
A85: 1400 | B85: Skatt på konsumtion och insatsvaror | D85: 735754853.8
A86: 1410 | B86: Mervärdesskatt | D86: 594498829
B87: 1411 | C87: Mervärdesskatt | D87: 594498829
A88: 1420 | B88: Skatt på alkohol och tobak | D88: 30364205.1
B89: 1421 | C89: Skatt på tobak | D89: 12195436
B90: 1422 | C90: Skatt på etylalkohol | D90: 5705739.6
B91: 1423 | C91: Skatt på vin | D91: 6913186
B92: 1424 | C92: Skatt på mellanklassprodukter | D92: 142408.5
B93: 1425 | C93: Skatt på öl | D93: 5211194
B94: 1426 | C94: Privatinförsel av alkohol och tobak | D94: 689
B95: 1427 | C95: Skatt på vissa nikotinhaltiga produkter | D95: 195552
A96: 1430-1460 Skatt på energi och miljö | D96: 77766643.5
A97: 1430 | B97: Energiskatt | D97: 47252516.5
B98: 1431 | C98: Skatt på elektrisk kraft | D98: 28295276
B99: 1432 | C99: Energiskatt bensin | D99: 8647915
B100: 1433 | C100: Energiskatt oljeprodukter | D100: 9781912.5
B101: 1434 | C101: Energiskatt övrigt | D101: 527413
A102: 1440 | B102: Koldioxidskatt | D102: 22468217
B103: 1441 | C103: Koldioxidskatt bensin | D103: 7566113
B104: 1442 | C104: Koldioxidskatt oljeprodukter | D104: 14727916
B105: 1443 | C105: Koldioxidskatt övrigt | D105: 174188
A106: 1450-1460 Övriga skatter på energi och miljö | D106: 8045910
B107: 1451 | C107: Svavelskatt | D107: 5755
B108: 1452 | C108: Skatt på råtallolja | D108: 0
B109: 1453 | C109: Särskild skatt mot försurning | D109: 63231
B110: 1454 | C110: Skatt på bekämpningsmedel | D110: 150703
B111: 1456 | C111: Avfallsskatt | D111: 307719
B112: 1457 | C112: Avgifter till Kemikalieinspektionen | D112: 52649
B113: 1458 | C113: Övriga skatter | D113: 131586
B114: 1459 | C114: Intäkter från EU:s handel med utsläppsrätter | D114: 3451041
B115: 1461 | C115: Kemikalieskatt | D115: 1947193
B116: 1462 | C116: Skatt på flygresor | D116: 1114597
B117: 1463 | C117: Skatt på avfallsförbränning | D117: 7534
B118: 1464 | C118: Skatt på plastbärkassar | D118: 595902
B119: 1465 | C119: Intäkter från handel med Elcertifikat | D119: 218000
A120: 1470 | B120: Skatt på vägtrafik | D120: 25226694.2
B121: 1471 | C121: Fordonsskatt | D121: 17635178.6
B122: 1472 | C122: Vägavgifter | D122: 1479708
B123: 1473 | C123: Trängselskatt | D123: 2819973
B124: 1474 | C124: Skatt på trafikförsäkringspremier | D124: 3291834.6
A125: 1480 | B125: Övriga skatter | D125: 7898482
B126: 1481 | C126: Systembolaget AB:s överskott | D126: 390864
B127: 1482 | C127: Inlevererat överskott från Svenska Spel AB | D127: 2621076
B128: 1483 | C128: Skatt på spel | D128: 4697542
B129: 1485 | C129: Spelavgifter | D129: 79000
B130: 1486 | C130: Skatt på annonser och reklam | D130: 0
B131: 1491 | C131: Avgifter för telekommunikation | D131: 110000
A132: 1500 | B132: Skatt på import | D132: 9434324
B133: 1511 | C133: Tullmedel | D133: 9434324
B134: 1512 | C134: Sockeravgifter | D134: 0
A135: 1600 | B135: Restförda och övriga skatter | D135: 13366208.5
A136: 1610 | B136: Restförda skatter | D136: -8139665
B137: 1611 | C137: Restförda skatter, hushåll | D137: -1615892
B138: 1612 | C138: Restförda skatter, företag | D138: -6523773
A139: 1620 | B139: Övriga skatter, hushåll | D139: 5929799
B140: 1621 | C140: Omprövningar aktuellt beskattningsår | D140: -345005
B141: 1622 | C141: Omprövningar äldre beskattningsår | D141: 1613040
B142: 1623 | C142: Anstånd | D142: 500000
B143: 1624 | C143: Övriga skatter | D143: 3828437
B144: 1625 | C144: Skattetillägg | D144: 161824
B145: 1626 | C145: Förseningsavgifter | D145: 171503
A146: 1630 | B146: Övriga skatter företag | D146: -453960.5
B147: 1631 | C147: Omprövningar aktuellt beskattningsår | D147: -1750633
B148: 1632 | C148: Omprövningar äldre beskattningsår | D148: 0
B149: 1633 | C149: Anstånd | D149: -500000
B150: 1634 | C150: Övriga skatter | D150: -10000
B151: 1635 | C151: Skattetillägg | D151: 1338175.5
B152: 1636 | C152: Förseningsavgifter | D152: 468497
A153: 1640 | B153: Intäkter som förs till fonder | D153: 6208764
B154: 1641 | C154: Insättningsgarantiavgifter | D154: 1827545
B155: 1644 | C155: Batteriavgifter | D155: 1904
B156: 1645 | C156: Kväveoxidavgifter | D156: 528315
B157: 1647 | C157: Resolutionsavgift | D157: 3851000
A158: 1650 | B158: Avgifter till public service | D158: 9821271
B159: 1651 | C159: Avgifter till public service | D159: 9821271
A160: Totala skatteintäkter | D160: 2554143348
A161: 1700 | B161: Avgående poster, skatter till EU | D161: -9434324
A162: 1710 | B162: EU-skatter | D162: -9434324
B163: 1711 | C163: EU-skatter | D163: -9434324
A164: Offentliga sektorns skatteintäkter | D164: 2544709024
A165: 1800 | B165: Avgående poster, skatter till andra sektorer | D165: -1216502231
A166: 1810 | B166: Skatter till andra sektorer | D166: -1216502231
B167: 1811 | C167: Kommunala skatter | D167: -902952940
B168: 1812 | C168: Avgifter till AP-fonder | D168: -313549291
A169: Statens skatteintäkter | D169: 1328206793
A170: 1900 | B170: Periodiseringar | D170: -15533163
A171: 1910 | B171: Uppbördsförskjutningar | D171: 17135595
B172: 1911 | C172: Uppbördsförskjutningar | D172: 17135595
A173: 1920 | B173: Betalningsförskjutningar | D173: -43268758
B174: 1921 | C174: Kommuner och regioner | D174: -26943216
B175: 1922 | C175: Ålderspensionssystemet | D175: -880733
B176: 1923 | C176: Företag och hushåll | D176: -14796992
B177: 1924 | C177: Kyrkosamfund | D177: -669006
B178: 1925 | C178: EU | D178: 21189
A179: 1930 | B179: Anstånd | D179: 10600000
B180: 1931 | C180: Anstånd | D180: 10600000
A181: 1000 | B181: Statens skatteinkomster | D181: 1312673630
A182: 2100 | B182: Rörelseöverskott | D182: 859706
A183: 2110 | B183: Affärsverkens inlevererade överskott | D183: 382000
B184: 2114 | C184: Luftfartsverkets inlevererade överskott | D184: 0
B185: 2116 | C185: Affärsverket svenska kraftnäts inlevererade utdelning och inleverans av motsvarighet till statlig skatt | D185: 382000
B186: 2118 | C186: Sjöfartsverkets inlevererade överskott | D186: 0
A187: 2120 | B187: Övriga myndigheters inlevererade överskott | D187: 477706
B188: 2124 | C188: Inlevererat överskott av Riksgäldskontorets garantiverksamhet | D188: 105000
B189: 2126 | C189: Inlevererat överskott av statsstödd exportkredit | D189: 0
B190: 2127 | C190: Inlevererat överskott av övriga myndigheter | D190: 372706
A191: 2130 | B191: Riksbankens inlevererade överskott | D191: 0
B192: 2131 | C192: Riksbankens inlevererade överskott | D192: 0
A193: 2200 | B193: Överskott av statens fastighetsförvaltning | D193: 268000
A194: 2210 | B194: Överskott av fastighetsförvaltning | D194: 268000
B195: 2215 | C195: Inlevererat överskott av statens fastighetsförvaltning | D195: 268000
A196: 2300 | B196: Ränteinkomster | D196: 2056940
A197: 2320 | B197: Räntor på näringslån | D197: 0
B198: 2314 | C198: Ränteinkomster på lån till fiskerinäringen | D198: 0
B199: 2322 | C199: Räntor på övriga näringslån | D199: 0
B200: 2323 | C200: Räntor på övriga näringslån | D200: 0
B201: 2324 | C201: Ränteinkomster på lokaliseringslån | D201: 0
... 118 more rows

Sheet Ändring2022 (hidden)
C4: Ändrade ramar för utgiftsområden och ändrade samt nya anslag 2022
C5: Tusental kronor
C6: Utgifts-område | D6: Anslag | F6: Beslutad ram/anvisat anslag | G6: Förändring av ram/anslag | H6: Ny ram/ny anslagsnivå
C9: 4 | E9: Rättsväsendet | F9: 62998986 | G9: 50000 | H9: 63048986
D10: 1:3 | E10: Åklagarmyndigheten | F10: 2023249 | G10: 50000 | H10: 2073249
C11: 5 | E11: Internationell samverkan | F11: 3402817 | G11: 38032 | H11: 3440849
D12: 1:1 | E12: Avgifter till internationella organisationer | F12: 1623554 | G12: 34032 | H12: 1657586
D13: 1:5 | E13: Inspektionen för strategiska produkter | F13: 52040 | G13: 4000 | H13: 56040
C14: 6 | E14: Försvar och samhällets krisberedskap | F14: 81041599 | G14: 10000 | H14: 81051599
D15: 2:3 | E15: Ersättning för räddningstjänst m.m. | F15: 27580 | G15: 10000 | H15: 37580
C16: 7 | E16: Internationellt bistånd | F16: 51939762 | G16: -4851990 | H16: 47087772
D17: 1:1 | E17: Biståndsverksamhet | F17: 49998924 | G17: -4851990 | H17: 45146934
C18: 9 | E18: Hälsovård, sjukvård och social omsorg | F18: 121194613 | G18: 220000 | H18: 121414613
D19: 1:6 | E19: Bidrag till folkhälsa och sjukvård | F19: 33153886 | G19: 220000 | H19: 33373886
C20: 10 | E20: Ekonomisk trygghet vid sjukdom och funktionsnedsättning | F20: 112005457 | G20: 4530000 | H20: 116535457
D21: 1:1 | E21: Sjukpenning och rehabilitering m.m. | F21: 42605070 | G21: 4500000 | H21: 47105070
D22: 2:1 | E22: Försäkringskassan | F22: 9283366 | G22: 30000 | H22: 9313366
C23: 12 | E23: Ekonomisk trygghet för familjer och barn | F23: 101499770 | G23: 769641 | H23: 102269411
D24: 1:2 | E24: Föräldraförsäkring | F24: 46171247 | G24: 769641 | H24: 46940888
C25: 19 | E25: Regional utveckling | F25: 4741801 | G25: 0 | H25: 4741801
D26: 1:1 | E26: Regionala utvecklingsåtgärder | F26: 2060937 | G26: -77000 | H26: 1983937
D27: 1:2 | E27: Transportbidrag | F27: 430864 | G27: 77000 | H27: 507864
C28: 22 | E28: Kommunikationer | F28: 77973052 | G28: 470500 | H28: 78443552
D29: 1:1 | E29: Utveckling av statens transportinfrastruktur | F29: 31959785 | G29: 27000 | H29: 31986785
D30: 1:2 | E30: Vidmakthållande av statens transportinfrastruktur | F30: 31171263 | G30: -27000 | H30: 31144263
D31: 1:6 | E31: Ersättning avseende icke statliga flygplatser | F31: 255313 | G31: 2500 | H31: 257813
D32: 1:7 | E32: Trafikavtal | F32: 1038000 | G32: 200000 | H32: 1238000
D33: 1:10 | E33: Från EU-budgeten finansierade stöd till Transeuropeiska nätverk | F33: 690000 | G33: 260000 | H33: 950000
D34: 1:21 | E34: Obemannad luftfart | F34: 0 | G34: 8000 | H34: 8000
C35: 23 | E35: Areella näringar, landsbygd och livsmedel | F35: 23875754 | G35: 563124 | H35: 24438878
D36: 1:10 | E36: Gårdsstöd m.m. | F36: 6982048 | G36: 563124 | H36: 7545172
C37: 24 | E37: Näringsliv | F37: 16331901 | G37: 8000 | H37: 16339901
D38: 1:16 | E38: Omstrukturering och genomlysning av statligt ägda företag | F38: 27850 | G38: 8000 | H38: 35850
C39: 25 | E39: Allmänna bidrag till kommuner | F39: 156923194 | G39: 174732 | H39: 157097926
D40: 1:2 | E40: Utjämningsbidrag för LSS-kostnader | F40: 4718355 | G40: 174732 | H40: 4893087
C41: 26 | E41: Statsskuldsräntor m.m. | F41: 12155200 | G41: 10500000 | H41: 22655200
D42: 1:1 | E42: Räntor på statsskulden | F42: 12000000 | G42: 10500000 | H42: 22500000
E43: Summa anslagsförändring på ändringsbudget | G43: 12482039

Sheet BudgetData
F3: =SUBTOTAL(9,F11:F596) -> 3014395353 | V3: =10.42*1000 -> 10420
F4: 1251870933
G9: =IF(B9="Utgift",E9,D9&" "&E9) ->  | H9: =IF(B9="Utgift",IF(D9="",H8,D9),IF(B9="Inkomst",IF(C9="",H8,C9),"")) ->  | I9: =IF(B9="Utgift",IF(D9<>"","", IF(IFERROR(LEFT(E10,FIND(" ",E10)-1)*1,"")=1, IFERROR(LEFT(E9,FIND(" ",E9)-1)*1,""),"")),IF(C9="","",C9)) ->  | J9: =IF(D9<>"","",IF(I9="",IFERROR(LEFT(E9,FIND(" ",E9)-1)*1,""),"")) ->  | K9: =IFERROR(LEFT(G9,FIND(" ",G9)-1)*1,"") ->  | L9: =IF(B9="Utgift",IF(OR(LEFT(E9,5)="Summa",K10=1),"Sum",""),IF(B9="Inkomst",IF(C9="","","Sum"))) -> FALSE | M9: =IF(D9<>"",TRUE,FALSE) -> FALSE | N9: =IF(M9=TRUE,FALSE, IF(COUNTIFS($R9:R$10,R9,$H9:H$10,H9,$P9:P$10,P9)=1,TRUE, IF(COUNTIFS(H:H,H9,I:I,">0",P:P,P9)=0,TRUE,FALSE))) -> TRUE | O9: =+IF(J9="",FALSE,TRUE) -> FALSE | P9: =IF(B9="Utgift",+SUBSTITUTE(A9,"Utgifter","")*1,SUBSTITUTE(A9,"Inkomst","")*1) ->  | Q9: =IF(B9="Utgift",TRIM(IF(D9="",Q8,SUBSTITUTE(E9,D9&" ",""))),IF(C9="",Q10,IF(C9=ROUND(C9/1000,0)*1000,D9,Q10))) -> MainCategory | R9: =IF(B9="Utgift",TRIM(IF(D9="",IF(L9="Sum",SUBSTITUTE(G9,I9&" ",""),IF(R8="",Q9,R8)),"")),IF(L9="Sum",D9,R8)) -> 0 | S9: =+IF(K9="","",IF(L9="Sum","", IF(RIGHT(IF(MID(E9,2,1)=" ",RIGHT(E9,LEN(E9)-2),IF(MID(E9,3,1)=" ",RIGHT(E9,LEN(E9)-3),E9)),1)=" ", LEFT(IF(MID(E9,2,1)=" ",RIGHT(E9,LEN(E9)-2),IF(MID(E9,3,1)=" ",RIGHT(E9,LEN(E9)-3),E9)), LEN(IF(MID(E9,2,1)=" ",RIGHT(E9,LEN(E9)-2),IF(MID(E9,3,1)=" ",RIGHT(E9,LEN(E9)-3),E9)))-1), IF(MID(E9,2,1)=" ",RIGHT(E9,LEN(E9)-2),IF(MID(E9,3,1)=" ",RIGHT(E9,LEN(E9)-3),E9))) )) ->  | V9: =F9/(U9/1000) ->  | W9: =V9/12 -> 
A10: Source | B10: InkomstUtgift | C10: Nr1 | D10: Nr | E10: Text | F10: TusenTalSEK | G10: CalcText | H10: MainCategoryNR | I10: CategoryNR | J10: SubCategoryNR | K10: CalcNr | L10: CalcIsSum | M10: bolMain | N10: bolCategory | O10: bolSubCategory | P10: År | Q10: MainCategory | R10: Category | S10: SubCategory | T10: mainCategoryAdjusted | U10: BefolkningÅr | V10: Medborgarkronor | W10: MedborgarKronorMånad
A11: Utgifter2022 | B11: Utgift | D11: 1 | E11: 1 Rikets styrelse | F11: 17268338 | G11: 1 Rikets styrelse | H11: =IF(B11="Utgift",IF(D11="",H10,D11),IF(B11="Inkomst",IF(C11="",H10,C11),"")) -> 1 | I11: =IF(B11="Utgift",IF(D11<>"","", IF(IFERROR(LEFT(E12,FIND(" ",E12)-1)*1,"")=1, IFERROR(LEFT(E11,FIND(" ",E11)-1)*1,""),"")),IF(C11="","",C11)) ->  | J11: =IF(D11<>"","",IF(I11="",IFERROR(LEFT(E11,FIND(" ",E11)-1)*1,""),"")) ->  | K11: =IFERROR(LEFT(G11,FIND(" ",G11)-1)*1,"") -> 1 | L11: =IF(B11="Utgift",IF(OR(LEFT(E11,5)="Summa",K12=1),"Sum",""),IF(B11="Inkomst",IF(C11="","","Sum"))) -> Sum | M11: =IF(D11<>"",TRUE,FALSE) -> TRUE | N11: =IF(M11=TRUE,FALSE, IF(COUNTIFS($R$10:R11,R11,$H$10:H11,H11,$P$10:P11,P11)=1,TRUE, IF(COUNTIFS(H:H,H11,I:I,">0",P:P,P11)=0,TRUE,FALSE))) -> FALSE | O11: =+IF(J11="",FALSE,TRUE) -> FALSE | P11: =IF(B11="Utgift",+SUBSTITUTE(A11,"Utgifter","")*1,SUBSTITUTE(A11,"Inkomst","")*1) -> 2022 | Q11: =IF(B11="Utgift",TRIM(IF(D11="",Q10,SUBSTITUTE(E11,D11&" ",""))),IF(C11="",Q12,IF(C11=ROUND(C11/1000,0)*1000,D11,Q12))) -> Rikets styrelse | R11: =IF(B11="Utgift",TRIM(IF(D11="",IF(L11="Sum",SUBSTITUTE(G11,I11&" ",""),IF(R10="",Q11,R10)),"")),IF(L11="Sum",D11,R10)) ->  | S11: =+IF(K11="","",IF(L11="Sum","", IF(RIGHT(IF(MID(E11,2,1)=" ",RIGHT(E11,LEN(E11)-2),IF(MID(E11,3,1)=" ",RIGHT(E11,LEN(E11)-3),E11)),1)=" ", LEFT(IF(MID(E11,2,1)=" ",RIGHT(E11,LEN(E11)-2),IF(MID(E11,3,1)=" ",RIGHT(E11,LEN(E11)-3),E11)), LEN(IF(MID(E11,2,1)=" ",RIGHT(E11,LEN(E11)-2),IF(MID(E11,3,1)=" ",RIGHT(E11,LEN(E11)-3),E11)))-1), IF(MID(E11,2,1)=" ",RIGHT(E11,LEN(E11)-2),IF(MID(E11,3,1)=" ",RIGHT(E11,LEN(E11)-3),E11))) )) ->  | T11: =IFERROR(INDEX(Admin!$D$10:$E$100,MATCH(Q11,Admin!$D$10:$D$83,0),2),Q11) -> Rikets styrelse | U11: =INDEX(Befolkning!$F$10:$F$50,MATCH(BudgetData!$P11*1,Befolkning!$B$10:$B$50,0),1) -> 10457147 | V11: =F11/(U11/1000) -> 1651.343144 | W11: 137.6119286
A12: Utgifter2022 | B12: Utgift | E12: 1 Statschefen | F12: 149157 | G12: 1 Statschefen | H12: 1 | I12: 1 | K12: 1 | L12: Sum | M12: FALSE | N12: =IF(M12=TRUE,FALSE, IF(COUNTIFS($R$10:R12,R12,$H$10:H12,H12,$P$10:P12,P12)=1,TRUE, IF(COUNTIFS(H:H,H12,I:I,">0",P:P,P12)=0,TRUE,FALSE))) -> TRUE | O12: FALSE | P12: 2022 | Q12: Rikets styrelse | R12: Statschefen | S12: =+IF(K12="","",IF(L12="Sum","", IF(RIGHT(IF(MID(E12,2,1)=" ",RIGHT(E12,LEN(E12)-2),IF(MID(E12,3,1)=" ",RIGHT(E12,LEN(E12)-3),E12)),1)=" ", LEFT(IF(MID(E12,2,1)=" ",RIGHT(E12,LEN(E12)-2),IF(MID(E12,3,1)=" ",RIGHT(E12,LEN(E12)-3),E12)), LEN(IF(MID(E12,2,1)=" ",RIGHT(E12,LEN(E12)-2),IF(MID(E12,3,1)=" ",RIGHT(E12,LEN(E12)-3),E12)))-1), IF(MID(E12,2,1)=" ",RIGHT(E12,LEN(E12)-2),IF(MID(E12,3,1)=" ",RIGHT(E12,LEN(E12)-3),E12))) )) ->  | T12: =IFERROR(INDEX(Admin!$D$10:$E$100,MATCH(Q12,Admin!$D$10:$D$83,0),2),Q12) -> Rikets styrelse | U12: =INDEX(Befolkning!$F$10:$F$50,MATCH(BudgetData!$P12*1,Befolkning!$B$10:$B$50,0),1) -> 10457147 | V12: 14.26364189 | W12: 1.188636824
A13: Utgifter2022 | B13: Utgift | E13: 1 Kungliga hov- och slottsstaten | F13: 149157 | G13: 1 Kungliga hov- och slottsstaten | H13: 1 | J13: 1 | K13: 1 | M13: FALSE | N13: =IF(M13=TRUE,FALSE, IF(COUNTIFS($R$10:R13,R13,$H$10:H13,H13,$P$10:P13,P13)=1,TRUE, IF(COUNTIFS(H:H,H13,I:I,">0",P:P,P13)=0,TRUE,FALSE))) -> FALSE | O13: TRUE | P13: 2022 | Q13: Rikets styrelse | R13: Statschefen | S13: Kungliga hov- och slottsstaten | T13: =IFERROR(INDEX(Admin!$D$10:$E$100,MATCH(Q13,Admin!$D$10:$D$83,0),2),Q13) -> Rikets styrelse | U13: =INDEX(Befolkning!$F$10:$F$50,MATCH(BudgetData!$P13*1,Befolkning!$B$10:$B$50,0),1) -> 10457147 | V13: 14.26364189 | W13: 1.188636824
A14: Utgifter2022 | B14: Utgift | E14: 2 Riksdagen och dess myndigheter | F14: 2565279 | G14: 2 Riksdagen och dess myndigheter | H14: 1 | I14: 2 | K14: 2 | L14: Sum | M14: FALSE | N14: =IF(M14=TRUE,FALSE, IF(COUNTIFS($R$10:R14,R14,$H$10:H14,H14,$P$10:P14,P14)=1,TRUE, IF(COUNTIFS(H:H,H14,I:I,">0",P:P,P14)=0,TRUE,FALSE))) -> TRUE | O14: FALSE | P14: 2022 | Q14: Rikets styrelse | R14: Riksdagen och dess myndigheter | T14: =IFERROR(INDEX(Admin!$D$10:$E$100,MATCH(Q14,Admin!$D$10:$D$83,0),2),Q14) -> Rikets styrelse | U14: =INDEX(Befolkning!$F$10:$F$50,MATCH(BudgetData!$P14*1,Befolkning!$B$10:$B$50,0),1) -> 10457147 | V14: 245.3134684 | W14: 20.44278903
A15: Utgifter2022 | B15: Utgift | E15: 1 Riksdagens ledamöter och partier m.m. | F15: 981205 | G15: 1 Riksdagens ledamöter och partier m.m. | H15: 1 | J15: 1 | K15: 1 | M15: FALSE | N15: =IF(M15=TRUE,FALSE, IF(COUNTIFS($R$10:R15,R15,$H$10:H15,H15,$P$10:P15,P15)=1,TRUE, IF(COUNTIFS(H:H,H15,I:I,">0",P:P,P15)=0,TRUE,FALSE))) -> FALSE | O15: TRUE | P15: 2022 | Q15: Rikets styrelse | R15: Riksdagen och dess myndigheter | S15: Riksdagens ledamöter och partier m.m. | T15: =IFERROR(INDEX(Admin!$D$10:$E$100,MATCH(Q15,Admin!$D$10:$D$83,0),2),Q15) -> Rikets styrelse | U15: =INDEX(Befolkning!$F$10:$F$50,MATCH(BudgetData!$P15*1,Befolkning!$B$10:$B$50,0),1) -> 10457147 | V15: 93.83104206 | W15: 7.819253505
A16: Utgifter2022 | B16: Utgift | E16: 2 Riksdagens förvaltningsanslag | F16: 984675 | G16: 2 Riksdagens förvaltningsanslag | H16: 1 | J16: 2 | K16: 2 | M16: FALSE | N16: =IF(M16=TRUE,FALSE, IF(COUNTIFS($R$10:R16,R16,$H$10:H16,H16,$P$10:P16,P16)=1,TRUE, IF(COUNTIFS(H:H,H16,I:I,">0",P:P,P16)=0,TRUE,FALSE))) -> FALSE | O16: TRUE | P16: =IF(B16="Utgift",+SUBSTITUTE(A16,"Utgifter","")*1,SUBSTITUTE(A16,"Inkomst","")*1) -> 2022 | Q16: Rikets styrelse | R16: Riksdagen och dess myndigheter | S16: Riksdagens förvaltningsanslag | T16: =IFERROR(INDEX(Admin!$D$10:$E$100,MATCH(Q16,Admin!$D$10:$D$83,0),2),Q16) -> Rikets styrelse | U16: =INDEX(Befolkning!$F$10:$F$50,MATCH(BudgetData!$P16*1,Befolkning!$B$10:$B$50,0),1) -> 10457147 | V16: 94.16287253 | W16: 7.846906044
A17: Utgifter2022 | B17: Utgift | E17: 3 Riksdagens fastighetsanslag | F17: 120000 | G17: 3 Riksdagens fastighetsanslag | H17: 1 | J17: 3 | K17: 3 | M17: FALSE | N17: =IF(M17=TRUE,FALSE, IF(COUNTIFS($R$10:R17,R17,$H$10:H17,H17,$P$10:P17,P17)=1,TRUE, IF(COUNTIFS(H:H,H17,I:I,">0",P:P,P17)=0,TRUE,FALSE))) -> FALSE | O17: TRUE | P17: =IF(B17="Utgift",+SUBSTITUTE(A17,"Utgifter","")*1,SUBSTITUTE(A17,"Inkomst","")*1) -> 2022 | Q17: Rikets styrelse | R17: Riksdagen och dess myndigheter | S17: Riksdagens fastighetsanslag | T17: =IFERROR(INDEX(Admin!$D$10:$E$100,MATCH(Q17,Admin!$D$10:$D$83,0),2),Q17) -> Rikets styrelse | U17: =INDEX(Befolkning!$F$10:$F$50,MATCH(BudgetData!$P17*1,Befolkning!$B$10:$B$50,0),1) -> 10457147 | V17: 11.47540529 | W17: 0.9562837741
A18: Utgifter2022 | B18: Utgift | E18: 4 Riksdagens ombudsmän (JO) | F18: 123577 | G18: 4 Riksdagens ombudsmän (JO) | H18: 1 | J18: 4 | K18: 4 | M18: FALSE | N18: =IF(M18=TRUE,FALSE, IF(COUNTIFS($R$10:R18,R18,$H$10:H18,H18,$P$10:P18,P18)=1,TRUE, IF(COUNTIFS(H:H,H18,I:I,">0",P:P,P18)=0,TRUE,FALSE))) -> FALSE | O18: TRUE | P18: 2022 | Q18: Rikets styrelse | R18: Riksdagen och dess myndigheter | S18: Riksdagens ombudsmän (JO) | T18: =IFERROR(INDEX(Admin!$D$10:$E$100,MATCH(Q18,Admin!$D$10:$D$83,0),2),Q18) -> Rikets styrelse | U18: =INDEX(Befolkning!$F$10:$F$50,MATCH(BudgetData!$P18*1,Befolkning!$B$10:$B$50,0),1) -> 10457147 | V18: 11.817468 | W18: 0.9847889997
A19: Utgifter2022 | B19: Utgift | E19: 5 Riksrevisionen | F19: 355822 | G19: 5 Riksrevisionen | H19: 1 | J19: 5 | K19: 5 | M19: FALSE | N19: =IF(M19=TRUE,FALSE, IF(COUNTIFS($R$10:R19,R19,$H$10:H19,H19,$P$10:P19,P19)=1,TRUE, IF(COUNTIFS(H:H,H19,I:I,">0",P:P,P19)=0,TRUE,FALSE))) -> FALSE | O19: TRUE | P19: 2022 | Q19: Rikets styrelse | R19: Riksdagen och dess myndigheter | S19: Riksrevisionen | T19: =IFERROR(INDEX(Admin!$D$10:$E$100,MATCH(Q19,Admin!$D$10:$D$83,0),2),Q19) -> Rikets styrelse | U19: =INDEX(Befolkning!$F$10:$F$50,MATCH(BudgetData!$P19*1,Befolkning!$B$10:$B$50,0),1) -> 10457147 | V19: 34.02668051 | W19: 2.835556709
A20: Utgifter2022 | B20: Utgift | E20: 3 Sametinget och samepolitiken | F20: 61800 | G20: 3 Sametinget och samepolitiken | H20: 1 | I20: 3 | K20: 3 | L20: Sum | M20: FALSE | N20: =IF(M20=TRUE,FALSE, IF(COUNTIFS($R$10:R20,R20,$H$10:H20,H20,$P$10:P20,P20)=1,TRUE, IF(COUNTIFS(H:H,H20,I:I,">0",P:P,P20)=0,TRUE,FALSE))) -> TRUE | O20: FALSE | P20: 2022 | Q20: Rikets styrelse | R20: Sametinget och samepolitiken | T20: =IFERROR(INDEX(Admin!$D$10:$E$100,MATCH(Q20,Admin!$D$10:$D$83,0),2),Q20) -> Rikets styrelse | U20: =INDEX(Befolkning!$F$10:$F$50,MATCH(BudgetData!$P20*1,Befolkning!$B$10:$B$50,0),1) -> 10457147 | V20: 5.909833724 | W20: 0.4924861437
A21: Utgifter2022 | B21: Utgift | E21: 1 Sametinget | F21: 61800 | G21: 1 Sametinget | H21: 1 | J21: 1 | K21: 1 | M21: FALSE | N21: =IF(M21=TRUE,FALSE, IF(COUNTIFS($R$10:R21,R21,$H$10:H21,H21,$P$10:P21,P21)=1,TRUE, IF(COUNTIFS(H:H,H21,I:I,">0",P:P,P21)=0,TRUE,FALSE))) -> FALSE | O21: TRUE | P21: 2022 | Q21: Rikets styrelse | R21: Sametinget och samepolitiken | S21: Sametinget | T21: =IFERROR(INDEX(Admin!$D$10:$E$100,MATCH(Q21,Admin!$D$10:$D$83,0),2),Q21) -> Rikets styrelse | U21: =INDEX(Befolkning!$F$10:$F$50,MATCH(BudgetData!$P21*1,Befolkning!$B$10:$B$50,0),1) -> 10457147 | V21: 5.909833724 | W21: 0.4924861437
A22: Utgifter2022 | B22: Utgift | E22: 4 Regeringskansliet m.m. | F22: 8441101 | G22: 4 Regeringskansliet m.m. | H22: 1 | I22: 4 | K22: 4 | L22: Sum | M22: FALSE | N22: =IF(M22=TRUE,FALSE, IF(COUNTIFS($R$10:R22,R22,$H$10:H22,H22,$P$10:P22,P22)=1,TRUE, IF(COUNTIFS(H:H,H22,I:I,">0",P:P,P22)=0,TRUE,FALSE))) -> TRUE | O22: FALSE | P22: 2022 | Q22: Rikets styrelse | R22: Regeringskansliet m.m. | T22: =IFERROR(INDEX(Admin!$D$10:$E$100,MATCH(Q22,Admin!$D$10:$D$83,0),2),Q22) -> Rikets styrelse | U22: =INDEX(Befolkning!$F$10:$F$50,MATCH(BudgetData!$P22*1,Befolkning!$B$10:$B$50,0),1) -> 10457147 | V22: 807.2087922 | W22: 67.26739935
A23: Utgifter2022 | B23: Utgift | E23: 1 Regeringskansliet m.m. | F23: 8441101 | G23: 1 Regeringskansliet m.m. | H23: 1 | J23: 1 | K23: 1 | M23: FALSE | N23: =IF(M23=TRUE,FALSE, IF(COUNTIFS($R$10:R23,R23,$H$10:H23,H23,$P$10:P23,P23)=1,TRUE, IF(COUNTIFS(H:H,H23,I:I,">0",P:P,P23)=0,TRUE,FALSE))) -> FALSE | O23: TRUE | P23: 2022 | Q23: Rikets styrelse | R23: Regeringskansliet m.m. | S23: Regeringskansliet m.m. | T23: =IFERROR(INDEX(Admin!$D$10:$E$100,MATCH(Q23,Admin!$D$10:$D$83,0),2),Q23) -> Rikets styrelse | U23: =INDEX(Befolkning!$F$10:$F$50,MATCH(BudgetData!$P23*1,Befolkning!$B$10:$B$50,0),1) -> 10457147 | V23: 807.2087922 | W23: 67.26739935
A24: Utgifter2022 | B24: Utgift | E24: 5 Länsstyrelserna | F24: 3573121 | G24: 5 Länsstyrelserna | H24: 1 | I24: 5 | K24: 5 | L24: Sum | M24: FALSE | N24: =IF(M24=TRUE,FALSE, IF(COUNTIFS($R$10:R24,R24,$H$10:H24,H24,$P$10:P24,P24)=1,TRUE, IF(COUNTIFS(H:H,H24,I:I,">0",P:P,P24)=0,TRUE,FALSE))) -> TRUE | O24: FALSE | P24: 2022 | Q24: Rikets styrelse | R24: Länsstyrelserna | T24: =IFERROR(INDEX(Admin!$D$10:$E$100,MATCH(Q24,Admin!$D$10:$D$83,0),2),Q24) -> Rikets styrelse | U24: =INDEX(Befolkning!$F$10:$F$50,MATCH(BudgetData!$P24*1,Befolkning!$B$10:$B$50,0),1) -> 10457147 | V24: 341.6917635 | W24: 28.47431363
A25: Utgifter2022 | B25: Utgift | E25: 1 Länsstyrelserna m.m. | F25: 3573121 | G25: 1 Länsstyrelserna m.m. | H25: 1 | J25: 1 | K25: 1 | M25: FALSE | N25: =IF(M25=TRUE,FALSE, IF(COUNTIFS($R$10:R25,R25,$H$10:H25,H25,$P$10:P25,P25)=1,TRUE, IF(COUNTIFS(H:H,H25,I:I,">0",P:P,P25)=0,TRUE,FALSE))) -> FALSE | O25: TRUE | P25: 2022 | Q25: Rikets styrelse | R25: Länsstyrelserna | S25: Länsstyrelserna m.m. | T25: =IFERROR(INDEX(Admin!$D$10:$E$100,MATCH(Q25,Admin!$D$10:$D$83,0),2),Q25) -> Rikets styrelse | U25: =INDEX(Befolkning!$F$10:$F$50,MATCH(BudgetData!$P25*1,Befolkning!$B$10:$B$50,0),1) -> 10457147 | V25: 341.6917635 | W25: 28.47431363
A26: Utgifter2022 | B26: Utgift | E26: 6 Demokratipolitik och mänskliga rättigheter | F26: 1121858 | G26: 6 Demokratipolitik och mänskliga rättigheter | H26: 1 | I26: 6 | K26: 6 | L26: Sum | M26: FALSE | N26: =IF(M26=TRUE,FALSE, IF(COUNTIFS($R$10:R26,R26,$H$10:H26,H26,$P$10:P26,P26)=1,TRUE, IF(COUNTIFS(H:H,H26,I:I,">0",P:P,P26)=0,TRUE,FALSE))) -> TRUE | O26: FALSE | P26: 2022 | Q26: Rikets styrelse | R26: Demokratipolitik och mänskliga rättigheter | T26: =IFERROR(INDEX(Admin!$D$10:$E$100,MATCH(Q26,Admin!$D$10:$D$83,0),2),Q26) -> Rikets styrelse | U26: =INDEX(Befolkning!$F$10:$F$50,MATCH(BudgetData!$P26*1,Befolkning!$B$10:$B$50,0),1) -> 10457147 | V26: 107.2814602 | W26: 8.940121686
A27: Utgifter2022 | B27: Utgift | E27: 1 Allmänna val och demokrati | F27: 695140 | G27: 1 Allmänna val och demokrati | H27: 1 | J27: 1 | K27: 1 | M27: FALSE | N27: =IF(M27=TRUE,FALSE, IF(COUNTIFS($R$10:R27,R27,$H$10:H27,H27,$P$10:P27,P27)=1,TRUE, IF(COUNTIFS(H:H,H27,I:I,">0",P:P,P27)=0,TRUE,FALSE))) -> FALSE | O27: TRUE | P27: 2022 | Q27: Rikets styrelse | R27: Demokratipolitik och mänskliga rättigheter | S27: Allmänna val och demokrati | T27: =IFERROR(INDEX(Admin!$D$10:$E$100,MATCH(Q27,Admin!$D$10:$D$83,0),2),Q27) -> Rikets styrelse | U27: =INDEX(Befolkning!$F$10:$F$50,MATCH(BudgetData!$P27*1,Befolkning!$B$10:$B$50,0),1) -> 10457147 | V27: 66.47511028 | W27: 5.539592523
A28: Utgifter2022 | B28: Utgift | E28: 2 Justitiekanslern | F28: 55726 | G28: 2 Justitiekanslern | H28: 1 | J28: 2 | K28: 2 | M28: FALSE | N28: =IF(M28=TRUE,FALSE, IF(COUNTIFS($R$10:R28,R28,$H$10:H28,H28,$P$10:P28,P28)=1,TRUE, IF(COUNTIFS(H:H,H28,I:I,">0",P:P,P28)=0,TRUE,FALSE))) -> FALSE | O28: TRUE | P28: 2022 | Q28: Rikets styrelse | R28: Demokratipolitik och mänskliga rättigheter | S28: Justitiekanslern | T28: =IFERROR(INDEX(Admin!$D$10:$E$100,MATCH(Q28,Admin!$D$10:$D$83,0),2),Q28) -> Rikets styrelse | U28: =INDEX(Befolkning!$F$10:$F$50,MATCH(BudgetData!$P28*1,Befolkning!$B$10:$B$50,0),1) -> 10457147 | V28: 5.32898696 | W28: 0.4440822467
A29: Utgifter2022 | B29: Utgift | E29: 3 Integritetsskyddsmyndigheten | F29: 124792 | G29: 3 Integritetsskyddsmyndigheten | H29: 1 | J29: 3 | K29: 3 | M29: FALSE | N29: =IF(M29=TRUE,FALSE, IF(COUNTIFS($R$10:R29,R29,$H$10:H29,H29,$P$10:P29,P29)=1,TRUE, IF(COUNTIFS(H:H,H29,I:I,">0",P:P,P29)=0,TRUE,FALSE))) -> FALSE | O29: TRUE | P29: 2022 | Q29: Rikets styrelse | R29: Demokratipolitik och mänskliga rättigheter | S29: Integritetsskyddsmyndigheten | T29: =IFERROR(INDEX(Admin!$D$10:$E$100,MATCH(Q29,Admin!$D$10:$D$83,0),2),Q29) -> Rikets styrelse | U29: =INDEX(Befolkning!$F$10:$F$50,MATCH(BudgetData!$P29*1,Befolkning!$B$10:$B$50,0),1) -> 10457147 | V29: 11.93365647 | W29: 0.9944713729
A30: Utgifter2022 | B30: Utgift | E30: 4 Valmyndigheten | F30: 27000 | G30: 4 Valmyndigheten | H30: 1 | J30: 4 | K30: 4 | M30: FALSE | N30: =IF(M30=TRUE,FALSE, IF(COUNTIFS($R$10:R30,R30,$H$10:H30,H30,$P$10:P30,P30)=1,TRUE, IF(COUNTIFS(H:H,H30,I:I,">0",P:P,P30)=0,TRUE,FALSE))) -> FALSE | O30: TRUE | P30: 2022 | Q30: Rikets styrelse | R30: Demokratipolitik och mänskliga rättigheter | S30: Valmyndigheten | T30: =IFERROR(INDEX(Admin!$D$10:$E$100,MATCH(Q30,Admin!$D$10:$D$83,0),2),Q30) -> Rikets styrelse | U30: =INDEX(Befolkning!$F$10:$F$50,MATCH(BudgetData!$P30*1,Befolkning!$B$10:$B$50,0),1) -> 10457147 | V30: 2.58196619 | W30: 0.2151638492
A31: Utgifter2022 | B31: Utgift | E31: 5 Stöd till politiska partier | F31: 169200 | G31: 5 Stöd till politiska partier | H31: 1 | J31: 5 | K31: 5 | M31: FALSE | N31: =IF(M31=TRUE,FALSE, IF(COUNTIFS($R$10:R31,R31,$H$10:H31,H31,$P$10:P31,P31)=1,TRUE, IF(COUNTIFS(H:H,H31,I:I,">0",P:P,P31)=0,TRUE,FALSE))) -> FALSE | O31: TRUE | P31: 2022 | Q31: Rikets styrelse | R31: Demokratipolitik och mänskliga rättigheter | S31: Stöd till politiska partier | T31: =IFERROR(INDEX(Admin!$D$10:$E$100,MATCH(Q31,Admin!$D$10:$D$83,0),2),Q31) -> Rikets styrelse | U31: =INDEX(Befolkning!$F$10:$F$50,MATCH(BudgetData!$P31*1,Befolkning!$B$10:$B$50,0),1) -> 10457147 | V31: 16.18032146 | W31: 1.348360122
A32: Utgifter2022 | B32: Utgift | E32: 6 Institutet för mänskliga rättigheter | F32: 50000 | G32: 6 Institutet för mänskliga rättigheter | H32: 1 | J32: 6 | K32: 6 | M32: FALSE | N32: =IF(M32=TRUE,FALSE, IF(COUNTIFS($R$10:R32,R32,$H$10:H32,H32,$P$10:P32,P32)=1,TRUE, IF(COUNTIFS(H:H,H32,I:I,">0",P:P,P32)=0,TRUE,FALSE))) -> FALSE | O32: TRUE | P32: 2022 | Q32: Rikets styrelse | R32: Demokratipolitik och mänskliga rättigheter | S32: Institutet för mänskliga rättigheter | T32: =IFERROR(INDEX(Admin!$D$10:$E$100,MATCH(Q32,Admin!$D$10:$D$83,0),2),Q32) -> Rikets styrelse | U32: =INDEX(Befolkning!$F$10:$F$50,MATCH(BudgetData!$P32*1,Befolkning!$B$10:$B$50,0),1) -> 10457147 | V32: 4.781418871 | W32: 0.3984515726
A33: Utgifter2022 | B33: Utgift | E33: 7 Nationella minoriteter | F33: 223271 | G33: 7 Nationella minoriteter | H33: 1 | I33: 7 | K33: 7 | L33: Sum | M33: FALSE | N33: =IF(M33=TRUE,FALSE, IF(COUNTIFS($R$10:R33,R33,$H$10:H33,H33,$P$10:P33,P33)=1,TRUE, IF(COUNTIFS(H:H,H33,I:I,">0",P:P,P33)=0,TRUE,FALSE))) -> TRUE | O33: FALSE | P33: 2022 | Q33: Rikets styrelse | R33: Nationella minoriteter | T33: =IFERROR(INDEX(Admin!$D$10:$E$100,MATCH(Q33,Admin!$D$10:$D$83,0),2),Q33) -> Rikets styrelse | U33: =INDEX(Befolkning!$F$10:$F$50,MATCH(BudgetData!$P33*1,Befolkning!$B$10:$B$50,0),1) -> 10457147 | V33: 21.35104345 | W33: 1.779253621
A34: Utgifter2022 | B34: Utgift | E34: 1 Åtgärder för nationella minoriteter | F34: 207771 | G34: 1 Åtgärder för nationella minoriteter | H34: 1 | J34: 1 | K34: 1 | M34: FALSE | N34: =IF(M34=TRUE,FALSE, IF(COUNTIFS($R$10:R34,R34,$H$10:H34,H34,$P$10:P34,P34)=1,TRUE, IF(COUNTIFS(H:H,H34,I:I,">0",P:P,P34)=0,TRUE,FALSE))) -> FALSE | O34: TRUE | P34: 2022 | Q34: Rikets styrelse | R34: Nationella minoriteter | S34: Åtgärder för nationella minoriteter | T34: =IFERROR(INDEX(Admin!$D$10:$E$100,MATCH(Q34,Admin!$D$10:$D$83,0),2),Q34) -> Rikets styrelse | U34: =INDEX(Befolkning!$F$10:$F$50,MATCH(BudgetData!$P34*1,Befolkning!$B$10:$B$50,0),1) -> 10457147 | V34: 19.8688036 | W34: 1.655733634
A35: Utgifter2022 | B35: Utgift | E35: 2 Åtgärder för den nationella minoriteten romer | F35: 15500 | G35: 2 Åtgärder för den nationella minoriteten romer | H35: 1 | J35: 2 | K35: 2 | M35: FALSE | N35: =IF(M35=TRUE,FALSE, IF(COUNTIFS($R$10:R35,R35,$H$10:H35,H35,$P$10:P35,P35)=1,TRUE, IF(COUNTIFS(H:H,H35,I:I,">0",P:P,P35)=0,TRUE,FALSE))) -> FALSE | O35: TRUE | P35: 2022 | Q35: Rikets styrelse | R35: Nationella minoriteter | S35: Åtgärder för den nationella minoriteten romer | T35: =IFERROR(INDEX(Admin!$D$10:$E$100,MATCH(Q35,Admin!$D$10:$D$83,0),2),Q35) -> Rikets styrelse | U35: =INDEX(Befolkning!$F$10:$F$50,MATCH(BudgetData!$P35*1,Befolkning!$B$10:$B$50,0),1) -> 10457147 | V35: 1.48223985 | W35: 0.1235199875
A36: Utgifter2022 | B36: Utgift | E36: 8 Medier | F36: 1101201 | G36: 8 Medier | H36: 1 | I36: 8 | K36: 8 | L36: Sum | M36: FALSE | N36: =IF(M36=TRUE,FALSE, IF(COUNTIFS($R$10:R36,R36,$H$10:H36,H36,$P$10:P36,P36)=1,TRUE, IF(COUNTIFS(H:H,H36,I:I,">0",P:P,P36)=0,TRUE,FALSE))) -> TRUE | O36: FALSE | P36: 2022 | Q36: Rikets styrelse | R36: Medier | T36: =IFERROR(INDEX(Admin!$D$10:$E$100,MATCH(Q36,Admin!$D$10:$D$83,0),2),Q36) -> Rikets styrelse | U36: =INDEX(Befolkning!$F$10:$F$50,MATCH(BudgetData!$P36*1,Befolkning!$B$10:$B$50,0),1) -> 10457147 | V36: 105.3060648 | W36: 8.775505403
A37: Utgifter2022 | B37: Utgift | E37: 1 Mediestöd | F37: 1055519 | G37: 1 Mediestöd | H37: 1 | J37: 1 | K37: 1 | M37: FALSE | N37: =IF(M37=TRUE,FALSE, IF(COUNTIFS($R$10:R37,R37,$H$10:H37,H37,$P$10:P37,P37)=1,TRUE, IF(COUNTIFS(H:H,H37,I:I,">0",P:P,P37)=0,TRUE,FALSE))) -> FALSE | O37: TRUE | P37: 2022 | Q37: Rikets styrelse | R37: Medier | S37: Mediestöd | T37: =IFERROR(INDEX(Admin!$D$10:$E$100,MATCH(Q37,Admin!$D$10:$D$83,0),2),Q37) -> Rikets styrelse | U37: =INDEX(Befolkning!$F$10:$F$50,MATCH(BudgetData!$P37*1,Befolkning!$B$10:$B$50,0),1) -> 10457147 | V37: 100.9375693 | W37: 8.411464108
A38: Utgifter2022 | B38: Utgift | E38: 2 Myndigheten för press, radio och tv | F38: 45682 | G38: 2 Myndigheten för press, radio och tv | H38: 1 | J38: 2 | K38: 2 | M38: FALSE | N38: =IF(M38=TRUE,FALSE, IF(COUNTIFS($R$10:R38,R38,$H$10:H38,H38,$P$10:P38,P38)=1,TRUE, IF(COUNTIFS(H:H,H38,I:I,">0",P:P,P38)=0,TRUE,FALSE))) -> FALSE | O38: TRUE | P38: 2022 | Q38: Rikets styrelse | R38: Medier | S38: Myndigheten för press, radio och tv | T38: =IFERROR(INDEX(Admin!$D$10:$E$100,MATCH(Q38,Admin!$D$10:$D$83,0),2),Q38) -> Rikets styrelse | U38: =INDEX(Befolkning!$F$10:$F$50,MATCH(BudgetData!$P38*1,Befolkning!$B$10:$B$50,0),1) -> 10457147 | V38: 4.368495537 | W38: 0.3640412948
A39: Utgifter2022 | B39: Utgift | E39: 9 Sieps samt insatser för att stärka delaktigheten i EU-arbetet | F39: 31550 | G39: 9 Sieps samt insatser för att stärka delaktigheten i EU-arbetet | H39: 1 | I39: 9 | K39: 9 | L39: Sum | M39: FALSE | N39: =IF(M39=TRUE,FALSE, IF(COUNTIFS($R$10:R39,R39,$H$10:H39,H39,$P$10:P39,P39)=1,TRUE, IF(COUNTIFS(H:H,H39,I:I,">0",P:P,P39)=0,TRUE,FALSE))) -> TRUE | O39: FALSE | P39: 2022 | Q39: Rikets styrelse | R39: Sieps samt insatser för att stärka delaktigheten i EU-arbetet | T39: =IFERROR(INDEX(Admin!$D$10:$E$100,MATCH(Q39,Admin!$D$10:$D$83,0),2),Q39) -> Rikets styrelse | U39: =INDEX(Befolkning!$F$10:$F$50,MATCH(BudgetData!$P39*1,Befolkning!$B$10:$B$50,0),1) -> 10457147 | V39: 3.017075307 | W39: 0.2514229423
A40: Utgifter2022 | B40: Utgift | E40: 1 Svenska institutet för europapolitiska studier samt EU-information | F40: 31550 | G40: 1 Svenska institutet för europapolitiska studier samt EU-information | H40: 1 | J40: 1 | K40: 1 | M40: FALSE | N40: =IF(M40=TRUE,FALSE, IF(COUNTIFS($R$10:R40,R40,$H$10:H40,H40,$P$10:P40,P40)=1,TRUE, IF(COUNTIFS(H:H,H40,I:I,">0",P:P,P40)=0,TRUE,FALSE))) -> FALSE | O40: TRUE | P40: 2022 | Q40: Rikets styrelse | R40: Sieps samt insatser för att stärka delaktigheten i EU-arbetet | S40: Svenska institutet för europapolitiska studier samt EU-information | T40: =IFERROR(INDEX(Admin!$D$10:$E$100,MATCH(Q40,Admin!$D$10:$D$83,0),2),Q40) -> Rikets styrelse | U40: =INDEX(Befolkning!$F$10:$F$50,MATCH(BudgetData!$P40*1,Befolkning!$B$10:$B$50,0),1) -> 10457147 | V40: 3.017075307 | W40: 0.2514229423
A41: Utgifter2022 | B41: Utgift | D41: 2 | E41: 2 Samhällsekonomi och finansförvaltning | F41: 17971183 | G41: 2 Samhällsekonomi och finansförvaltning | H41: 2 | K41: 2 | L41: Sum | M41: TRUE | N41: =IF(M41=TRUE,FALSE, IF(COUNTIFS($R$10:R41,R41,$H$10:H41,H41,$P$10:P41,P41)=1,TRUE, IF(COUNTIFS(H:H,H41,I:I,">0",P:P,P41)=0,TRUE,FALSE))) -> FALSE | O41: FALSE | P41: 2022 | Q41: Samhällsekonomi och finansförvaltning | T41: =IFERROR(INDEX(Admin!$D$10:$E$100,MATCH(Q41,Admin!$D$10:$D$83,0),2),Q41) -> Samhällsekonomi och finansförvaltning | U41: =INDEX(Befolkning!$F$10:$F$50,MATCH(BudgetData!$P41*1,Befolkning!$B$10:$B$50,0),1) -> 10457147 | V41: 1718.555071 | W41: 143.2129225
A42: Utgifter2022 | B42: Utgift | E42: 1 Statskontoret | F42: 104034 | G42: 1 Statskontoret | H42: 2 | J42: 1 | K42: 1 | M42: FALSE | N42: =IF(M42=TRUE,FALSE, IF(COUNTIFS($R$10:R42,R42,$H$10:H42,H42,$P$10:P42,P42)=1,TRUE, IF(COUNTIFS(H:H,H42,I:I,">0",P:P,P42)=0,TRUE,FALSE))) -> TRUE | O42: TRUE | P42: 2022 | Q42: Samhällsekonomi och finansförvaltning | R42: Samhällsekonomi och finansförvaltning | S42: Statskontoret | T42: =IFERROR(INDEX(Admin!$D$10:$E$100,MATCH(Q42,Admin!$D$10:$D$83,0),2),Q42) -> Samhällsekonomi och finansförvaltning | U42: =INDEX(Befolkning!$F$10:$F$50,MATCH(BudgetData!$P42*1,Befolkning!$B$10:$B$50,0),1) -> 10457147 | V42: 9.948602616 | W42: 0.829050218
A43: Utgifter2022 | B43: Utgift | E43: 2 Kammarkollegiet | F43: 114574 | G43: 2 Kammarkollegiet | H43: 2 | J43: 2 | K43: 2 | M43: FALSE | N43: =IF(M43=TRUE,FALSE, IF(COUNTIFS($R$10:R43,R43,$H$10:H43,H43,$P$10:P43,P43)=1,TRUE, IF(COUNTIFS(H:H,H43,I:I,">0",P:P,P43)=0,TRUE,FALSE))) -> TRUE | O43: TRUE | P43: 2022 | Q43: Samhällsekonomi och finansförvaltning | R43: Samhällsekonomi och finansförvaltning | S43: Kammarkollegiet | T43: =IFERROR(INDEX(Admin!$D$10:$E$100,MATCH(Q43,Admin!$D$10:$D$83,0),2),Q43) -> Samhällsekonomi och finansförvaltning | U43: =INDEX(Befolkning!$F$10:$F$50,MATCH(BudgetData!$P43*1,Befolkning!$B$10:$B$50,0),1) -> 10457147 | V43: 10.95652571 | W43: 0.9130438095
A44: Utgifter2022 | B44: Utgift | E44: 3 Finansinspektionens avgifter till EU:s tillsynsmyndigheter | F44: 25150 | G44: 3 Finansinspektionens avgifter till EU:s tillsynsmyndigheter | H44: 2 | J44: 3 | K44: 3 | M44: FALSE | N44: =IF(M44=TRUE,FALSE, IF(COUNTIFS($R$10:R44,R44,$H$10:H44,H44,$P$10:P44,P44)=1,TRUE, IF(COUNTIFS(H:H,H44,I:I,">0",P:P,P44)=0,TRUE,FALSE))) -> TRUE | O44: TRUE | P44: 2022 | Q44: Samhällsekonomi och finansförvaltning | R44: Samhällsekonomi och finansförvaltning | S44: Finansinspektionens avgifter till EU:s tillsynsmyndigheter | T44: =IFERROR(INDEX(Admin!$D$10:$E$100,MATCH(Q44,Admin!$D$10:$D$83,0),2),Q44) -> Samhällsekonomi och finansförvaltning | U44: =INDEX(Befolkning!$F$10:$F$50,MATCH(BudgetData!$P44*1,Befolkning!$B$10:$B$50,0),1) -> 10457147 | V44: 2.405053692 | W44: 0.200421141
A45: Utgifter2022 | B45: Utgift | E45: 4 Arbetsgivarpolitiska frågor | F45: 1693 | G45: 4 Arbetsgivarpolitiska frågor | H45: 2 | J45: 4 | K45: 4 | M45: FALSE | N45: =IF(M45=TRUE,FALSE, IF(COUNTIFS($R$10:R45,R45,$H$10:H45,H45,$P$10:P45,P45)=1,TRUE, IF(COUNTIFS(H:H,H45,I:I,">0",P:P,P45)=0,TRUE,FALSE))) -> TRUE | O45: TRUE | P45: 2022 | Q45: Samhällsekonomi och finansförvaltning | R45: Samhällsekonomi och finansförvaltning | S45: Arbetsgivarpolitiska frågor | T45: =IFERROR(INDEX(Admin!$D$10:$E$100,MATCH(Q45,Admin!$D$10:$D$83,0),2),Q45) -> Samhällsekonomi och finansförvaltning | U45: =INDEX(Befolkning!$F$10:$F$50,MATCH(BudgetData!$P45*1,Befolkning!$B$10:$B$50,0),1) -> 10457147 | V45: 0.161898843 | W45: 0.01349157025
A46: Utgifter2022 | B46: Utgift | E46: 5 Statliga tjänstepensioner m.m. | F46: 14094000 | G46: 5 Statliga tjänstepensioner m.m. | H46: 2 | J46: 5 | K46: 5 | M46: FALSE | N46: =IF(M46=TRUE,FALSE, IF(COUNTIFS($R$10:R46,R46,$H$10:H46,H46,$P$10:P46,P46)=1,TRUE, IF(COUNTIFS(H:H,H46,I:I,">0",P:P,P46)=0,TRUE,FALSE))) -> TRUE | O46: TRUE | P46: 2022 | Q46: Samhällsekonomi och finansförvaltning | R46: Samhällsekonomi och finansförvaltning | S46: Statliga tjänstepensioner m.m. | T46: =IFERROR(INDEX(Admin!$D$10:$E$100,MATCH(Q46,Admin!$D$10:$D$83,0),2),Q46) -> Samhällsekonomi och finansförvaltning | U46: =INDEX(Befolkning!$F$10:$F$50,MATCH(BudgetData!$P46*1,Befolkning!$B$10:$B$50,0),1) -> 10457147 | V46: 1347.786351 | W46: 112.3155293
A47: Utgifter2022 | B47: Utgift | E47: 6 Finanspolitiska rådet | F47: 10936 | G47: 6 Finanspolitiska rådet | H47: 2 | J47: 6 | K47: 6 | M47: FALSE | N47: =IF(M47=TRUE,FALSE, IF(COUNTIFS($R$10:R47,R47,$H$10:H47,H47,$P$10:P47,P47)=1,TRUE, IF(COUNTIFS(H:H,H47,I:I,">0",P:P,P47)=0,TRUE,FALSE))) -> TRUE | O47: TRUE | P47: 2022 | Q47: Samhällsekonomi och finansförvaltning | R47: Samhällsekonomi och finansförvaltning | S47: Finanspolitiska rådet | T47: =IFERROR(INDEX(Admin!$D$10:$E$100,MATCH(Q47,Admin!$D$10:$D$83,0),2),Q47) -> Samhällsekonomi och finansförvaltning | U47: =INDEX(Befolkning!$F$10:$F$50,MATCH(BudgetData!$P47*1,Befolkning!$B$10:$B$50,0),1) -> 10457147 | V47: 1.045791935 | W47: 0.08714932795
A48: Utgifter2022 | B48: Utgift | E48: 7 Konjunkturinstitutet | F48: 67682 | G48: 7 Konjunkturinstitutet | H48: 2 | J48: 7 | K48: 7 | M48: FALSE | N48: =IF(M48=TRUE,FALSE, IF(COUNTIFS($R$10:R48,R48,$H$10:H48,H48,$P$10:P48,P48)=1,TRUE, IF(COUNTIFS(H:H,H48,I:I,">0",P:P,P48)=0,TRUE,FALSE))) -> TRUE | O48: TRUE | P48: 2022 | Q48: Samhällsekonomi och finansförvaltning | R48: Samhällsekonomi och finansförvaltning | S48: Konjunkturinstitutet | T48: =IFERROR(INDEX(Admin!$D$10:$E$100,MATCH(Q48,Admin!$D$10:$D$83,0),2),Q48) -> Samhällsekonomi och finansförvaltning | U48: =INDEX(Befolkning!$F$10:$F$50,MATCH(BudgetData!$P48*1,Befolkning!$B$10:$B$50,0),1) -> 10457147 | V48: 6.47231984 | W48: 0.5393599867
A49: Utgifter2022 | B49: Utgift | E49: 8 Ekonomistyrningsverket | F49: 210340 | G49: 8 Ekonomistyrningsverket | H49: 2 | J49: 8 | K49: 8 | M49: FALSE | N49: =IF(M49=TRUE,FALSE, IF(COUNTIFS($R$10:R49,R49,$H$10:H49,H49,$P$10:P49,P49)=1,TRUE, IF(COUNTIFS(H:H,H49,I:I,">0",P:P,P49)=0,TRUE,FALSE))) -> TRUE | O49: TRUE | P49: 2022 | Q49: Samhällsekonomi och finansförvaltning | R49: Samhällsekonomi och finansförvaltning | S49: Ekonomistyrningsverket | T49: =IFERROR(INDEX(Admin!$D$10:$E$100,MATCH(Q49,Admin!$D$10:$D$83,0),2),Q49) -> Samhällsekonomi och finansförvaltning | U49: =INDEX(Befolkning!$F$10:$F$50,MATCH(BudgetData!$P49*1,Befolkning!$B$10:$B$50,0),1) -> 10457147 | V49: 20.11447291 | W49: 1.676206075
A50: Utgifter2022 | B50: Utgift | E50: 9 Statistiska centralbyrån | F50: 592901 | G50: 9 Statistiska centralbyrån | H50: 2 | J50: 9 | K50: 9 | M50: FALSE | N50: =IF(M50=TRUE,FALSE, IF(COUNTIFS($R$10:R50,R50,$H$10:H50,H50,$P$10:P50,P50)=1,TRUE, IF(COUNTIFS(H:H,H50,I:I,">0",P:P,P50)=0,TRUE,FALSE))) -> TRUE | O50: TRUE | P50: 2022 | Q50: Samhällsekonomi och finansförvaltning | R50: Samhällsekonomi och finansförvaltning | S50: Statistiska centralbyrån | T50: =IFERROR(INDEX(Admin!$D$10:$E$100,MATCH(Q50,Admin!$D$10:$D$83,0),2),Q50) -> Samhällsekonomi och finansförvaltning | U50: =INDEX(Befolkning!$F$10:$F$50,MATCH(BudgetData!$P50*1,Befolkning!$B$10:$B$50,0),1) -> 10457147 | V50: 56.6981606 | W50: 4.724846716
A51: Utgifter2022 | B51: Utgift | E51: 10 Bidragsfastigheter | F51: 330000 | G51: 10 Bidragsfastigheter | H51: 2 | J51: 10 | K51: 10 | M51: FALSE | N51: =IF(M51=TRUE,FALSE, IF(COUNTIFS($R$10:R51,R51,$H$10:H51,H51,$P$10:P51,P51)=1,TRUE, IF(COUNTIFS(H:H,H51,I:I,">0",P:P,P51)=0,TRUE,FALSE))) -> TRUE | O51: TRUE | P51: 2022 | Q51: Samhällsekonomi och finansförvaltning | R51: Samhällsekonomi och finansförvaltning | S51: Bidragsfastigheter | T51: =IFERROR(INDEX(Admin!$D$10:$E$100,MATCH(Q51,Admin!$D$10:$D$83,0),2),Q51) -> Samhällsekonomi och finansförvaltning | U51: =INDEX(Befolkning!$F$10:$F$50,MATCH(BudgetData!$P51*1,Befolkning!$B$10:$B$50,0),1) -> 10457147 | V51: 31.55736455 | W51: 2.629780379
A52: Utgifter2022 | B52: Utgift | E52: 11 Finansinspektionen | F52: 733787 | G52: 11 Finansinspektionen | H52: 2 | J52: 11 | K52: 11 | M52: FALSE | N52: =IF(M52=TRUE,FALSE, IF(COUNTIFS($R$10:R52,R52,$H$10:H52,H52,$P$10:P52,P52)=1,TRUE, IF(COUNTIFS(H:H,H52,I:I,">0",P:P,P52)=0,TRUE,FALSE))) -> TRUE | O52: TRUE | P52: 2022 | Q52: Samhällsekonomi och finansförvaltning | R52: Samhällsekonomi och finansförvaltning | S52: Finansinspektionen | T52: =IFERROR(INDEX(Admin!$D$10:$E$100,MATCH(Q52,Admin!$D$10:$D$83,0),2),Q52) -> Samhällsekonomi och finansförvaltning | U52: =INDEX(Befolkning!$F$10:$F$50,MATCH(BudgetData!$P52*1,Befolkning!$B$10:$B$50,0),1) -> 10457147 | V52: 70.17086018 | W52: 5.847571682
A53: Utgifter2022 | B53: Utgift | E53: 12 Riksgäldskontoret | F53: 338983 | G53: 12 Riksgäldskontoret | H53: 2 | J53: 12 | K53: 12 | M53: FALSE | N53: =IF(M53=TRUE,FALSE, IF(COUNTIFS($R$10:R53,R53,$H$10:H53,H53,$P$10:P53,P53)=1,TRUE, IF(COUNTIFS(H:H,H53,I:I,">0",P:P,P53)=0,TRUE,FALSE))) -> TRUE | O53: TRUE | P53: 2022 | Q53: Samhällsekonomi och finansförvaltning | R53: Samhällsekonomi och finansförvaltning | S53: Riksgäldskontoret | T53: =IFERROR(INDEX(Admin!$D$10:$E$100,MATCH(Q53,Admin!$D$10:$D$83,0),2),Q53) -> Samhällsekonomi och finansförvaltning | U53: =INDEX(Befolkning!$F$10:$F$50,MATCH(BudgetData!$P53*1,Befolkning!$B$10:$B$50,0),1) -> 10457147 | V53: 32.41639426 | W53: 2.701366188
A54: Utgifter2022 | B54: Utgift | E54: 13 Bokföringsnämnden | F54: 13907 | G54: 13 Bokföringsnämnden | H54: 2 | J54: 13 | K54: 13 | M54: FALSE | N54: =IF(M54=TRUE,FALSE, IF(COUNTIFS($R$10:R54,R54,$H$10:H54,H54,$P$10:P54,P54)=1,TRUE, IF(COUNTIFS(H:H,H54,I:I,">0",P:P,P54)=0,TRUE,FALSE))) -> TRUE | O54: TRUE | P54: 2022 | Q54: Samhällsekonomi och finansförvaltning | R54: Samhällsekonomi och finansförvaltning | S54: Bokföringsnämnden | T54: =IFERROR(INDEX(Admin!$D$10:$E$100,MATCH(Q54,Admin!$D$10:$D$83,0),2),Q54) -> Samhällsekonomi och finansförvaltning | U54: =INDEX(Befolkning!$F$10:$F$50,MATCH(BudgetData!$P54*1,Befolkning!$B$10:$B$50,0),1) -> 10457147 | V54: 1.329903845 | W54: 0.1108253204
A55: Utgifter2022 | B55: Utgift | E55: 14 Vissa garanti- och medlemsavgifter | F55: 290116 | G55: 14 Vissa garanti- och medlemsavgifter | H55: 2 | J55: 14 | K55: 14 | M55: FALSE | N55: =IF(M55=TRUE,FALSE, IF(COUNTIFS($R$10:R55,R55,$H$10:H55,H55,$P$10:P55,P55)=1,TRUE, IF(COUNTIFS(H:H,H55,I:I,">0",P:P,P55)=0,TRUE,FALSE))) -> TRUE | O55: TRUE | P55: 2022 | Q55: Samhällsekonomi och finansförvaltning | R55: Samhällsekonomi och finansförvaltning | S55: Vissa garanti- och medlemsavgifter | T55: =IFERROR(INDEX(Admin!$D$10:$E$100,MATCH(Q55,Admin!$D$10:$D$83,0),2),Q55) -> Samhällsekonomi och finansförvaltning | U55: =INDEX(Befolkning!$F$10:$F$50,MATCH(BudgetData!$P55*1,Befolkning!$B$10:$B$50,0),1) -> 10457147 | V55: 27.74332234 | W55: 2.311943529
A56: Utgifter2022 | B56: Utgift | E56: 15 Statens servicecenter | F56: 882068 | G56: 15 Statens servicecenter | H56: 2 | J56: 15 | K56: 15 | M56: FALSE | N56: =IF(M56=TRUE,FALSE, IF(COUNTIFS($R$10:R56,R56,$H$10:H56,H56,$P$10:P56,P56)=1,TRUE, IF(COUNTIFS(H:H,H56,I:I,">0",P:P,P56)=0,TRUE,FALSE))) -> TRUE | O56: TRUE | P56: 2022 | Q56: Samhällsekonomi och finansförvaltning | R56: Samhällsekonomi och finansförvaltning | S56: Statens servicecenter | T56: =IFERROR(INDEX(Admin!$D$10:$E$100,MATCH(Q56,Admin!$D$10:$D$83,0),2),Q56) -> Samhällsekonomi och finansförvaltning | U56: =INDEX(Befolkning!$F$10:$F$50,MATCH(BudgetData!$P56*1,Befolkning!$B$10:$B$50,0),1) -> 10457147 | V56: 84.35073161 | W56: 7.029227634
A57: Utgifter2022 | B57: Utgift | E57: 16 Finansmarknadsforskning | F57: 49933 | G57: 16 Finansmarknadsforskning | H57: 2 | J57: 16 | K57: 16 | M57: FALSE | N57: =IF(M57=TRUE,FALSE, IF(COUNTIFS($R$10:R57,R57,$H$10:H57,H57,$P$10:P57,P57)=1,TRUE, IF(COUNTIFS(H:H,H57,I:I,">0",P:P,P57)=0,TRUE,FALSE))) -> TRUE | O57: TRUE | P57: 2022 | Q57: Samhällsekonomi och finansförvaltning | R57: Samhällsekonomi och finansförvaltning | S57: Finansmarknadsforskning | T57: =IFERROR(INDEX(Admin!$D$10:$E$100,MATCH(Q57,Admin!$D$10:$D$83,0),2),Q57) -> Samhällsekonomi och finansförvaltning | U57: =INDEX(Befolkning!$F$10:$F$50,MATCH(BudgetData!$P57*1,Befolkning!$B$10:$B$50,0),1) -> 10457147 | V57: 4.775011769 | W57: 0.3979176475
A58: Utgifter2022 | B58: Utgift | E58: 17 Upphandlingsmyndigheten | F58: 111079 | G58: 17 Upphandlingsmyndigheten | H58: 2 | J58: 17 | K58: 17 | M58: FALSE | N58: =IF(M58=TRUE,FALSE, IF(COUNTIFS($R$10:R58,R58,$H$10:H58,H58,$P$10:P58,P58)=1,TRUE, IF(COUNTIFS(H:H,H58,I:I,">0",P:P,P58)=0,TRUE,FALSE))) -> TRUE | O58: TRUE | P58: 2022 | Q58: Samhällsekonomi och finansförvaltning | R58: Samhällsekonomi och finansförvaltning | S58: Upphandlingsmyndigheten | T58: =IFERROR(INDEX(Admin!$D$10:$E$100,MATCH(Q58,Admin!$D$10:$D$83,0),2),Q58) -> Samhällsekonomi och finansförvaltning | U58: =INDEX(Befolkning!$F$10:$F$50,MATCH(BudgetData!$P58*1,Befolkning!$B$10:$B$50,0),1) -> 10457147 | V58: 10.62230453 | W58: 0.8851920446
A59: Utgifter2022 | B59: Utgift | D59: 3 | E59: 3 Skatt, tull och exekution | F59: 12729734 | G59: 3 Skatt, tull och exekution | H59: 3 | K59: 3 | L59: Sum | M59: TRUE | N59: =IF(M59=TRUE,FALSE, IF(COUNTIFS($R$10:R59,R59,$H$10:H59,H59,$P$10:P59,P59)=1,TRUE, IF(COUNTIFS(H:H,H59,I:I,">0",P:P,P59)=0,TRUE,FALSE))) -> FALSE | O59: FALSE | P59: 2022 | Q59: Skatt, tull och exekution | T59: =IFERROR(INDEX(Admin!$D$10:$E$100,MATCH(Q59,Admin!$D$10:$D$83,0),2),Q59) -> Skatt, tull och exekution | U59: =INDEX(Befolkning!$F$10:$F$50,MATCH(BudgetData!$P59*1,Befolkning!$B$10:$B$50,0),1) -> 10457147 | V59: 1217.323807 | W59: 101.4436506
A60: Utgifter2022 | B60: Utgift | E60: 1 Skatteverket | F60: 8202898 | G60: 1 Skatteverket | H60: 3 | J60: 1 | K60: 1 | M60: FALSE | N60: =IF(M60=TRUE,FALSE, IF(COUNTIFS($R$10:R60,R60,$H$10:H60,H60,$P$10:P60,P60)=1,TRUE, IF(COUNTIFS(H:H,H60,I:I,">0",P:P,P60)=0,TRUE,FALSE))) -> TRUE | O60: TRUE | P60: 2022 | Q60: Skatt, tull och exekution | R60: Skatt, tull och exekution | S60: Skatteverket | T60: =IFERROR(INDEX(Admin!$D$10:$E$100,MATCH(Q60,Admin!$D$10:$D$83,0),2),Q60) -> Skatt, tull och exekution | U60: =INDEX(Befolkning!$F$10:$F$50,MATCH(BudgetData!$P60*1,Befolkning!$B$10:$B$50,0),1) -> 10457147 | V60: 784.4298258 | W60: 65.36915215
A61: Utgifter2022 | B61: Utgift | E61: 2 Tullverket | F61: 2381672 | G61: 2 Tullverket | H61: 3 | J61: 2 | K61: 2 | M61: FALSE | N61: =IF(M61=TRUE,FALSE, IF(COUNTIFS($R$10:R61,R61,$H$10:H61,H61,$P$10:P61,P61)=1,TRUE, IF(COUNTIFS(H:H,H61,I:I,">0",P:P,P61)=0,TRUE,FALSE))) -> TRUE | O61: TRUE | P61: 2022 | Q61: Skatt, tull och exekution | R61: Skatt, tull och exekution | S61: Tullverket | T61: =IFERROR(INDEX(Admin!$D$10:$E$100,MATCH(Q61,Admin!$D$10:$D$83,0),2),Q61) -> Skatt, tull och exekution | U61: =INDEX(Befolkning!$F$10:$F$50,MATCH(BudgetData!$P61*1,Befolkning!$B$10:$B$50,0),1) -> 10457147 | V61: 227.7554289 | W61: 18.97961907
A62: Utgifter2022 | B62: Utgift | E62: 3 Kronofogdemyndigheten | F62: 2145164 | G62: 3 Kronofogdemyndigheten | H62: 3 | J62: 3 | K62: 3 | M62: FALSE | N62: =IF(M62=TRUE,FALSE, IF(COUNTIFS($R$10:R62,R62,$H$10:H62,H62,$P$10:P62,P62)=1,TRUE, IF(COUNTIFS(H:H,H62,I:I,">0",P:P,P62)=0,TRUE,FALSE))) -> TRUE | O62: TRUE | P62: 2022 | Q62: Skatt, tull och exekution | R62: Skatt, tull och exekution | S62: Kronofogdemyndigheten | T62: =IFERROR(INDEX(Admin!$D$10:$E$100,MATCH(Q62,Admin!$D$10:$D$83,0),2),Q62) -> Skatt, tull och exekution | U62: =INDEX(Befolkning!$F$10:$F$50,MATCH(BudgetData!$P62*1,Befolkning!$B$10:$B$50,0),1) -> 10457147 | V62: 205.1385526 | W62: 17.09487938
A63: Utgifter2022 | B63: Utgift | D63: 4 | E63: 4 Rättsväsendet | F63: 61688986 | G63: 4 Rättsväsendet | H63: 4 | K63: 4 | L63: Sum | M63: TRUE | N63: =IF(M63=TRUE,FALSE, IF(COUNTIFS($R$10:R63,R63,$H$10:H63,H63,$P$10:P63,P63)=1,TRUE, IF(COUNTIFS(H:H,H63,I:I,">0",P:P,P63)=0,TRUE,FALSE))) -> FALSE | O63: FALSE | P63: 2022 | Q63: Rättsväsendet | T63: =IFERROR(INDEX(Admin!$D$10:$E$100,MATCH(Q63,Admin!$D$10:$D$83,0),2),Q63) -> Rättsväsendet | U63: =INDEX(Befolkning!$F$10:$F$50,MATCH(BudgetData!$P63*1,Befolkning!$B$10:$B$50,0),1) -> 10457147 | V63: 5899.217636 | W63: 491.6014696
A64: Utgifter2022 | B64: Utgift | E64: 1 Polismyndigheten | F64: 32985967 | G64: 1 Polismyndigheten | H64: 4 | J64: 1 | K64: 1 | M64: FALSE | N64: =IF(M64=TRUE,FALSE, IF(COUNTIFS($R$10:R64,R64,$H$10:H64,H64,$P$10:P64,P64)=1,TRUE, IF(COUNTIFS(H:H,H64,I:I,">0",P:P,P64)=0,TRUE,FALSE))) -> TRUE | O64: TRUE | P64: 2022 | Q64: Rättsväsendet | R64: Rättsväsendet | S64: Polismyndigheten | T64: =IFERROR(INDEX(Admin!$D$10:$E$100,MATCH(Q64,Admin!$D$10:$D$83,0),2),Q64) -> Rättsväsendet | U64: =INDEX(Befolkning!$F$10:$F$50,MATCH(BudgetData!$P64*1,Befolkning!$B$10:$B$50,0),1) -> 10457147 | V64: 3154.394502 | W64: 262.8662085
A65: Utgifter2022 | B65: Utgift | E65: 2 Säkerhetspolisen | F65: 1828382 | G65: 2 Säkerhetspolisen | H65: 4 | J65: 2 | K65: 2 | M65: FALSE | N65: =IF(M65=TRUE,FALSE, IF(COUNTIFS($R$10:R65,R65,$H$10:H65,H65,$P$10:P65,P65)=1,TRUE, IF(COUNTIFS(H:H,H65,I:I,">0",P:P,P65)=0,TRUE,FALSE))) -> TRUE | O65: TRUE | P65: 2022 | Q65: Rättsväsendet | R65: Rättsväsendet | S65: Säkerhetspolisen | T65: =IFERROR(INDEX(Admin!$D$10:$E$100,MATCH(Q65,Admin!$D$10:$D$83,0),2),Q65) -> Rättsväsendet | U65: =INDEX(Befolkning!$F$10:$F$50,MATCH(BudgetData!$P65*1,Befolkning!$B$10:$B$50,0),1) -> 10457147 | V65: 174.845204 | W65: 14.57043366
A66: Utgifter2022 | B66: Utgift | E66: 3 Åklagarmyndigheten | F66: 1942249 | G66: 3 Åklagarmyndigheten | H66: 4 | J66: 3 | K66: 3 | M66: FALSE | N66: =IF(M66=TRUE,FALSE, IF(COUNTIFS($R$10:R66,R66,$H$10:H66,H66,$P$10:P66,P66)=1,TRUE, IF(COUNTIFS(H:H,H66,I:I,">0",P:P,P66)=0,TRUE,FALSE))) -> TRUE | O66: TRUE | P66: 2022 | Q66: Rättsväsendet | R66: Rättsväsendet | S66: Åklagarmyndigheten | T66: =IFERROR(INDEX(Admin!$D$10:$E$100,MATCH(Q66,Admin!$D$10:$D$83,0),2),Q66) -> Rättsväsendet | U66: =INDEX(Befolkning!$F$10:$F$50,MATCH(BudgetData!$P66*1,Befolkning!$B$10:$B$50,0),1) -> 10457147 | V66: 185.7341204 | W66: 15.47784337
A67: Utgifter2022 | B67: Utgift | E67: 4 Ekobrottsmyndigheten | F67: 855674 | G67: 4 Ekobrottsmyndigheten | H67: 4 | J67: 4 | K67: 4 | M67: FALSE | N67: =IF(M67=TRUE,FALSE, IF(COUNTIFS($R$10:R67,R67,$H$10:H67,H67,$P$10:P67,P67)=1,TRUE, IF(COUNTIFS(H:H,H67,I:I,">0",P:P,P67)=0,TRUE,FALSE))) -> TRUE | O67: TRUE | P67: 2022 | Q67: Rättsväsendet | R67: Rättsväsendet | S67: Ekobrottsmyndigheten | T67: =IFERROR(INDEX(Admin!$D$10:$E$100,MATCH(Q67,Admin!$D$10:$D$83,0),2),Q67) -> Rättsväsendet | U67: =INDEX(Befolkning!$F$10:$F$50,MATCH(BudgetData!$P67*1,Befolkning!$B$10:$B$50,0),1) -> 10457147 | V67: 81.82671622 | W67: 6.818893018
A68: Utgifter2022 | B68: Utgift | E68: 5 Sveriges Domstolar | F68: 6632674 | G68: 5 Sveriges Domstolar | H68: 4 | J68: 5 | K68: 5 | M68: FALSE | N68: =IF(M68=TRUE,FALSE, IF(COUNTIFS($R$10:R68,R68,$H$10:H68,H68,$P$10:P68,P68)=1,TRUE, IF(COUNTIFS(H:H,H68,I:I,">0",P:P,P68)=0,TRUE,FALSE))) -> TRUE | O68: TRUE | P68: 2022 | Q68: Rättsväsendet | R68: Rättsväsendet | S68: Sveriges Domstolar | T68: =IFERROR(INDEX(Admin!$D$10:$E$100,MATCH(Q68,Admin!$D$10:$D$83,0),2),Q68) -> Rättsväsendet | U68: =INDEX(Befolkning!$F$10:$F$50,MATCH(BudgetData!$P68*1,Befolkning!$B$10:$B$50,0),1) -> 10457147 | V68: 634.2718525 | W68: 52.85598771
A69: Utgifter2022 | B69: Utgift | E69: 6 Kriminalvården | F69: 12162399 | G69: 6 Kriminalvården | H69: 4 | J69: 6 | K69: 6 | M69: FALSE | N69: =IF(M69=TRUE,FALSE, IF(COUNTIFS($R$10:R69,R69,$H$10:H69,H69,$P$10:P69,P69)=1,TRUE, IF(COUNTIFS(H:H,H69,I:I,">0",P:P,P69)=0,TRUE,FALSE))) -> TRUE | O69: TRUE | P69: 2022 | Q69: Rättsväsendet | R69: Rättsväsendet | S69: Kriminalvården | T69: =IFERROR(INDEX(Admin!$D$10:$E$100,MATCH(Q69,Admin!$D$10:$D$83,0),2),Q69) -> Rättsväsendet | U69: =INDEX(Befolkning!$F$10:$F$50,MATCH(BudgetData!$P69*1,Befolkning!$B$10:$B$50,0),1) -> 10457147 | V69: 1163.070482 | W69: 96.92254015
A70: Utgifter2022 | B70: Utgift | E70: 7 Brottsförebyggande rådet | F70: 177371 | G70: 7 Brottsförebyggande rådet | H70: 4 | J70: 7 | K70: 7 | M70: FALSE | N70: =IF(M70=TRUE,FALSE, IF(COUNTIFS($R$10:R70,R70,$H$10:H70,H70,$P$10:P70,P70)=1,TRUE, IF(COUNTIFS(H:H,H70,I:I,">0",P:P,P70)=0,TRUE,FALSE))) -> TRUE | O70: TRUE | P70: 2022 | Q70: Rättsväsendet | R70: Rättsväsendet | S70: Brottsförebyggande rådet | T70: =IFERROR(INDEX(Admin!$D$10:$E$100,MATCH(Q70,Admin!$D$10:$D$83,0),2),Q70) -> Rättsväsendet | U70: =INDEX(Befolkning!$F$10:$F$50,MATCH(BudgetData!$P70*1,Befolkning!$B$10:$B$50,0),1) -> 10457147 | V70: 16.96170093 | W70: 1.413475078
A71: Utgifter2022 | B71: Utgift | E71: 8 Rättsmedicinalverket | F71: 552653 | G71: 8 Rättsmedicinalverket | H71: 4 | J71: 8 | K71: 8 | M71: FALSE | N71: =IF(M71=TRUE,FALSE, IF(COUNTIFS($R$10:R71,R71,$H$10:H71,H71,$P$10:P71,P71)=1,TRUE, IF(COUNTIFS(H:H,H71,I:I,">0",P:P,P71)=0,TRUE,FALSE))) -> TRUE | O71: TRUE | P71: 2022 | Q71: Rättsväsendet | R71: Rättsväsendet | S71: Rättsmedicinalverket | T71: =IFERROR(INDEX(Admin!$D$10:$E$100,MATCH(Q71,Admin!$D$10:$D$83,0),2),Q71) -> Rättsväsendet | U71: =INDEX(Befolkning!$F$10:$F$50,MATCH(BudgetData!$P71*1,Befolkning!$B$10:$B$50,0),1) -> 10457147 | V71: 52.84930966 | W71: 4.404109139
A72: Utgifter2022 | B72: Utgift | E72: 9 Brottsoffermyndigheten | F72: 43962 | G72: 9 Brottsoffermyndigheten | H72: 4 | J72: 9 | K72: 9 | M72: FALSE | N72: =IF(M72=TRUE,FALSE, IF(COUNTIFS($R$10:R72,R72,$H$10:H72,H72,$P$10:P72,P72)=1,TRUE, IF(COUNTIFS(H:H,H72,I:I,">0",P:P,P72)=0,TRUE,FALSE))) -> TRUE | O72: TRUE | P72: 2022 | Q72: Rättsväsendet | R72: Rättsväsendet | S72: Brottsoffermyndigheten | T72: =IFERROR(INDEX(Admin!$D$10:$E$100,MATCH(Q72,Admin!$D$10:$D$83,0),2),Q72) -> Rättsväsendet | U72: =INDEX(Befolkning!$F$10:$F$50,MATCH(BudgetData!$P72*1,Befolkning!$B$10:$B$50,0),1) -> 10457147 | V72: 4.204014728 | W72: 0.3503345607
A73: Utgifter2022 | B73: Utgift | E73: 10 Ersättning för skador på grund av brott | F73: 200953 | G73: 10 Ersättning för skador på grund av brott | H73: 4 | J73: 10 | K73: 10 | M73: FALSE | N73: =IF(M73=TRUE,FALSE, IF(COUNTIFS($R$10:R73,R73,$H$10:H73,H73,$P$10:P73,P73)=1,TRUE, IF(COUNTIFS(H:H,H73,I:I,">0",P:P,P73)=0,TRUE,FALSE))) -> TRUE | O73: TRUE | P73: 2022 | Q73: Rättsväsendet | R73: Rättsväsendet | S73: Ersättning för skador på grund av brott | T73: =IFERROR(INDEX(Admin!$D$10:$E$100,MATCH(Q73,Admin!$D$10:$D$83,0),2),Q73) -> Rättsväsendet | U73: =INDEX(Befolkning!$F$10:$F$50,MATCH(BudgetData!$P73*1,Befolkning!$B$10:$B$50,0),1) -> 10457147 | V73: 19.21680933 | W73: =V73/12 -> 1.601400777
A74: Utgifter2022 | B74: Utgift | E74: 11 Rättsliga biträden m.m. | F74: 3915857 | G74: 11 Rättsliga biträden m.m. | H74: 4 | J74: 11 | K74: 11 | M74: FALSE | N74: =IF(M74=TRUE,FALSE, IF(COUNTIFS($R$10:R74,R74,$H$10:H74,H74,$P$10:P74,P74)=1,TRUE, IF(COUNTIFS(H:H,H74,I:I,">0",P:P,P74)=0,TRUE,FALSE))) -> TRUE | O74: TRUE | P74: 2022 | Q74: Rättsväsendet | R74: Rättsväsendet | S74: Rättsliga biträden m.m. | T74: =IFERROR(INDEX(Admin!$D$10:$E$100,MATCH(Q74,Admin!$D$10:$D$83,0),2),Q74) -> Rättsväsendet | U74: =INDEX(Befolkning!$F$10:$F$50,MATCH(BudgetData!$P74*1,Befolkning!$B$10:$B$50,0),1) -> 10457147 | V74: 374.4670511 | W74: 31.20558759
A75: Utgifter2022 | B75: Utgift | E75: 12 Kostnader för vissa skaderegleringar m.m. | F75: 39987 | G75: =IF(B75="Utgift",E75,D75&" "&E75) -> 12 Kostnader för vissa skaderegleringar m.m. | H75: =IF(B75="Utgift",IF(D75="",H74,D75),IF(B75="Inkomst",IF(C75="",H74,C75),"")) -> 4 | I75: =IF(B75="Utgift",IF(D75<>"","", IF(IFERROR(LEFT(E76,FIND(" ",E76)-1)*1,"")=1, IFERROR(LEFT(E75,FIND(" ",E75)-1)*1,""),"")),IF(C75="","",C75)) ->  | J75: =IF(D75<>"","",IF(I75="",IFERROR(LEFT(E75,FIND(" ",E75)-1)*1,""),"")) -> 12 | K75: =IFERROR(LEFT(G75,FIND(" ",G75)-1)*1,"") -> 12 | L75: =IF(B75="Utgift",IF(OR(LEFT(E75,5)="Summa",K76=1),"Sum",""),IF(B75="Inkomst",IF(C75="","","Sum"))) ->  | M75: =IF(D75<>"",TRUE,FALSE) -> FALSE | N75: =IF(M75=TRUE,FALSE, IF(COUNTIFS($R$10:R75,R75,$H$10:H75,H75,$P$10:P75,P75)=1,TRUE, IF(COUNTIFS(H:H,H75,I:I,">0",P:P,P75)=0,TRUE,FALSE))) -> TRUE | O75: =+IF(J75="",FALSE,TRUE) -> TRUE | P75: 2022 | Q75: =IF(B75="Utgift",TRIM(IF(D75="",Q74,SUBSTITUTE(E75,D75&" ",""))),IF(C75="",Q76,IF(C75=ROUND(C75/1000,0)*1000,D75,Q76))) -> Rättsväsendet | R75: =IF(B75="Utgift",TRIM(IF(D75="",IF(L75="Sum",SUBSTITUTE(G75,I75&" ",""),IF(R74="",Q75,R74)),"")),IF(L75="Sum",D75,R74)) -> Rättsväsendet | S75: Kostnader för vissa skaderegleringar m.m. | T75: =IFERROR(INDEX(Admin!$D$10:$E$100,MATCH(Q75,Admin!$D$10:$D$83,0),2),Q75) -> Rättsväsendet | U75: =INDEX(Befolkning!$F$10:$F$50,MATCH(BudgetData!$P75*1,Befolkning!$B$10:$B$50,0),1) -> 10457147 | V75: =F75/(U75/1000) -> 3.823891928 | W75: 0.3186576606
A76: Utgifter2022 | B76: Utgift | E76: 13 Avgifter till vissa internationella sammanslutningar | F76: 19174 | G76: 13 Avgifter till vissa internationella sammanslutningar | H76: 4 | J76: 13 | K76: 13 | M76: FALSE | N76: =IF(M76=TRUE,FALSE, IF(COUNTIFS($R$10:R76,R76,$H$10:H76,H76,$P$10:P76,P76)=1,TRUE, IF(COUNTIFS(H:H,H76,I:I,">0",P:P,P76)=0,TRUE,FALSE))) -> TRUE | O76: TRUE | P76: 2022 | Q76: Rättsväsendet | R76: Rättsväsendet | S76: =+IF(K76="","",IF(L76="Sum","", IF(RIGHT(IF(MID(E76,2,1)=" ",RIGHT(E76,LEN(E76)-2),IF(MID(E76,3,1)=" ",RIGHT(E76,LEN(E76)-3),E76)),1)=" ", LEFT(IF(MID(E76,2,1)=" ",RIGHT(E76,LEN(E76)-2),IF(MID(E76,3,1)=" ",RIGHT(E76,LEN(E76)-3),E76)), LEN(IF(MID(E76,2,1)=" ",RIGHT(E76,LEN(E76)-2),IF(MID(E76,3,1)=" ",RIGHT(E76,LEN(E76)-3),E76)))-1), IF(MID(E76,2,1)=" ",RIGHT(E76,LEN(E76)-2),IF(MID(E76,3,1)=" ",RIGHT(E76,LEN(E76)-3),E76))) )) -> Avgifter till vissa internationella sammanslutningar | T76: =IFERROR(INDEX(Admin!$D$10:$E$100,MATCH(Q76,Admin!$D$10:$D$83,0),2),Q76) -> Rättsväsendet | U76: =INDEX(Befolkning!$F$10:$F$50,MATCH(BudgetData!$P76*1,Befolkning!$B$10:$B$50,0),1) -> 10457147 | V76: 1.833578509 | W76: 0.152798209
A77: Utgifter2022 | B77: Utgift | E77: 14 Bidrag till lokalt brottsförebyggande arbete | F77: 70157 | G77: 14 Bidrag till lokalt brottsförebyggande arbete | H77: 4 | J77: 14 | K77: 14 | M77: FALSE | N77: =IF(M77=TRUE,FALSE, IF(COUNTIFS($R$10:R77,R77,$H$10:H77,H77,$P$10:P77,P77)=1,TRUE, IF(COUNTIFS(H:H,H77,I:I,">0",P:P,P77)=0,TRUE,FALSE))) -> TRUE | O77: TRUE | P77: 2022 | Q77: Rättsväsendet | R77: Rättsväsendet | S77: Bidrag till lokalt brottsförebyggande arbete | T77: =IFERROR(INDEX(Admin!$D$10:$E$100,MATCH(Q77,Admin!$D$10:$D$83,0),2),Q77) -> Rättsväsendet | U77: =INDEX(Befolkning!$F$10:$F$50,MATCH(BudgetData!$P77*1,Befolkning!$B$10:$B$50,0),1) -> 10457147 | V77: 6.709000074 | W77: 0.5590833395
A78: Utgifter2022 | B78: Utgift | E78: 15 Säkerhets- och integritetsskyddsnämnden | F78: 24804 | G78: 15 Säkerhets- och integritetsskyddsnämnden | H78: 4 | J78: 15 | K78: 15 | M78: FALSE | N78: =IF(M78=TRUE,FALSE, IF(COUNTIFS($R$10:R78,R78,$H$10:H78,H78,$P$10:P78,P78)=1,TRUE, IF(COUNTIFS(H:H,H78,I:I,">0",P:P,P78)=0,TRUE,FALSE))) -> TRUE | O78: TRUE | P78: 2022 | Q78: Rättsväsendet | R78: Rättsväsendet | S78: Säkerhets- och integritetsskyddsnämnden | T78: =IFERROR(INDEX(Admin!$D$10:$E$100,MATCH(Q78,Admin!$D$10:$D$83,0),2),Q78) -> Rättsväsendet | U78: =INDEX(Befolkning!$F$10:$F$50,MATCH(BudgetData!$P78*1,Befolkning!$B$10:$B$50,0),1) -> 10457147 | V78: 2.371966273 | W78: 0.1976638561
A79: Utgifter2022 | B79: Utgift | E79: 16 Domarnämnden | F79: 9823 | G79: 16 Domarnämnden | H79: 4 | J79: 16 | K79: 16 | M79: FALSE | N79: =IF(M79=TRUE,FALSE, IF(COUNTIFS($R$10:R79,R79,$H$10:H79,H79,$P$10:P79,P79)=1,TRUE, IF(COUNTIFS(H:H,H79,I:I,">0",P:P,P79)=0,TRUE,FALSE))) -> TRUE | O79: TRUE | P79: 2022 | Q79: Rättsväsendet | R79: Rättsväsendet | S79: Domarnämnden | T79: =IFERROR(INDEX(Admin!$D$10:$E$100,MATCH(Q79,Admin!$D$10:$D$83,0),2),Q79) -> Rättsväsendet | U79: =INDEX(Befolkning!$F$10:$F$50,MATCH(BudgetData!$P79*1,Befolkning!$B$10:$B$50,0),1) -> 10457147 | V79: 0.9393575513 | W79: 0.07827979595
A80: Utgifter2022 | B80: Utgift | E80: 17 Från EU-budgeten finansierade insatser avseende EU:s inre säkerhet, gränsförvaltning och visering | F80: 226900 | G80: 17 Från EU-budgeten finansierade insatser avseende EU:s inre säkerhet, gränsförvaltning och visering | H80: 4 | J80: 17 | K80: 17 | M80: FALSE | N80: =IF(M80=TRUE,FALSE, IF(COUNTIFS($R$10:R80,R80,$H$10:H80,H80,$P$10:P80,P80)=1,TRUE, IF(COUNTIFS(H:H,H80,I:I,">0",P:P,P80)=0,TRUE,FALSE))) -> TRUE | O80: TRUE | P80: 2022 | Q80: Rättsväsendet | R80: Rättsväsendet | S80: Från EU-budgeten finansierade insatser avseende EU:s inre säkerhet, gränsförvaltning och visering | T80: =IFERROR(INDEX(Admin!$D$10:$E$100,MATCH(Q80,Admin!$D$10:$D$83,0),2),Q80) -> Rättsväsendet | U80: =INDEX(Befolkning!$F$10:$F$50,MATCH(BudgetData!$P80*1,Befolkning!$B$10:$B$50,0),1) -> 10457147 | V80: 21.69807884 | W80: 1.808173236
A81: Utgifter2022 | B81: Utgift | D81: 5 | E81: 5 Internationell samverkan | F81: 2235117 | G81: 5 Internationell samverkan | H81: 5 | K81: 5 | L81: Sum | M81: TRUE | N81: =IF(M81=TRUE,FALSE, IF(COUNTIFS($R$10:R81,R81,$H$10:H81,H81,$P$10:P81,P81)=1,TRUE, IF(COUNTIFS(H:H,H81,I:I,">0",P:P,P81)=0,TRUE,FALSE))) -> FALSE | O81: FALSE | P81: =IF(B81="Utgift",+SUBSTITUTE(A81,"Utgifter","")*1,SUBSTITUTE(A81,"Inkomst","")*1) -> 2022 | Q81: Internationell samverkan | T81: =IFERROR(INDEX(Admin!$D$10:$E$100,MATCH(Q81,Admin!$D$10:$D$83,0),2),Q81) -> Internationell samverkan | U81: =INDEX(Befolkning!$F$10:$F$50,MATCH(BudgetData!$P81*1,Befolkning!$B$10:$B$50,0),1) -> 10457147 | V81: 213.740612 | W81: 17.81171767
A82: Utgifter2022 | B82: Utgift | E82: 1 Avgifter till internationella organisationer | F82: 1533554 | G82: 1 Avgifter till internationella organisationer | H82: 5 | J82: 1 | K82: 1 | M82: FALSE | N82: =IF(M82=TRUE,FALSE, IF(COUNTIFS($R$10:R82,R82,$H$10:H82,H82,$P$10:P82,P82)=1,TRUE, IF(COUNTIFS(H:H,H82,I:I,">0",P:P,P82)=0,TRUE,FALSE))) -> TRUE | O82: TRUE | P82: 2022 | Q82: Internationell samverkan | R82: Internationell samverkan | S82: Avgifter till internationella organisationer | T82: =IFERROR(INDEX(Admin!$D$10:$E$100,MATCH(Q82,Admin!$D$10:$D$83,0),2),Q82) -> Internationell samverkan | U82: =INDEX(Befolkning!$F$10:$F$50,MATCH(BudgetData!$P82*1,Befolkning!$B$10:$B$50,0),1) -> 10457147 | V82: 146.6512807 | W82: 12.22094006
A83: Utgifter2022 | B83: Utgift | E83: 2 Freds- och säkerhetsfrämjande verksamhet | F83: 181848 | G83: 2 Freds- och säkerhetsfrämjande verksamhet | H83: 5 | J83: 2 | K83: 2 | M83: FALSE | N83: =IF(M83=TRUE,FALSE, IF(COUNTIFS($R$10:R83,R83,$H$10:H83,H83,$P$10:P83,P83)=1,TRUE, IF(COUNTIFS(H:H,H83,I:I,">0",P:P,P83)=0,TRUE,FALSE))) -> TRUE | O83: TRUE | P83: 2022 | Q83: Internationell samverkan | R83: Internationell samverkan | S83: Freds- och säkerhetsfrämjande verksamhet | T83: =IFERROR(INDEX(Admin!$D$10:$E$100,MATCH(Q83,Admin!$D$10:$D$83,0),2),Q83) -> Internationell samverkan | U83: =INDEX(Befolkning!$F$10:$F$50,MATCH(BudgetData!$P83*1,Befolkning!$B$10:$B$50,0),1) -> 10457147 | V83: 17.38982918 | W83: 1.449152431
A84: Utgifter2022 | B84: Utgift | E84: 3 Nordiskt samarbete | F84: 13595 | G84: 3 Nordiskt samarbete | H84: 5 | J84: 3 | K84: 3 | M84: FALSE | N84: =IF(M84=TRUE,FALSE, IF(COUNTIFS($R$10:R84,R84,$H$10:H84,H84,$P$10:P84,P84)=1,TRUE, IF(COUNTIFS(H:H,H84,I:I,">0",P:P,P84)=0,TRUE,FALSE))) -> TRUE | O84: TRUE | P84: 2022 | Q84: Internationell samverkan | R84: Internationell samverkan | S84: Nordiskt samarbete | T84: =IFERROR(INDEX(Admin!$D$10:$E$100,MATCH(Q84,Admin!$D$10:$D$83,0),2),Q84) -> Internationell samverkan | U84: =INDEX(Befolkning!$F$10:$F$50,MATCH(BudgetData!$P84*1,Befolkning!$B$10:$B$50,0),1) -> 10457147 | V84: 1.300067791 | W84: 0.1083389826
A85: Utgifter2022 | B85: Utgift | E85: 4 Ekonomiskt bistånd till enskilda utomlands samt diverse kostnader för | F85: 4826 | G85: 4 Ekonomiskt bistånd till enskilda utomlands samt diverse kostnader för | H85: 5 | J85: 4 | K85: 4 | M85: FALSE | N85: =IF(M85=TRUE,FALSE, IF(COUNTIFS($R$10:R85,R85,$H$10:H85,H85,$P$10:P85,P85)=1,TRUE, IF(COUNTIFS(H:H,H85,I:I,">0",P:P,P85)=0,TRUE,FALSE))) -> TRUE | O85: TRUE | P85: 2022 | Q85: Internationell samverkan | R85: Internationell samverkan | S85: Ekonomiskt bistånd till enskilda utomlands samt diverse kostnader för | T85: =IFERROR(INDEX(Admin!$D$10:$E$100,MATCH(Q85,Admin!$D$10:$D$83,0),2),Q85) -> Internationell samverkan | U85: =INDEX(Befolkning!$F$10:$F$50,MATCH(BudgetData!$P85*1,Befolkning!$B$10:$B$50,0),1) -> 10457147 | V85: 0.4615025494 | W85: 0.03845854578
A86: Utgifter2022 | B86: Utgift | E86: rättsväsendet | G86: rättsväsendet | H86: 5 | M86: FALSE | N86: =IF(M86=TRUE,FALSE, IF(COUNTIFS($R$10:R86,R86,$H$10:H86,H86,$P$10:P86,P86)=1,TRUE, IF(COUNTIFS(H:H,H86,I:I,">0",P:P,P86)=0,TRUE,FALSE))) -> TRUE | O86: FALSE | P86: 2022 | Q86: Internationell samverkan | R86: Internationell samverkan | T86: =IFERROR(INDEX(Admin!$D$10:$E$100,MATCH(Q86,Admin!$D$10:$D$83,0),2),Q86) -> Internationell samverkan | U86: =INDEX(Befolkning!$F$10:$F$50,MATCH(BudgetData!$P86*1,Befolkning!$B$10:$B$50,0),1) -> 10457147 | V86: 0 | W86: 0
A87: Utgifter2022 | B87: Utgift | E87: 5 Inspektionen för strategiska produkter | F87: 52040 | G87: 5 Inspektionen för strategiska produkter | H87: 5 | J87: 5 | K87: 5 | M87: FALSE | N87: =IF(M87=TRUE,FALSE, IF(COUNTIFS($R$10:R87,R87,$H$10:H87,H87,$P$10:P87,P87)=1,TRUE, IF(COUNTIFS(H:H,H87,I:I,">0",P:P,P87)=0,TRUE,FALSE))) -> TRUE | O87: TRUE | P87: 2022 | Q87: Internationell samverkan | R87: Internationell samverkan | S87: Inspektionen för strategiska produkter | T87: =IFERROR(INDEX(Admin!$D$10:$E$100,MATCH(Q87,Admin!$D$10:$D$83,0),2),Q87) -> Internationell samverkan | U87: =INDEX(Befolkning!$F$10:$F$50,MATCH(BudgetData!$P87*1,Befolkning!$B$10:$B$50,0),1) -> 10457147 | V87: 4.976500761 | W87: 0.4147083967
A88: Utgifter2022 | B88: Utgift | E88: 6 Forskning, utredningar och andra insatser rörande säkerhetspolitik, nedrustning och icke-spridning | F88: 79358 | G88: 6 Forskning, utredningar och andra insatser rörande säkerhetspolitik, nedrustning och icke-spridning | H88: 5 | J88: 6 | K88: 6 | M88: FALSE | N88: =IF(M88=TRUE,FALSE, IF(COUNTIFS($R$10:R88,R88,$H$10:H88,H88,$P$10:P88,P88)=1,TRUE, IF(COUNTIFS(H:H,H88,I:I,">0",P:P,P88)=0,TRUE,FALSE))) -> TRUE | O88: TRUE | P88: 2022 | Q88: Internationell samverkan | R88: Internationell samverkan | S88: Forskning, utredningar och andra insatser rörande säkerhetspolitik, nedrustning och icke-spridning | T88: =IFERROR(INDEX(Admin!$D$10:$E$100,MATCH(Q88,Admin!$D$10:$D$83,0),2),Q88) -> Internationell samverkan | U88: =INDEX(Befolkning!$F$10:$F$50,MATCH(BudgetData!$P88*1,Befolkning!$B$10:$B$50,0),1) -> 10457147 | V88: 7.588876775 | W88: 0.6324063979
A89: Utgifter2022 | B89: Utgift | E89: 7 Bidrag till Stockholms internationella fredsforskningsinstitut (SIPRI) | F89: 28402 | G89: 7 Bidrag till Stockholms internationella fredsforskningsinstitut (SIPRI) | H89: 5 | J89: 7 | K89: 7 | M89: FALSE | N89: =IF(M89=TRUE,FALSE, IF(COUNTIFS($R$10:R89,R89,$H$10:H89,H89,$P$10:P89,P89)=1,TRUE, IF(COUNTIFS(H:H,H89,I:I,">0",P:P,P89)=0,TRUE,FALSE))) -> TRUE | O89: TRUE | P89: 2022 | Q89: Internationell samverkan | R89: Internationell samverkan | S89: Bidrag till Stockholms internationella fredsforskningsinstitut (SIPRI) | T89: =IFERROR(INDEX(Admin!$D$10:$E$100,MATCH(Q89,Admin!$D$10:$D$83,0),2),Q89) -> Internationell samverkan | U89: =INDEX(Befolkning!$F$10:$F$50,MATCH(BudgetData!$P89*1,Befolkning!$B$10:$B$50,0),1) -> 10457147 | V89: 2.716037175 | W89: 0.2263364313
A90: Utgifter2022 | B90: Utgift | E90: 8 Bidrag till Utrikespolitiska institutet (UI) | F90: 19175 | G90: 8 Bidrag till Utrikespolitiska institutet (UI) | H90: 5 | J90: 8 | K90: 8 | M90: FALSE | N90: =IF(M90=TRUE,FALSE, IF(COUNTIFS($R$10:R90,R90,$H$10:H90,H90,$P$10:P90,P90)=1,TRUE, IF(COUNTIFS(H:H,H90,I:I,">0",P:P,P90)=0,TRUE,FALSE))) -> TRUE | O90: TRUE | P90: 2022 | Q90: Internationell samverkan | R90: Internationell samverkan | S90: Bidrag till Utrikespolitiska institutet (UI) | T90: =IFERROR(INDEX(Admin!$D$10:$E$100,MATCH(Q90,Admin!$D$10:$D$83,0),2),Q90) -> Internationell samverkan | U90: =INDEX(Befolkning!$F$10:$F$50,MATCH(BudgetData!$P90*1,Befolkning!$B$10:$B$50,0),1) -> 10457147 | V90: 1.833674137 | W90: 0.1528061781
A91: Utgifter2022 | B91: Utgift | E91: 9 Svenska institutet | F91: 131629 | G91: 9 Svenska institutet | H91: 5 | J91: 9 | K91: 9 | M91: FALSE | N91: =IF(M91=TRUE,FALSE, IF(COUNTIFS($R$10:R91,R91,$H$10:H91,H91,$P$10:P91,P91)=1,TRUE, IF(COUNTIFS(H:H,H91,I:I,">0",P:P,P91)=0,TRUE,FALSE))) -> TRUE | O91: TRUE | P91: 2022 | Q91: Internationell samverkan | R91: Internationell samverkan | S91: Svenska institutet | T91: =IFERROR(INDEX(Admin!$D$10:$E$100,MATCH(Q91,Admin!$D$10:$D$83,0),2),Q91) -> Internationell samverkan | U91: =INDEX(Befolkning!$F$10:$F$50,MATCH(BudgetData!$P91*1,Befolkning!$B$10:$B$50,0),1) -> 10457147 | V91: 12.58746769 | W91: 1.048955641
A92: Utgifter2022 | B92: Utgift | E92: 10 Information om Sverige i utlandet | F92: 15475 | G92: 10 Information om Sverige i utlandet | H92: 5 | J92: 10 | K92: 10 | M92: FALSE | N92: =IF(M92=TRUE,FALSE, IF(COUNTIFS($R$10:R92,R92,$H$10:H92,H92,$P$10:P92,P92)=1,TRUE, IF(COUNTIFS(H:H,H92,I:I,">0",P:P,P92)=0,TRUE,FALSE))) -> TRUE | O92: TRUE | P92: 2022 | Q92: Internationell samverkan | R92: Internationell samverkan | S92: Information om Sverige i utlandet | T92: =IFERROR(INDEX(Admin!$D$10:$E$100,MATCH(Q92,Admin!$D$10:$D$83,0),2),Q92) -> Internationell samverkan | U92: =INDEX(Befolkning!$F$10:$F$50,MATCH(BudgetData!$P92*1,Befolkning!$B$10:$B$50,0),1) -> 10457147 | V92: 1.47984914 | W92: 0.1233207617
A93: Utgifter2022 | B93: Utgift | E93: 11 Samarbete inom Östersjöregionen | F93: 175215 | G93: 11 Samarbete inom Östersjöregionen | H93: 5 | J93: 11 | K93: 11 | M93: FALSE | N93: =IF(M93=TRUE,FALSE, IF(COUNTIFS($R$10:R93,R93,$H$10:H93,H93,$P$10:P93,P93)=1,TRUE, IF(COUNTIFS(H:H,H93,I:I,">0",P:P,P93)=0,TRUE,FALSE))) -> TRUE | O93: TRUE | P93: 2022 | Q93: Internationell samverkan | R93: Internationell samverkan | S93: Samarbete inom Östersjöregionen | T93: =IFERROR(INDEX(Admin!$D$10:$E$100,MATCH(Q93,Admin!$D$10:$D$83,0),2),Q93) -> Internationell samverkan | U93: =INDEX(Befolkning!$F$10:$F$50,MATCH(BudgetData!$P93*1,Befolkning!$B$10:$B$50,0),1) -> 10457147 | V93: 16.75552615 | W93: 1.396293846
A94: Utgifter2022 | B94: Utgift | D94: 6 | E94: 6 Försvar och samhällets krisberedskap | F94: 76525799 | G94: 6 Försvar och samhällets krisberedskap | H94: 6 | K94: 6 | L94: Sum | M94: TRUE | N94: =IF(M94=TRUE,FALSE, IF(COUNTIFS($R$10:R94,R94,$H$10:H94,H94,$P$10:P94,P94)=1,TRUE, IF(COUNTIFS(H:H,H94,I:I,">0",P:P,P94)=0,TRUE,FALSE))) -> FALSE | O94: FALSE | P94: 2022 | Q94: Försvar och samhällets krisberedskap | T94: =IFERROR(INDEX(Admin!$D$10:$E$100,MATCH(Q94,Admin!$D$10:$D$83,0),2),Q94) -> Försvar och samhällets krisberedskap | U94: =INDEX(Befolkning!$F$10:$F$50,MATCH(BudgetData!$P94*1,Befolkning!$B$10:$B$50,0),1) -> 10457147 | V94: 7318.037989 | W94: 609.8364991
A95: Utgifter2022 | B95: Utgift | E95: 1 Försvar | F95: 70841326 | G95: 1 Försvar | H95: 6 | I95: 1 | K95: 1 | L95: Sum | M95: FALSE | N95: =IF(M95=TRUE,FALSE, IF(COUNTIFS($R$10:R95,R95,$H$10:H95,H95,$P$10:P95,P95)=1,TRUE, IF(COUNTIFS(H:H,H95,I:I,">0",P:P,P95)=0,TRUE,FALSE))) -> TRUE | O95: FALSE | P95: 2022 | Q95: Försvar och samhällets krisberedskap | R95: Försvar | T95: =IFERROR(INDEX(Admin!$D$10:$E$100,MATCH(Q95,Admin!$D$10:$D$83,0),2),Q95) -> Försvar och samhällets krisberedskap | U95: =INDEX(Befolkning!$F$10:$F$50,MATCH(BudgetData!$P95*1,Befolkning!$B$10:$B$50,0),1) -> 10457147 | V95: 6774.441059 | W95: 564.5367549
A96: Utgifter2022 | B96: Utgift | E96: 1 Förbandsverksamhet och beredskap | F96: 44207502 | G96: 1 Förbandsverksamhet och beredskap | H96: 6 | J96: 1 | K96: 1 | M96: FALSE | N96: =IF(M96=TRUE,FALSE, IF(COUNTIFS($R$10:R96,R96,$H$10:H96,H96,$P$10:P96,P96)=1,TRUE, IF(COUNTIFS(H:H,H96,I:I,">0",P:P,P96)=0,TRUE,FALSE))) -> FALSE | O96: TRUE | P96: 2022 | Q96: Försvar och samhällets krisberedskap | R96: Försvar | S96: Förbandsverksamhet och beredskap | T96: =IFERROR(INDEX(Admin!$D$10:$E$100,MATCH(Q96,Admin!$D$10:$D$83,0),2),Q96) -> Försvar och samhällets krisberedskap | U96: =INDEX(Befolkning!$F$10:$F$50,MATCH(BudgetData!$P96*1,Befolkning!$B$10:$B$50,0),1) -> 10457147 | V96: 4227.491686 | W96: 352.2909738
A97: Utgifter2022 | B97: Utgift | E97: 2 Försvarsmaktens insatser internationellt | F97: 1476513 | G97: 2 Försvarsmaktens insatser internationellt | H97: 6 | J97: 2 | K97: 2 | M97: FALSE | N97: =IF(M97=TRUE,FALSE, IF(COUNTIFS($R$10:R97,R97,$H$10:H97,H97,$P$10:P97,P97)=1,TRUE, IF(COUNTIFS(H:H,H97,I:I,">0",P:P,P97)=0,TRUE,FALSE))) -> FALSE | O97: TRUE | P97: 2022 | Q97: Försvar och samhällets krisberedskap | R97: Försvar | S97: Försvarsmaktens insatser internationellt | T97: =IFERROR(INDEX(Admin!$D$10:$E$100,MATCH(Q97,Admin!$D$10:$D$83,0),2),Q97) -> Försvar och samhällets krisberedskap | U97: =INDEX(Befolkning!$F$10:$F$50,MATCH(BudgetData!$P97*1,Befolkning!$B$10:$B$50,0),1) -> 10457147 | V97: 141.1965424 | W97: 11.76637854
A98: Utgifter2022 | B98: Utgift | E98: 3 Anskaffning av materiel och anläggningar | F98: 19802213 | G98: 3 Anskaffning av materiel och anläggningar | H98: 6 | J98: 3 | K98: 3 | M98: FALSE | N98: =IF(M98=TRUE,FALSE, IF(COUNTIFS($R$10:R98,R98,$H$10:H98,H98,$P$10:P98,P98)=1,TRUE, IF(COUNTIFS(H:H,H98,I:I,">0",P:P,P98)=0,TRUE,FALSE))) -> FALSE | O98: TRUE | P98: 2022 | Q98: Försvar och samhällets krisberedskap | R98: Försvar | S98: Anskaffning av materiel och anläggningar | T98: =IFERROR(INDEX(Admin!$D$10:$E$100,MATCH(Q98,Admin!$D$10:$D$83,0),2),Q98) -> Försvar och samhällets krisberedskap | U98: =INDEX(Befolkning!$F$10:$F$50,MATCH(BudgetData!$P98*1,Befolkning!$B$10:$B$50,0),1) -> 10457147 | V98: 1893.653498 | W98: 157.8044582
A99: Utgifter2022 | B99: Utgift | E99: 4 Forskning och teknikutveckling | F99: 831905 | G99: 4 Forskning och teknikutveckling | H99: 6 | J99: 4 | K99: 4 | M99: FALSE | N99: =IF(M99=TRUE,FALSE, IF(COUNTIFS($R$10:R99,R99,$H$10:H99,H99,$P$10:P99,P99)=1,TRUE, IF(COUNTIFS(H:H,H99,I:I,">0",P:P,P99)=0,TRUE,FALSE))) -> FALSE | O99: TRUE | P99: 2022 | Q99: Försvar och samhällets krisberedskap | R99: Försvar | S99: Forskning och teknikutveckling | T99: =IFERROR(INDEX(Admin!$D$10:$E$100,MATCH(Q99,Admin!$D$10:$D$83,0),2),Q99) -> Försvar och samhällets krisberedskap | U99: =INDEX(Befolkning!$F$10:$F$50,MATCH(BudgetData!$P99*1,Befolkning!$B$10:$B$50,0),1) -> 10457147 | V99: 79.55372531 | W99: 6.629477109
A100: Utgifter2022 | B100: Utgift | E100: 5 Statens inspektion för försvarsunderrättelseverksamheten | F100: 11463 | G100: 5 Statens inspektion för försvarsunderrättelseverksamheten | H100: 6 | J100: 5 | K100: 5 | M100: FALSE | N100: =IF(M100=TRUE,FALSE, IF(COUNTIFS($R$10:R100,R100,$H$10:H100,H100,$P$10:P100,P100)=1,TRUE, IF(COUNTIFS(H:H,H100,I:I,">0",P:P,P100)=0,TRUE,FALSE))) -> FALSE | O100: TRUE | P100: 2022 | Q100: Försvar och samhällets krisberedskap | R100: Försvar | S100: Statens inspektion för försvarsunderrättelseverksamheten | T100: =IFERROR(INDEX(Admin!$D$10:$E$100,MATCH(Q100,Admin!$D$10:$D$83,0),2),Q100) -> Försvar och samhällets krisberedskap | U100: =INDEX(Befolkning!$F$10:$F$50,MATCH(BudgetData!$P100*1,Befolkning!$B$10:$B$50,0),1) -> 10457147 | V100: 1.09618809 | W100: 0.09134900753
A101: Utgifter2022 | B101: Utgift | E101: 6 Totalförsvarets plikt- och prövningsverk | F101: 333842 | G101: 6 Totalförsvarets plikt- och prövningsverk | H101: 6 | J101: 6 | K101: 6 | M101: FALSE | N101: =IF(M101=TRUE,FALSE, IF(COUNTIFS($R$10:R101,R101,$H$10:H101,H101,$P$10:P101,P101)=1,TRUE, IF(COUNTIFS(H:H,H101,I:I,">0",P:P,P101)=0,TRUE,FALSE))) -> FALSE | O101: TRUE | P101: 2022 | Q101: Försvar och samhällets krisberedskap | R101: Försvar | S101: Totalförsvarets plikt- och prövningsverk | T101: =IFERROR(INDEX(Admin!$D$10:$E$100,MATCH(Q101,Admin!$D$10:$D$83,0),2),Q101) -> Försvar och samhällets krisberedskap | U101: =INDEX(Befolkning!$F$10:$F$50,MATCH(BudgetData!$P101*1,Befolkning!$B$10:$B$50,0),1) -> 10457147 | V101: 31.92476877 | W101: 2.660397398
A102: Utgifter2022 | B102: Utgift | E102: 7 Officersutbildning m.m. | F102: 262289 | G102: 7 Officersutbildning m.m. | H102: 6 | J102: 7 | K102: 7 | M102: FALSE | N102: =IF(M102=TRUE,FALSE, IF(COUNTIFS($R$10:R102,R102,$H$10:H102,H102,$P$10:P102,P102)=1,TRUE, IF(COUNTIFS(H:H,H102,I:I,">0",P:P,P102)=0,TRUE,FALSE))) -> FALSE | O102: TRUE | P102: 2022 | Q102: Försvar och samhällets krisberedskap | R102: Försvar | S102: Officersutbildning m.m. | T102: =IFERROR(INDEX(Admin!$D$10:$E$100,MATCH(Q102,Admin!$D$10:$D$83,0),2),Q102) -> Försvar och samhällets krisberedskap | U102: =INDEX(Befolkning!$F$10:$F$50,MATCH(BudgetData!$P102*1,Befolkning!$B$10:$B$50,0),1) -> 10457147 | V102: 25.08227148 | W102: 2.09018929
A103: Utgifter2022 | B103: Utgift | E103: 8 Försvarets radioanstalt | F103: 1551762 | G103: 8 Försvarets radioanstalt | H103: 6 | J103: 8 | K103: 8 | M103: FALSE | N103: =IF(M103=TRUE,FALSE, IF(COUNTIFS($R$10:R103,R103,$H$10:H103,H103,$P$10:P103,P103)=1,TRUE, IF(COUNTIFS(H:H,H103,I:I,">0",P:P,P103)=0,TRUE,FALSE))) -> FALSE | O103: TRUE | P103: 2022 | Q103: Försvar och samhällets krisberedskap | R103: Försvar | S103: Försvarets radioanstalt | T103: =IFERROR(INDEX(Admin!$D$10:$E$100,MATCH(Q103,Admin!$D$10:$D$83,0),2),Q103) -> Försvar och samhällets krisberedskap | U103: =INDEX(Befolkning!$F$10:$F$50,MATCH(BudgetData!$P103*1,Befolkning!$B$10:$B$50,0),1) -> 10457147 | V103: 148.3924822 | W103: 12.36604018
A104: Utgifter2022 | B104: Utgift | E104: 9 Totalförsvarets forskningsinstitut | F104: 241697 | G104: 9 Totalförsvarets forskningsinstitut | H104: 6 | J104: 9 | K104: 9 | M104: FALSE | N104: =IF(M104=TRUE,FALSE, IF(COUNTIFS($R$10:R104,R104,$H$10:H104,H104,$P$10:P104,P104)=1,TRUE, IF(COUNTIFS(H:H,H104,I:I,">0",P:P,P104)=0,TRUE,FALSE))) -> FALSE | O104: TRUE | P104: 2022 | Q104: Försvar och samhällets krisberedskap | R104: Försvar | S104: Totalförsvarets forskningsinstitut | T104: =IFERROR(INDEX(Admin!$D$10:$E$100,MATCH(Q104,Admin!$D$10:$D$83,0),2),Q104) -> Försvar och samhällets krisberedskap | U104: =INDEX(Befolkning!$F$10:$F$50,MATCH(BudgetData!$P104*1,Befolkning!$B$10:$B$50,0),1) -> 10457147 | V104: 23.11309194 | W104: 1.926090995
A105: Utgifter2022 | B105: Utgift | E105: 10 Nämnder m.m. | F105: 6986 | G105: 10 Nämnder m.m. | H105: 6 | J105: 10 | K105: 10 | M105: FALSE | N105: =IF(M105=TRUE,FALSE, IF(COUNTIFS($R$10:R105,R105,$H$10:H105,H105,$P$10:P105,P105)=1,TRUE, IF(COUNTIFS(H:H,H105,I:I,">0",P:P,P105)=0,TRUE,FALSE))) -> FALSE | O105: TRUE | P105: 2022 | Q105: Försvar och samhällets krisberedskap | R105: Försvar | S105: Nämnder m.m. | T105: =IFERROR(INDEX(Admin!$D$10:$E$100,MATCH(Q105,Admin!$D$10:$D$83,0),2),Q105) -> Försvar och samhällets krisberedskap | U105: =INDEX(Befolkning!$F$10:$F$50,MATCH(BudgetData!$P105*1,Befolkning!$B$10:$B$50,0),1) -> 10457147 | V105: 0.6680598446 | W105: 0.05567165372
A106: Utgifter2022 | B106: Utgift | E106: 11 Försvarets materielverk | F106: 2104280 | G106: 11 Försvarets materielverk | H106: 6 | J106: 11 | K106: 11 | M106: FALSE | N106: =IF(M106=TRUE,FALSE, IF(COUNTIFS($R$10:R106,R106,$H$10:H106,H106,$P$10:P106,P106)=1,TRUE, IF(COUNTIFS(H:H,H106,I:I,">0",P:P,P106)=0,TRUE,FALSE))) -> FALSE | O106: TRUE | P106: 2022 | Q106: Försvar och samhällets krisberedskap | R106: Försvar | S106: Försvarets materielverk | T106: =IFERROR(INDEX(Admin!$D$10:$E$100,MATCH(Q106,Admin!$D$10:$D$83,0),2),Q106) -> Försvar och samhällets krisberedskap | U106: =INDEX(Befolkning!$F$10:$F$50,MATCH(BudgetData!$P106*1,Befolkning!$B$10:$B$50,0),1) -> 10457147 | V106: 201.228882 | W106: 16.7690735
A107: Utgifter2022 | B107: Utgift | E107: 12 Försvarsunderrättelsedomstolen | F107: 10874 | G107: 12 Försvarsunderrättelsedomstolen | H107: 6 | J107: 12 | K107: 12 | M107: FALSE | N107: =IF(M107=TRUE,FALSE, IF(COUNTIFS($R$10:R107,R107,$H$10:H107,H107,$P$10:P107,P107)=1,TRUE, IF(COUNTIFS(H:H,H107,I:I,">0",P:P,P107)=0,TRUE,FALSE))) -> FALSE | O107: TRUE | P107: 2022 | Q107: Försvar och samhällets krisberedskap | R107: Försvar | S107: Försvarsunderrättelsedomstolen | T107: =IFERROR(INDEX(Admin!$D$10:$E$100,MATCH(Q107,Admin!$D$10:$D$83,0),2),Q107) -> Försvar och samhällets krisberedskap | U107: =INDEX(Befolkning!$F$10:$F$50,MATCH(BudgetData!$P107*1,Befolkning!$B$10:$B$50,0),1) -> 10457147 | V107: 1.039862976 | W107: 0.086655248
A108: Utgifter2022 | B108: Utgift | E108: 2 Samhällets krisberedskap | F108: 5276581 | G108: 2 Samhällets krisberedskap | H108: 6 | I108: 2 | K108: 2 | L108: Sum | M108: FALSE | N108: =IF(M108=TRUE,FALSE, IF(COUNTIFS($R$10:R108,R108,$H$10:H108,H108,$P$10:P108,P108)=1,TRUE, IF(COUNTIFS(H:H,H108,I:I,">0",P:P,P108)=0,TRUE,FALSE))) -> TRUE | O108: FALSE | P108: 2022 | Q108: Försvar och samhällets krisberedskap | R108: Samhällets krisberedskap | T108: =IFERROR(INDEX(Admin!$D$10:$E$100,MATCH(Q108,Admin!$D$10:$D$83,0),2),Q108) -> Försvar och samhällets krisberedskap | U108: =INDEX(Befolkning!$F$10:$F$50,MATCH(BudgetData!$P108*1,Befolkning!$B$10:$B$50,0),1) -> 10457147 | V108: 504.5908793 | W108: 42.04923994
A109: Utgifter2022 | B109: Utgift | E109: 1 Kustbevakningen | F109: 1395048 | G109: 1 Kustbevakningen | H109: 6 | J109: 1 | K109: 1 | M109: FALSE | N109: =IF(M109=TRUE,FALSE, IF(COUNTIFS($R$10:R109,R109,$H$10:H109,H109,$P$10:P109,P109)=1,TRUE, IF(COUNTIFS(H:H,H109,I:I,">0",P:P,P109)=0,TRUE,FALSE))) -> FALSE | O109: TRUE | P109: 2022 | Q109: Försvar och samhällets krisberedskap | R109: Samhällets krisberedskap | S109: Kustbevakningen | T109: =IFERROR(INDEX(Admin!$D$10:$E$100,MATCH(Q109,Admin!$D$10:$D$83,0),2),Q109) -> Försvar och samhällets krisberedskap | U109: =INDEX(Befolkning!$F$10:$F$50,MATCH(BudgetData!$P109*1,Befolkning!$B$10:$B$50,0),1) -> 10457147 | V109: 133.4061767 | W109: 11.11718139
A110: Utgifter2022 | B110: Utgift | E110: 2 Förebyggande åtgärder mot jordskred och andra naturolyckor | F110: 521850 | G110: 2 Förebyggande åtgärder mot jordskred och andra naturolyckor | H110: 6 | J110: 2 | K110: 2 | M110: FALSE | N110: =IF(M110=TRUE,FALSE, IF(COUNTIFS($R$10:R110,R110,$H$10:H110,H110,$P$10:P110,P110)=1,TRUE, IF(COUNTIFS(H:H,H110,I:I,">0",P:P,P110)=0,TRUE,FALSE))) -> FALSE | O110: TRUE | P110: 2022 | Q110: Försvar och samhällets krisberedskap | R110: Samhällets krisberedskap | S110: Förebyggande åtgärder mot jordskred och andra naturolyckor | T110: =IFERROR(INDEX(Admin!$D$10:$E$100,MATCH(Q110,Admin!$D$10:$D$83,0),2),Q110) -> Försvar och samhällets krisberedskap | U110: =INDEX(Befolkning!$F$10:$F$50,MATCH(BudgetData!$P110*1,Befolkning!$B$10:$B$50,0),1) -> 10457147 | V110: 49.90366875 | W110: 4.158639063
A111: Utgifter2022 | B111: Utgift | E111: 3 Ersättning för räddningstjänst m.m. | F111: 27580 | G111: 3 Ersättning för räddningstjänst m.m. | H111: 6 | J111: 3 | K111: 3 | M111: FALSE | N111: =IF(M111=TRUE,FALSE, IF(COUNTIFS($R$10:R111,R111,$H$10:H111,H111,$P$10:P111,P111)=1,TRUE, IF(COUNTIFS(H:H,H111,I:I,">0",P:P,P111)=0,TRUE,FALSE))) -> FALSE | O111: TRUE | P111: 2022 | Q111: Försvar och samhällets krisberedskap | R111: Samhällets krisberedskap | S111: Ersättning för räddningstjänst m.m. | T111: =IFERROR(INDEX(Admin!$D$10:$E$100,MATCH(Q111,Admin!$D$10:$D$83,0),2),Q111) -> Försvar och samhällets krisberedskap | U111: =INDEX(Befolkning!$F$10:$F$50,MATCH(BudgetData!$P111*1,Befolkning!$B$10:$B$50,0),1) -> 10457147 | V111: 2.637430649 | W111: 0.2197858874
A112: Utgifter2022 | B112: Utgift | E112: 4 Krisberedskap | F112: 1273788 | G112: 4 Krisberedskap | H112: 6 | J112: 4 | K112: 4 | M112: FALSE | N112: =IF(M112=TRUE,FALSE, IF(COUNTIFS($R$10:R112,R112,$H$10:H112,H112,$P$10:P112,P112)=1,TRUE, IF(COUNTIFS(H:H,H112,I:I,">0",P:P,P112)=0,TRUE,FALSE))) -> FALSE | O112: TRUE | P112: 2022 | Q112: Försvar och samhällets krisberedskap | R112: Samhällets krisberedskap | S112: Krisberedskap | T112: =IFERROR(INDEX(Admin!$D$10:$E$100,MATCH(Q112,Admin!$D$10:$D$83,0),2),Q112) -> Försvar och samhällets krisberedskap | U112: =INDEX(Befolkning!$F$10:$F$50,MATCH(BudgetData!$P112*1,Befolkning!$B$10:$B$50,0),1) -> 10457147 | V112: 121.8102796 | W112: 10.15085663
A113: Utgifter2022 | B113: Utgift | E113: 5 Ersättning till SOS Alarm Sverige AB för alarmeringstjänst enligt avtal | F113: 401671 | G113: 5 Ersättning till SOS Alarm Sverige AB för alarmeringstjänst enligt avtal | H113: 6 | J113: 5 | K113: 5 | M113: FALSE | N113: =IF(M113=TRUE,FALSE, IF(COUNTIFS($R$10:R113,R113,$H$10:H113,H113,$P$10:P113,P113)=1,TRUE, IF(COUNTIFS(H:H,H113,I:I,">0",P:P,P113)=0,TRUE,FALSE))) -> FALSE | O113: TRUE | P113: 2022 | Q113: Försvar och samhällets krisberedskap | R113: Samhällets krisberedskap | S113: Ersättning till SOS Alarm Sverige AB för alarmeringstjänst enligt avtal | T113: =IFERROR(INDEX(Admin!$D$10:$E$100,MATCH(Q113,Admin!$D$10:$D$83,0),2),Q113) -> Försvar och samhällets krisberedskap | U113: =INDEX(Befolkning!$F$10:$F$50,MATCH(BudgetData!$P113*1,Befolkning!$B$10:$B$50,0),1) -> 10457147 | V113: 38.41114598 | W113: 3.200928832
A114: Utgifter2022 | B114: Utgift | E114: 6 Myndigheten för samhällsskydd och beredskap | F114: 1428916 | G114: 6 Myndigheten för samhällsskydd och beredskap | H114: 6 | J114: 6 | K114: 6 | M114: FALSE | N114: =IF(M114=TRUE,FALSE, IF(COUNTIFS($R$10:R114,R114,$H$10:H114,H114,$P$10:P114,P114)=1,TRUE, IF(COUNTIFS(H:H,H114,I:I,">0",P:P,P114)=0,TRUE,FALSE))) -> FALSE | O114: TRUE | P114: 2022 | Q114: Försvar och samhällets krisberedskap | R114: Samhällets krisberedskap | S114: Myndigheten för samhällsskydd och beredskap | T114: =IFERROR(INDEX(Admin!$D$10:$E$100,MATCH(Q114,Admin!$D$10:$D$83,0),2),Q114) -> Försvar och samhällets krisberedskap | U114: =INDEX(Befolkning!$F$10:$F$50,MATCH(BudgetData!$P114*1,Befolkning!$B$10:$B$50,0),1) -> 10457147 | V114: 136.6449185 | W114: 11.38707655
A115: Utgifter2022 | B115: Utgift | E115: 7 Statens haverikommission | F115: 57728 | G115: 7 Statens haverikommission | H115: 6 | J115: 7 | K115: 7 | M115: FALSE | N115: =IF(M115=TRUE,FALSE, IF(COUNTIFS($R$10:R115,R115,$H$10:H115,H115,$P$10:P115,P115)=1,TRUE, IF(COUNTIFS(H:H,H115,I:I,">0",P:P,P115)=0,TRUE,FALSE))) -> FALSE | O115: TRUE | P115: 2022 | Q115: Försvar och samhällets krisberedskap | R115: Samhällets krisberedskap | S115: Statens haverikommission | T115: =IFERROR(INDEX(Admin!$D$10:$E$100,MATCH(Q115,Admin!$D$10:$D$83,0),2),Q115) -> Försvar och samhällets krisberedskap | U115: =INDEX(Befolkning!$F$10:$F$50,MATCH(BudgetData!$P115*1,Befolkning!$B$10:$B$50,0),1) -> 10457147 | V115: 5.520434971 | W115: 0.4600362476
A116: Utgifter2022 | B116: Utgift | E116: 8 Myndigheten för psykologiskt försvar | F116: 103000 | G116: 8 Myndigheten för psykologiskt försvar | H116: 6 | J116: 8 | K116: 8 | M116: FALSE | N116: =IF(M116=TRUE,FALSE, IF(COUNTIFS($R$10:R116,R116,$H$10:H116,H116,$P$10:P116,P116)=1,TRUE, IF(COUNTIFS(H:H,H116,I:I,">0",P:P,P116)=0,TRUE,FALSE))) -> FALSE | O116: TRUE | P116: 2022 | Q116: Försvar och samhällets krisberedskap | R116: Samhällets krisberedskap | S116: Myndigheten för psykologiskt försvar | T116: =IFERROR(INDEX(Admin!$D$10:$E$100,MATCH(Q116,Admin!$D$10:$D$83,0),2),Q116) -> Försvar och samhällets krisberedskap | U116: =INDEX(Befolkning!$F$10:$F$50,MATCH(BudgetData!$P116*1,Befolkning!$B$10:$B$50,0),1) -> 10457147 | V116: 9.849722874 | W116: 0.8208102395
A117: Utgifter2022 | B117: Utgift | E117: 9 Rakel Generation 2 | F117: 67000 | G117: 9 Rakel Generation 2 | H117: 6 | J117: 9 | K117: 9 | M117: FALSE | N117: =IF(M117=TRUE,FALSE, IF(COUNTIFS($R$10:R117,R117,$H$10:H117,H117,$P$10:P117,P117)=1,TRUE, IF(COUNTIFS(H:H,H117,I:I,">0",P:P,P117)=0,TRUE,FALSE))) -> FALSE | O117: TRUE | P117: 2022 | Q117: Försvar och samhällets krisberedskap | R117: Samhällets krisberedskap | S117: Rakel Generation 2 | T117: =IFERROR(INDEX(Admin!$D$10:$E$100,MATCH(Q117,Admin!$D$10:$D$83,0),2),Q117) -> Försvar och samhällets krisberedskap | U117: =INDEX(Befolkning!$F$10:$F$50,MATCH(BudgetData!$P117*1,Befolkning!$B$10:$B$50,0),1) -> 10457147 | V117: 6.407101287 | W117: 0.5339251072
A118: Utgifter2022 | B118: Utgift | E118: 3 Strålsäkerhet | F118: 407892 | G118: 3 Strålsäkerhet | H118: 6 | I118: 3 | K118: 3 | L118: Sum | M118: FALSE | N118: =IF(M118=TRUE,FALSE, IF(COUNTIFS($R$10:R118,R118,$H$10:H118,H118,$P$10:P118,P118)=1,TRUE, IF(COUNTIFS(H:H,H118,I:I,">0",P:P,P118)=0,TRUE,FALSE))) -> TRUE | O118: FALSE | P118: 2022 | Q118: Försvar och samhällets krisberedskap | R118: Strålsäkerhet | T118: =IFERROR(INDEX(Admin!$D$10:$E$100,MATCH(Q118,Admin!$D$10:$D$83,0),2),Q118) -> Försvar och samhällets krisberedskap | U118: =INDEX(Befolkning!$F$10:$F$50,MATCH(BudgetData!$P118*1,Befolkning!$B$10:$B$50,0),1) -> 10457147 | V118: 39.00605012 | W118: 3.250504177
A119: Utgifter2022 | B119: Utgift | E119: 1 Strålsäkerhetsmyndigheten | F119: 407892 | G119: 1 Strålsäkerhetsmyndigheten | H119: 6 | J119: 1 | K119: 1 | M119: FALSE | N119: =IF(M119=TRUE,FALSE, IF(COUNTIFS($R$10:R119,R119,$H$10:H119,H119,$P$10:P119,P119)=1,TRUE, IF(COUNTIFS(H:H,H119,I:I,">0",P:P,P119)=0,TRUE,FALSE))) -> FALSE | O119: TRUE | P119: 2022 | Q119: Försvar och samhällets krisberedskap | R119: Strålsäkerhet | S119: Strålsäkerhetsmyndigheten | T119: =IFERROR(INDEX(Admin!$D$10:$E$100,MATCH(Q119,Admin!$D$10:$D$83,0),2),Q119) -> Försvar och samhällets krisberedskap | U119: =INDEX(Befolkning!$F$10:$F$50,MATCH(BudgetData!$P119*1,Befolkning!$B$10:$B$50,0),1) -> 10457147 | V119: 39.00605012 | W119: 3.250504177
A120: Utgifter2022 | B120: Utgift | D120: 7 | E120: 7 Internationellt bistånd | F120: 51939762 | G120: 7 Internationellt bistånd | H120: 7 | K120: 7 | L120: Sum | M120: TRUE | N120: =IF(M120=TRUE,FALSE, IF(COUNTIFS($R$10:R120,R120,$H$10:H120,H120,$P$10:P120,P120)=1,TRUE, IF(COUNTIFS(H:H,H120,I:I,">0",P:P,P120)=0,TRUE,FALSE))) -> FALSE | O120: FALSE | P120: 2022 | Q120: Internationellt bistånd | T120: =IFERROR(INDEX(Admin!$D$10:$E$100,MATCH(Q120,Admin!$D$10:$D$83,0),2),Q120) -> Internationellt bistånd | U120: =INDEX(Befolkning!$F$10:$F$50,MATCH(BudgetData!$P120*1,Befolkning!$B$10:$B$50,0),1) -> 10457147 | V120: 4966.915163 | W120: 413.9095969
A121: Utgifter2022 | B121: Utgift | E121: 1 Internationellt utvecklingssamarbete | F121: 51939762 | G121: 1 Internationellt utvecklingssamarbete | H121: 7 | I121: 1 | K121: 1 | L121: Sum | M121: FALSE | N121: =IF(M121=TRUE,FALSE, IF(COUNTIFS($R$10:R121,R121,$H$10:H121,H121,$P$10:P121,P121)=1,TRUE, IF(COUNTIFS(H:H,H121,I:I,">0",P:P,P121)=0,TRUE,FALSE))) -> TRUE | O121: FALSE | P121: 2022 | Q121: Internationellt bistånd | R121: Internationellt utvecklingssamarbete | T121: =IFERROR(INDEX(Admin!$D$10:$E$100,MATCH(Q121,Admin!$D$10:$D$83,0),2),Q121) -> Internationellt bistånd | U121: =INDEX(Befolkning!$F$10:$F$50,MATCH(BudgetData!$P121*1,Befolkning!$B$10:$B$50,0),1) -> 10457147 | V121: 4966.915163 | W121: 413.9095969
A122: Utgifter2022 | B122: Utgift | E122: 1 Biståndsverksamhet | F122: 49985150 | G122: 1 Biståndsverksamhet | H122: 7 | J122: 1 | K122: 1 | M122: FALSE | N122: =IF(M122=TRUE,FALSE, IF(COUNTIFS($R$10:R122,R122,$H$10:H122,H122,$P$10:P122,P122)=1,TRUE, IF(COUNTIFS(H:H,H122,I:I,">0",P:P,P122)=0,TRUE,FALSE))) -> FALSE | O122: TRUE | P122: 2022 | Q122: Internationellt bistånd | R122: Internationellt utvecklingssamarbete | S122: Biståndsverksamhet | T122: =IFERROR(INDEX(Admin!$D$10:$E$100,MATCH(Q122,Admin!$D$10:$D$83,0),2),Q122) -> Internationellt bistånd | U122: =INDEX(Befolkning!$F$10:$F$50,MATCH(BudgetData!$P122*1,Befolkning!$B$10:$B$50,0),1) -> 10457147 | V122: 4779.998789 | W122: 398.3332324
A123: Utgifter2022 | B123: Utgift | E123: 2 Styrelsen för internationellt utvecklingssamarbete (Sida) | F123: 1652317 | G123: 2 Styrelsen för internationellt utvecklingssamarbete (Sida) | H123: 7 | J123: 2 | K123: 2 | M123: FALSE | N123: =IF(M123=TRUE,FALSE, IF(COUNTIFS($R$10:R123,R123,$H$10:H123,H123,$P$10:P123,P123)=1,TRUE, IF(COUNTIFS(H:H,H123,I:I,">0",P:P,P123)=0,TRUE,FALSE))) -> FALSE | O123: TRUE | P123: 2022 | Q123: Internationellt bistånd | R123: Internationellt utvecklingssamarbete | S123: Styrelsen för internationellt utvecklingssamarbete (Sida) | T123: =IFERROR(INDEX(Admin!$D$10:$E$100,MATCH(Q123,Admin!$D$10:$D$83,0),2),Q123) -> Internationellt bistånd | U123: =INDEX(Befolkning!$F$10:$F$50,MATCH(BudgetData!$P123*1,Befolkning!$B$10:$B$50,0),1) -> 10457147 | V123: 158.0083937 | W123: 13.16736614
A124: Utgifter2022 | B124: Utgift | E124: 3 Nordiska Afrikainstitutet | F124: 17308 | G124: 3 Nordiska Afrikainstitutet | H124: 7 | J124: 3 | K124: 3 | M124: FALSE | N124: =IF(M124=TRUE,FALSE, IF(COUNTIFS($R$10:R124,R124,$H$10:H124,H124,$P$10:P124,P124)=1,TRUE, IF(COUNTIFS(H:H,H124,I:I,">0",P:P,P124)=0,TRUE,FALSE))) -> FALSE | O124: TRUE | P124: 2022 | Q124: Internationellt bistånd | R124: Internationellt utvecklingssamarbete | S124: Nordiska Afrikainstitutet | T124: =IFERROR(INDEX(Admin!$D$10:$E$100,MATCH(Q124,Admin!$D$10:$D$83,0),2),Q124) -> Internationellt bistånd | U124: =INDEX(Befolkning!$F$10:$F$50,MATCH(BudgetData!$P124*1,Befolkning!$B$10:$B$50,0),1) -> 10457147 | V124: 1.655135956 | W124: 0.1379279964
A125: Utgifter2022 | B125: Utgift | E125: 4 Folke Bernadotteakademin | F125: 213367 | G125: 4 Folke Bernadotteakademin | H125: 7 | J125: 4 | K125: 4 | M125: FALSE | N125: =IF(M125=TRUE,FALSE, IF(COUNTIFS($R$10:R125,R125,$H$10:H125,H125,$P$10:P125,P125)=1,TRUE, IF(COUNTIFS(H:H,H125,I:I,">0",P:P,P125)=0,TRUE,FALSE))) -> FALSE | O125: TRUE | P125: 2022 | Q125: Internationellt bistånd | R125: Internationellt utvecklingssamarbete | S125: Folke Bernadotteakademin | T125: =IFERROR(INDEX(Admin!$D$10:$E$100,MATCH(Q125,Admin!$D$10:$D$83,0),2),Q125) -> Internationellt bistånd | U125: =INDEX(Befolkning!$F$10:$F$50,MATCH(BudgetData!$P125*1,Befolkning!$B$10:$B$50,0),1) -> 10457147 | V125: 20.40394 | W125: 1.700328334
A126: Utgifter2022 | B126: Utgift | E126: 5 Riksrevisionen: Internationellt utvecklingssamarbete | F126: 50000 | G126: 5 Riksrevisionen: Internationellt utvecklingssamarbete | H126: 7 | J126: 5 | K126: 5 | M126: FALSE | N126: =IF(M126=TRUE,FALSE, IF(COUNTIFS($R$10:R126,R126,$H$10:H126,H126,$P$10:P126,P126)=1,TRUE, IF(COUNTIFS(H:H,H126,I:I,">0",P:P,P126)=0,TRUE,FALSE))) -> FALSE | O126: TRUE | P126: 2022 | Q126: Internationellt bistånd | R126: Internationellt utvecklingssamarbete | S126: Riksrevisionen: Internationellt utvecklingssamarbete | T126: =IFERROR(INDEX(Admin!$D$10:$E$100,MATCH(Q126,Admin!$D$10:$D$83,0),2),Q126) -> Internationellt bistånd | U126: =INDEX(Befolkning!$F$10:$F$50,MATCH(BudgetData!$P126*1,Befolkning!$B$10:$B$50,0),1) -> 10457147 | V126: 4.781418871 | W126: 0.3984515726
A127: Utgifter2022 | B127: Utgift | E127: 6 Utvärdering av internationellt bistånd | F127: 21620 | G127: 6 Utvärdering av internationellt bistånd | H127: 7 | J127: 6 | K127: 6 | M127: FALSE | N127: =IF(M127=TRUE,FALSE, IF(COUNTIFS($R$10:R127,R127,$H$10:H127,H127,$P$10:P127,P127)=1,TRUE, IF(COUNTIFS(H:H,H127,I:I,">0",P:P,P127)=0,TRUE,FALSE))) -> FALSE | O127: TRUE | P127: 2022 | Q127: Internationellt bistånd | R127: Internationellt utvecklingssamarbete | S127: Utvärdering av internationellt bistånd | T127: =IFERROR(INDEX(Admin!$D$10:$E$100,MATCH(Q127,Admin!$D$10:$D$83,0),2),Q127) -> Internationellt bistånd | U127: =INDEX(Befolkning!$F$10:$F$50,MATCH(BudgetData!$P127*1,Befolkning!$B$10:$B$50,0),1) -> 10457147 | V127: 2.06748552 | W127: 0.17229046
A128: Utgifter2022 | B128: Utgift | D128: 8 | E128: 8 Migration | F128: 8456364 | G128: 8 Migration | H128: 8 | K128: 8 | L128: Sum | M128: TRUE | N128: =IF(M128=TRUE,FALSE, IF(COUNTIFS($R$10:R128,R128,$H$10:H128,H128,$P$10:P128,P128)=1,TRUE, IF(COUNTIFS(H:H,H128,I:I,">0",P:P,P128)=0,TRUE,FALSE))) -> FALSE | O128: FALSE | P128: 2022 | Q128: Migration | T128: =IFERROR(INDEX(Admin!$D$10:$E$100,MATCH(Q128,Admin!$D$10:$D$83,0),2),Q128) -> Migration | U128: =INDEX(Befolkning!$F$10:$F$50,MATCH(BudgetData!$P128*1,Befolkning!$B$10:$B$50,0),1) -> 10457147 | V128: 808.6683682 | W128: 67.38903068
A129: Utgifter2022 | B129: Utgift | E129: 1 Migrationsverket | F129: 4233098 | G129: 1 Migrationsverket | H129: 8 | J129: 1 | K129: 1 | M129: FALSE | N129: =IF(M129=TRUE,FALSE, IF(COUNTIFS($R$10:R129,R129,$H$10:H129,H129,$P$10:P129,P129)=1,TRUE, IF(COUNTIFS(H:H,H129,I:I,">0",P:P,P129)=0,TRUE,FALSE))) -> TRUE | O129: TRUE | P129: 2022 | Q129: Migration | R129: Migration | S129: Migrationsverket | T129: =IFERROR(INDEX(Admin!$D$10:$E$100,MATCH(Q129,Admin!$D$10:$D$83,0),2),Q129) -> Migration | U129: =INDEX(Befolkning!$F$10:$F$50,MATCH(BudgetData!$P129*1,Befolkning!$B$10:$B$50,0),1) -> 10457147 | V129: 404.8042932 | W129: 33.7336911
A130: Utgifter2022 | B130: Utgift | E130: 2 Ersättningar och bostadskostnader | F130: 2190000 | G130: 2 Ersättningar och bostadskostnader | H130: 8 | J130: 2 | K130: 2 | M130: FALSE | N130: =IF(M130=TRUE,FALSE, IF(COUNTIFS($R$10:R130,R130,$H$10:H130,H130,$P$10:P130,P130)=1,TRUE, IF(COUNTIFS(H:H,H130,I:I,">0",P:P,P130)=0,TRUE,FALSE))) -> TRUE | O130: TRUE | P130: 2022 | Q130: Migration | R130: Migration | S130: Ersättningar och bostadskostnader | T130: =IFERROR(INDEX(Admin!$D$10:$E$100,MATCH(Q130,Admin!$D$10:$D$83,0),2),Q130) -> Migration | U130: =INDEX(Befolkning!$F$10:$F$50,MATCH(BudgetData!$P130*1,Befolkning!$B$10:$B$50,0),1) -> 10457147 | V130: 209.4261465 | W130: 17.45217888
A131: Utgifter2022 | B131: Utgift | E131: 3 Migrationspolitiska åtgärder | F131: 123013 | G131: 3 Migrationspolitiska åtgärder | H131: 8 | J131: 3 | K131: 3 | M131: FALSE | N131: =IF(M131=TRUE,FALSE, IF(COUNTIFS($R$10:R131,R131,$H$10:H131,H131,$P$10:P131,P131)=1,TRUE, IF(COUNTIFS(H:H,H131,I:I,">0",P:P,P131)=0,TRUE,FALSE))) -> TRUE | O131: TRUE | P131: 2022 | Q131: Migration | R131: Migration | S131: Migrationspolitiska åtgärder | T131: =IFERROR(INDEX(Admin!$D$10:$E$100,MATCH(Q131,Admin!$D$10:$D$83,0),2),Q131) -> Migration | U131: =INDEX(Befolkning!$F$10:$F$50,MATCH(BudgetData!$P131*1,Befolkning!$B$10:$B$50,0),1) -> 10457147 | V131: 11.76353359 | W131: 0.9802944659
A132: Utgifter2022 | B132: Utgift | E132: 4 Domstolsprövning i utlänningsmål | F132: 720015 | G132: 4 Domstolsprövning i utlänningsmål | H132: 8 | J132: 4 | K132: 4 | M132: FALSE | N132: =IF(M132=TRUE,FALSE, IF(COUNTIFS($R$10:R132,R132,$H$10:H132,H132,$P$10:P132,P132)=1,TRUE, IF(COUNTIFS(H:H,H132,I:I,">0",P:P,P132)=0,TRUE,FALSE))) -> TRUE | O132: TRUE | P132: 2022 | Q132: Migration | R132: Migration | S132: Domstolsprövning i utlänningsmål | T132: =IFERROR(INDEX(Admin!$D$10:$E$100,MATCH(Q132,Admin!$D$10:$D$83,0),2),Q132) -> Migration | U132: =INDEX(Befolkning!$F$10:$F$50,MATCH(BudgetData!$P132*1,Befolkning!$B$10:$B$50,0),1) -> 10457147 | V132: 68.85386616 | W132: 5.73782218
A133: Utgifter2022 | B133: Utgift | E133: 5 Rättsliga biträden m.m. vid domstolsprövning i utlänningsmål | F133: 204800 | G133: 5 Rättsliga biträden m.m. vid domstolsprövning i utlänningsmål | H133: 8 | J133: 5 | K133: 5 | M133: FALSE | N133: =IF(M133=TRUE,FALSE, IF(COUNTIFS($R$10:R133,R133,$H$10:H133,H133,$P$10:P133,P133)=1,TRUE, IF(COUNTIFS(H:H,H133,I:I,">0",P:P,P133)=0,TRUE,FALSE))) -> TRUE | O133: TRUE | P133: 2022 | Q133: Migration | R133: Migration | S133: Rättsliga biträden m.m. vid domstolsprövning i utlänningsmål | T133: =IFERROR(INDEX(Admin!$D$10:$E$100,MATCH(Q133,Admin!$D$10:$D$83,0),2),Q133) -> Migration | U133: =INDEX(Befolkning!$F$10:$F$50,MATCH(BudgetData!$P133*1,Befolkning!$B$10:$B$50,0),1) -> 10457147 | V133: 19.58469169 | W133: 1.632057641
A134: Utgifter2022 | B134: Utgift | E134: 6 Offentligt biträde i utlänningsärenden | F134: 249786 | G134: 6 Offentligt biträde i utlänningsärenden | H134: 8 | J134: 6 | K134: 6 | M134: FALSE | N134: =IF(M134=TRUE,FALSE, IF(COUNTIFS($R$10:R134,R134,$H$10:H134,H134,$P$10:P134,P134)=1,TRUE, IF(COUNTIFS(H:H,H134,I:I,">0",P:P,P134)=0,TRUE,FALSE))) -> TRUE | O134: TRUE | P134: 2022 | Q134: Migration | R134: Migration | S134: Offentligt biträde i utlänningsärenden | T134: =IFERROR(INDEX(Admin!$D$10:$E$100,MATCH(Q134,Admin!$D$10:$D$83,0),2),Q134) -> Migration | U134: =INDEX(Befolkning!$F$10:$F$50,MATCH(BudgetData!$P134*1,Befolkning!$B$10:$B$50,0),1) -> 10457147 | V134: 23.88662988 | W134: 1.99055249
A135: Utgifter2022 | B135: Utgift | E135: 7 Utresor för avvisade och utvisade | F135: 327202 | G135: 7 Utresor för avvisade och utvisade | H135: 8 | J135: 7 | K135: 7 | M135: FALSE | N135: =IF(M135=TRUE,FALSE, IF(COUNTIFS($R$10:R135,R135,$H$10:H135,H135,$P$10:P135,P135)=1,TRUE, IF(COUNTIFS(H:H,H135,I:I,">0",P:P,P135)=0,TRUE,FALSE))) -> TRUE | O135: TRUE | P135: 2022 | Q135: Migration | R135: Migration | S135: Utresor för avvisade och utvisade | T135: =IFERROR(INDEX(Admin!$D$10:$E$100,MATCH(Q135,Admin!$D$10:$D$83,0),2),Q135) -> Migration | U135: =INDEX(Befolkning!$F$10:$F$50,MATCH(BudgetData!$P135*1,Befolkning!$B$10:$B$50,0),1) -> 10457147 | V135: 31.28979635 | W135: 2.607483029
A136: Utgifter2022 | B136: Utgift | E136: 8 Från EU-budgeten finansierade insatser för asylsökande och flyktingar | F136: 408450 | G136: 8 Från EU-budgeten finansierade insatser för asylsökande och flyktingar | H136: 8 | J136: 8 | K136: 8 | M136: FALSE | N136: =IF(M136=TRUE,FALSE, IF(COUNTIFS($R$10:R136,R136,$H$10:H136,H136,$P$10:P136,P136)=1,TRUE, IF(COUNTIFS(H:H,H136,I:I,">0",P:P,P136)=0,TRUE,FALSE))) -> TRUE | O136: TRUE | P136: 2022 | Q136: Migration | R136: Migration | S136: Från EU-budgeten finansierade insatser för asylsökande och flyktingar | T136: =IFERROR(INDEX(Admin!$D$10:$E$100,MATCH(Q136,Admin!$D$10:$D$83,0),2),Q136) -> Migration | U136: =INDEX(Befolkning!$F$10:$F$50,MATCH(BudgetData!$P136*1,Befolkning!$B$10:$B$50,0),1) -> 10457147 | V136: 39.05941076 | W136: 3.254950896
A137: Utgifter2022 | B137: Utgift | D137: 9 | E137: 9 Hälsovård, sjukvård och social omsorg | F137: 112483613 | G137: 9 Hälsovård, sjukvård och social omsorg | H137: 9 | K137: 9 | L137: Sum | M137: TRUE | N137: =IF(M137=TRUE,FALSE, IF(COUNTIFS($R$10:R137,R137,$H$10:H137,H137,$P$10:P137,P137)=1,TRUE, IF(COUNTIFS(H:H,H137,I:I,">0",P:P,P137)=0,TRUE,FALSE))) -> FALSE | O137: FALSE | P137: 2022 | Q137: Hälsovård, sjukvård och social omsorg | T137: =IFERROR(INDEX(Admin!$D$10:$E$100,MATCH(Q137,Admin!$D$10:$D$83,0),2),Q137) -> Hälsovård, sjukvård och social omsorg | U137: =INDEX(Befolkning!$F$10:$F$50,MATCH(BudgetData!$P137*1,Befolkning!$B$10:$B$50,0),1) -> 10457147 | V137: 10756.6254 | W137: =V137/12 -> 896.3854497
A138: Utgifter2022 | B138: Utgift | E138: 1 Hälso- och sjukvårdspolitik | F138: 73126841 | G138: 1 Hälso- och sjukvårdspolitik | H138: 9 | I138: 1 | K138: 1 | L138: Sum | M138: FALSE | N138: =IF(M138=TRUE,FALSE, IF(COUNTIFS($R$10:R138,R138,$H$10:H138,H138,$P$10:P138,P138)=1,TRUE, IF(COUNTIFS(H:H,H138,I:I,">0",P:P,P138)=0,TRUE,FALSE))) -> TRUE | O138: FALSE | P138: 2022 | Q138: Hälsovård, sjukvård och social omsorg | R138: Hälso- och sjukvårdspolitik | T138: =IFERROR(INDEX(Admin!$D$10:$E$100,MATCH(Q138,Admin!$D$10:$D$83,0),2),Q138) -> Hälsovård, sjukvård och social omsorg | U138: =INDEX(Befolkning!$F$10:$F$50,MATCH(BudgetData!$P138*1,Befolkning!$B$10:$B$50,0),1) -> 10457147 | V138: 6993.00115 | W138: 582.7500959
A139: Utgifter2022 | B139: Utgift | E139: 1 Socialstyrelsen | F139: 765160 | G139: =IF(B139="Utgift",E139,D139&" "&E139) -> 1 Socialstyrelsen | H139: =IF(B139="Utgift",IF(D139="",H138,D139),IF(B139="Inkomst",IF(C139="",H138,C139),"")) -> 9 | I139: =IF(B139="Utgift",IF(D139<>"","", IF(IFERROR(LEFT(E140,FIND(" ",E140)-1)*1,"")=1, IFERROR(LEFT(E139,FIND(" ",E139)-1)*1,""),"")),IF(C139="","",C139)) ->  | J139: =IF(D139<>"","",IF(I139="",IFERROR(LEFT(E139,FIND(" ",E139)-1)*1,""),"")) -> 1 | K139: =IFERROR(LEFT(G139,FIND(" ",G139)-1)*1,"") -> 1 | L139: =IF(B139="Utgift",IF(OR(LEFT(E139,5)="Summa",K140=1),"Sum",""),IF(B139="Inkomst",IF(C139="","","Sum"))) ->  | M139: =IF(D139<>"",TRUE,FALSE) -> FALSE | N139: =IF(M139=TRUE,FALSE, IF(COUNTIFS($R$10:R139,R139,$H$10:H139,H139,$P$10:P139,P139)=1,TRUE, IF(COUNTIFS(H:H,H139,I:I,">0",P:P,P139)=0,TRUE,FALSE))) -> FALSE | O139: =+IF(J139="",FALSE,TRUE) -> TRUE | P139: 2022 | Q139: =IF(B139="Utgift",TRIM(IF(D139="",Q138,SUBSTITUTE(E139,D139&" ",""))),IF(C139="",Q140,IF(C139=ROUND(C139/1000,0)*1000,D139,Q140))) -> Hälsovård, sjukvård och social omsorg | R139: =IF(B139="Utgift",TRIM(IF(D139="",IF(L139="Sum",SUBSTITUTE(G139,I139&" ",""),IF(R138="",Q139,R138)),"")),IF(L139="Sum",D139,R138)) -> Hälso- och sjukvårdspolitik | S139: Socialstyrelsen | T139: =IFERROR(INDEX(Admin!$D$10:$E$100,MATCH(Q139,Admin!$D$10:$D$83,0),2),Q139) -> Hälsovård, sjukvård och social omsorg | U139: =INDEX(Befolkning!$F$10:$F$50,MATCH(BudgetData!$P139*1,Befolkning!$B$10:$B$50,0),1) -> 10457147 | V139: =F139/(U139/1000) -> 73.17100926 | W139: 6.097584105
A140: Utgifter2022 | B140: Utgift | E140: 2 Statens beredning för medicinsk och social utvärdering | F140: 91251 | G140: 2 Statens beredning för medicinsk och social utvärdering | H140: 9 | J140: 2 | K140: 2 | M140: FALSE | N140: =IF(M140=TRUE,FALSE, IF(COUNTIFS($R$10:R140,R140,$H$10:H140,H140,$P$10:P140,P140)=1,TRUE, IF(COUNTIFS(H:H,H140,I:I,">0",P:P,P140)=0,TRUE,FALSE))) -> FALSE | O140: TRUE | P140: 2022 | Q140: Hälsovård, sjukvård och social omsorg | R140: Hälso- och sjukvårdspolitik | S140: =+IF(K140="","",IF(L140="Sum","", IF(RIGHT(IF(MID(E140,2,1)=" ",RIGHT(E140,LEN(E140)-2),IF(MID(E140,3,1)=" ",RIGHT(E140,LEN(E140)-3),E140)),1)=" ", LEFT(IF(MID(E140,2,1)=" ",RIGHT(E140,LEN(E140)-2),IF(MID(E140,3,1)=" ",RIGHT(E140,LEN(E140)-3),E140)), LEN(IF(MID(E140,2,1)=" ",RIGHT(E140,LEN(E140)-2),IF(MID(E140,3,1)=" ",RIGHT(E140,LEN(E140)-3),E140)))-1), IF(MID(E140,2,1)=" ",RIGHT(E140,LEN(E140)-2),IF(MID(E140,3,1)=" ",RIGHT(E140,LEN(E140)-3),E140))) )) -> Statens beredning för medicinsk och social utvärdering | T140: =IFERROR(INDEX(Admin!$D$10:$E$100,MATCH(Q140,Admin!$D$10:$D$83,0),2),Q140) -> Hälsovård, sjukvård och social omsorg | U140: =INDEX(Befolkning!$F$10:$F$50,MATCH(BudgetData!$P140*1,Befolkning!$B$10:$B$50,0),1) -> 10457147 | V140: 8.726185067 | W140: 0.727182089
A141: Utgifter2022 | B141: Utgift | E141: 3 Tandvårds- och läkemedelsförmånsverket | F141: 160340 | G141: 3 Tandvårds- och läkemedelsförmånsverket | H141: 9 | J141: 3 | K141: 3 | M141: FALSE | N141: =IF(M141=TRUE,FALSE, IF(COUNTIFS($R$10:R141,R141,$H$10:H141,H141,$P$10:P141,P141)=1,TRUE, IF(COUNTIFS(H:H,H141,I:I,">0",P:P,P141)=0,TRUE,FALSE))) -> FALSE | O141: TRUE | P141: 2022 | Q141: Hälsovård, sjukvård och social omsorg | R141: Hälso- och sjukvårdspolitik | S141: Tandvårds- och läkemedelsförmånsverket | T141: =IFERROR(INDEX(Admin!$D$10:$E$100,MATCH(Q141,Admin!$D$10:$D$83,0),2),Q141) -> Hälsovård, sjukvård och social omsorg | U141: =INDEX(Befolkning!$F$10:$F$50,MATCH(BudgetData!$P141*1,Befolkning!$B$10:$B$50,0),1) -> 10457147 | V141: 15.33305403 | W141: 1.277754503
A142: Utgifter2022 | B142: Utgift | E142: 4 Tandvårdsförmåner | F142: 7062169 | G142: 4 Tandvårdsförmåner | H142: 9 | J142: 4 | K142: 4 | M142: FALSE | N142: =IF(M142=TRUE,FALSE, IF(COUNTIFS($R$10:R142,R142,$H$10:H142,H142,$P$10:P142,P142)=1,TRUE, IF(COUNTIFS(H:H,H142,I:I,">0",P:P,P142)=0,TRUE,FALSE))) -> FALSE | O142: TRUE | P142: 2022 | Q142: Hälsovård, sjukvård och social omsorg | R142: Hälso- och sjukvårdspolitik | S142: Tandvårdsförmåner | T142: =IFERROR(INDEX(Admin!$D$10:$E$100,MATCH(Q142,Admin!$D$10:$D$83,0),2),Q142) -> Hälsovård, sjukvård och social omsorg | U142: =INDEX(Befolkning!$F$10:$F$50,MATCH(BudgetData!$P142*1,Befolkning!$B$10:$B$50,0),1) -> 10457147 | V142: 675.3437625 | W142: 56.27864688
A143: Utgifter2022 | B143: Utgift | E143: 5 Bidrag för läkemedelsförmånerna | F143: 33444000 | G143: 5 Bidrag för läkemedelsförmånerna | H143: 9 | J143: 5 | K143: 5 | M143: FALSE | N143: =IF(M143=TRUE,FALSE, IF(COUNTIFS($R$10:R143,R143,$H$10:H143,H143,$P$10:P143,P143)=1,TRUE, IF(COUNTIFS(H:H,H143,I:I,">0",P:P,P143)=0,TRUE,FALSE))) -> FALSE | O143: TRUE | P143: 2022 | Q143: Hälsovård, sjukvård och social omsorg | R143: Hälso- och sjukvårdspolitik | S143: Bidrag för läkemedelsförmånerna | T143: =IFERROR(INDEX(Admin!$D$10:$E$100,MATCH(Q143,Admin!$D$10:$D$83,0),2),Q143) -> Hälsovård, sjukvård och social omsorg | U143: =INDEX(Befolkning!$F$10:$F$50,MATCH(BudgetData!$P143*1,Befolkning!$B$10:$B$50,0),1) -> 10457147 | V143: 3198.195454 | W143: 266.5162879
A144: Utgifter2022 | B144: Utgift | E144: 6 Bidrag till folkhälsa och sjukvård | F144: 24868886 | G144: 6 Bidrag till folkhälsa och sjukvård | H144: 9 | J144: 6 | K144: 6 | M144: FALSE | N144: =IF(M144=TRUE,FALSE, IF(COUNTIFS($R$10:R144,R144,$H$10:H144,H144,$P$10:P144,P144)=1,TRUE, IF(COUNTIFS(H:H,H144,I:I,">0",P:P,P144)=0,TRUE,FALSE))) -> FALSE | O144: TRUE | P144: 2022 | Q144: Hälsovård, sjukvård och social omsorg | R144: Hälso- och sjukvårdspolitik | S144: Bidrag till folkhälsa och sjukvård | T144: =IFERROR(INDEX(Admin!$D$10:$E$100,MATCH(Q144,Admin!$D$10:$D$83,0),2),Q144) -> Hälsovård, sjukvård och social omsorg | U144: =INDEX(Befolkning!$F$10:$F$50,MATCH(BudgetData!$P144*1,Befolkning!$B$10:$B$50,0),1) -> 10457147 | V144: 2378.171216 | W144: 198.1809347
A145: Utgifter2022 | B145: Utgift | E145: 7 Sjukvård i internationella förhållanden | F145: 511472 | G145: 7 Sjukvård i internationella förhållanden | H145: 9 | J145: 7 | K145: 7 | M145: FALSE | N145: =IF(M145=TRUE,FALSE, IF(COUNTIFS($R$10:R145,R145,$H$10:H145,H145,$P$10:P145,P145)=1,TRUE, IF(COUNTIFS(H:H,H145,I:I,">0",P:P,P145)=0,TRUE,FALSE))) -> FALSE | O145: TRUE | P145: =IF(B145="Utgift",+SUBSTITUTE(A145,"Utgifter","")*1,SUBSTITUTE(A145,"Inkomst","")*1) -> 2022 | Q145: Hälsovård, sjukvård och social omsorg | R145: Hälso- och sjukvårdspolitik | S145: Sjukvård i internationella förhållanden | T145: =IFERROR(INDEX(Admin!$D$10:$E$100,MATCH(Q145,Admin!$D$10:$D$83,0),2),Q145) -> Hälsovård, sjukvård och social omsorg | U145: =INDEX(Befolkning!$F$10:$F$50,MATCH(BudgetData!$P145*1,Befolkning!$B$10:$B$50,0),1) -> 10457147 | V145: 48.91123745 | W145: 4.075936454
A146: Utgifter2022 | B146: Utgift | E146: 8 Bidrag till psykiatri | F146: 2162893 | G146: 8 Bidrag till psykiatri | H146: 9 | J146: 8 | K146: 8 | M146: FALSE | N146: =IF(M146=TRUE,FALSE, IF(COUNTIFS($R$10:R146,R146,$H$10:H146,H146,$P$10:P146,P146)=1,TRUE, IF(COUNTIFS(H:H,H146,I:I,">0",P:P,P146)=0,TRUE,FALSE))) -> FALSE | O146: TRUE | P146: 2022 | Q146: Hälsovård, sjukvård och social omsorg | R146: Hälso- och sjukvårdspolitik | S146: Bidrag till psykiatri | T146: =IFERROR(INDEX(Admin!$D$10:$E$100,MATCH(Q146,Admin!$D$10:$D$83,0),2),Q146) -> Hälsovård, sjukvård och social omsorg | U146: =INDEX(Befolkning!$F$10:$F$50,MATCH(BudgetData!$P146*1,Befolkning!$B$10:$B$50,0),1) -> 10457147 | V146: 206.8339481 | W146: 17.23616234
A147: Utgifter2022 | B147: Utgift | E147: 9 Läkemedelsverket | F147: 161835 | G147: 9 Läkemedelsverket | H147: 9 | J147: 9 | K147: 9 | M147: FALSE | N147: =IF(M147=TRUE,FALSE, IF(COUNTIFS($R$10:R147,R147,$H$10:H147,H147,$P$10:P147,P147)=1,TRUE, IF(COUNTIFS(H:H,H147,I:I,">0",P:P,P147)=0,TRUE,FALSE))) -> FALSE | O147: TRUE | P147: 2022 | Q147: Hälsovård, sjukvård och social omsorg | R147: Hälso- och sjukvårdspolitik | S147: Läkemedelsverket | T147: =IFERROR(INDEX(Admin!$D$10:$E$100,MATCH(Q147,Admin!$D$10:$D$83,0),2),Q147) -> Hälsovård, sjukvård och social omsorg | U147: =INDEX(Befolkning!$F$10:$F$50,MATCH(BudgetData!$P147*1,Befolkning!$B$10:$B$50,0),1) -> 10457147 | V147: 15.47601846 | W147: 1.289668205
A148: Utgifter2022 | B148: Utgift | E148: 10 E-hälsomyndigheten | F148: 120078 | G148: 10 E-hälsomyndigheten | H148: 9 | J148: 10 | K148: 10 | M148: FALSE | N148: =IF(M148=TRUE,FALSE, IF(COUNTIFS($R$10:R148,R148,$H$10:H148,H148,$P$10:P148,P148)=1,TRUE, IF(COUNTIFS(H:H,H148,I:I,">0",P:P,P148)=0,TRUE,FALSE))) -> FALSE | O148: TRUE | P148: 2022 | Q148: Hälsovård, sjukvård och social omsorg | R148: Hälso- och sjukvårdspolitik | S148: E-hälsomyndigheten | T148: =IFERROR(INDEX(Admin!$D$10:$E$100,MATCH(Q148,Admin!$D$10:$D$83,0),2),Q148) -> Hälsovård, sjukvård och social omsorg | U148: =INDEX(Befolkning!$F$10:$F$50,MATCH(BudgetData!$P148*1,Befolkning!$B$10:$B$50,0),1) -> 10457147 | V148: 11.4828643 | W148: 0.9569053586
A149: Utgifter2022 | B149: Utgift | E149: 11 Prestationsbundna insatser för att korta vårdköerna | F149: 3000000 | G149: 11 Prestationsbundna insatser för att korta vårdköerna | H149: 9 | J149: 11 | K149: 11 | M149: FALSE | N149: =IF(M149=TRUE,FALSE, IF(COUNTIFS($R$10:R149,R149,$H$10:H149,H149,$P$10:P149,P149)=1,TRUE, IF(COUNTIFS(H:H,H149,I:I,">0",P:P,P149)=0,TRUE,FALSE))) -> FALSE | O149: TRUE | P149: 2022 | Q149: Hälsovård, sjukvård och social omsorg | R149: Hälso- och sjukvårdspolitik | S149: Prestationsbundna insatser för att korta vårdköerna | T149: =IFERROR(INDEX(Admin!$D$10:$E$100,MATCH(Q149,Admin!$D$10:$D$83,0),2),Q149) -> Hälsovård, sjukvård och social omsorg | U149: =INDEX(Befolkning!$F$10:$F$50,MATCH(BudgetData!$P149*1,Befolkning!$B$10:$B$50,0),1) -> 10457147 | V149: 286.8851322 | W149: 23.90709435
A150: Utgifter2022 | B150: Utgift | E150: 12 Inspektionen för vård och omsorg | F150: 778757 | G150: 12 Inspektionen för vård och omsorg | H150: 9 | J150: 12 | K150: 12 | M150: FALSE | N150: =IF(M150=TRUE,FALSE, IF(COUNTIFS($R$10:R150,R150,$H$10:H150,H150,$P$10:P150,P150)=1,TRUE, IF(COUNTIFS(H:H,H150,I:I,">0",P:P,P150)=0,TRUE,FALSE))) -> FALSE | O150: TRUE | P150: 2022 | Q150: Hälsovård, sjukvård och social omsorg | R150: Hälso- och sjukvårdspolitik | S150: Inspektionen för vård och omsorg | T150: =IFERROR(INDEX(Admin!$D$10:$E$100,MATCH(Q150,Admin!$D$10:$D$83,0),2),Q150) -> Hälsovård, sjukvård och social omsorg | U150: =INDEX(Befolkning!$F$10:$F$50,MATCH(BudgetData!$P150*1,Befolkning!$B$10:$B$50,0),1) -> 10457147 | V150: 74.47126831 | W150: 6.205939026
A151: Utgifter2022 | B151: Utgift | E151: 2 Folkhälsopolitik | F151: 849469 | G151: 2 Folkhälsopolitik | H151: 9 | I151: 2 | K151: 2 | L151: Sum | M151: FALSE | N151: =IF(M151=TRUE,FALSE, IF(COUNTIFS($R$10:R151,R151,$H$10:H151,H151,$P$10:P151,P151)=1,TRUE, IF(COUNTIFS(H:H,H151,I:I,">0",P:P,P151)=0,TRUE,FALSE))) -> TRUE | O151: FALSE | P151: 2022 | Q151: Hälsovård, sjukvård och social omsorg | R151: Folkhälsopolitik | T151: =IFERROR(INDEX(Admin!$D$10:$E$100,MATCH(Q151,Admin!$D$10:$D$83,0),2),Q151) -> Hälsovård, sjukvård och social omsorg | U151: =INDEX(Befolkning!$F$10:$F$50,MATCH(BudgetData!$P151*1,Befolkning!$B$10:$B$50,0),1) -> 10457147 | V151: 81.23334213 | W151: 6.769445178
A152: Utgifter2022 | B152: Utgift | E152: 1 Folkhälsomyndigheten | F152: 511173 | G152: 1 Folkhälsomyndigheten | H152: 9 | J152: 1 | K152: 1 | M152: FALSE | N152: =IF(M152=TRUE,FALSE, IF(COUNTIFS($R$10:R152,R152,$H$10:H152,H152,$P$10:P152,P152)=1,TRUE, IF(COUNTIFS(H:H,H152,I:I,">0",P:P,P152)=0,TRUE,FALSE))) -> FALSE | O152: TRUE | P152: 2022 | Q152: Hälsovård, sjukvård och social omsorg | R152: Folkhälsopolitik | S152: Folkhälsomyndigheten | T152: =IFERROR(INDEX(Admin!$D$10:$E$100,MATCH(Q152,Admin!$D$10:$D$83,0),2),Q152) -> Hälsovård, sjukvård och social omsorg | U152: =INDEX(Befolkning!$F$10:$F$50,MATCH(BudgetData!$P152*1,Befolkning!$B$10:$B$50,0),1) -> 10457147 | V152: 48.88264457 | W152: 4.073553714
A153: Utgifter2022 | B153: Utgift | E153: 2 Insatser för vaccinberedskap | F153: 120500 | G153: 2 Insatser för vaccinberedskap | H153: 9 | J153: 2 | K153: 2 | M153: FALSE | N153: =IF(M153=TRUE,FALSE, IF(COUNTIFS($R$10:R153,R153,$H$10:H153,H153,$P$10:P153,P153)=1,TRUE, IF(COUNTIFS(H:H,H153,I:I,">0",P:P,P153)=0,TRUE,FALSE))) -> FALSE | O153: TRUE | P153: 2022 | Q153: Hälsovård, sjukvård och social omsorg | R153: Folkhälsopolitik | S153: Insatser för vaccinberedskap | T153: =IFERROR(INDEX(Admin!$D$10:$E$100,MATCH(Q153,Admin!$D$10:$D$83,0),2),Q153) -> Hälsovård, sjukvård och social omsorg | U153: =INDEX(Befolkning!$F$10:$F$50,MATCH(BudgetData!$P153*1,Befolkning!$B$10:$B$50,0),1) -> 10457147 | V153: 11.52321948 | W153: 0.9602682899
A154: Utgifter2022 | B154: Utgift | E154: 3 Bidrag till WHO | F154: 46665 | G154: 3 Bidrag till WHO | H154: 9 | J154: 3 | K154: 3 | M154: FALSE | N154: =IF(M154=TRUE,FALSE, IF(COUNTIFS($R$10:R154,R154,$H$10:H154,H154,$P$10:P154,P154)=1,TRUE, IF(COUNTIFS(H:H,H154,I:I,">0",P:P,P154)=0,TRUE,FALSE))) -> FALSE | O154: TRUE | P154: 2022 | Q154: Hälsovård, sjukvård och social omsorg | R154: Folkhälsopolitik | S154: Bidrag till WHO | T154: =IFERROR(INDEX(Admin!$D$10:$E$100,MATCH(Q154,Admin!$D$10:$D$83,0),2),Q154) -> Hälsovård, sjukvård och social omsorg | U154: =INDEX(Befolkning!$F$10:$F$50,MATCH(BudgetData!$P154*1,Befolkning!$B$10:$B$50,0),1) -> 10457147 | V154: 4.462498232 | W154: 0.3718748527
A155: Utgifter2022 | B155: Utgift | E155: 4 Insatser mot hiv/aids och andra smittsamma sjukdomar | F155: 75502 | G155: 4 Insatser mot hiv/aids och andra smittsamma sjukdomar | H155: 9 | J155: 4 | K155: 4 | M155: FALSE | N155: =IF(M155=TRUE,FALSE, IF(COUNTIFS($R$10:R155,R155,$H$10:H155,H155,$P$10:P155,P155)=1,TRUE, IF(COUNTIFS(H:H,H155,I:I,">0",P:P,P155)=0,TRUE,FALSE))) -> FALSE | O155: TRUE | P155: 2022 | Q155: Hälsovård, sjukvård och social omsorg | R155: Folkhälsopolitik | S155: Insatser mot hiv/aids och andra smittsamma sjukdomar | T155: =IFERROR(INDEX(Admin!$D$10:$E$100,MATCH(Q155,Admin!$D$10:$D$83,0),2),Q155) -> Hälsovård, sjukvård och social omsorg | U155: =INDEX(Befolkning!$F$10:$F$50,MATCH(BudgetData!$P155*1,Befolkning!$B$10:$B$50,0),1) -> 10457147 | V155: 7.220133752 | W155: 0.6016778126
A156: Utgifter2022 | B156: Utgift | E156: 5 Åtgärder avseende alkohol, narkotika, dopning, tobak samt spel | F156: 95629 | G156: 5 Åtgärder avseende alkohol, narkotika, dopning, tobak samt spel | H156: 9 | J156: 5 | K156: 5 | M156: FALSE | N156: =IF(M156=TRUE,FALSE, IF(COUNTIFS($R$10:R156,R156,$H$10:H156,H156,$P$10:P156,P156)=1,TRUE, IF(COUNTIFS(H:H,H156,I:I,">0",P:P,P156)=0,TRUE,FALSE))) -> FALSE | O156: TRUE | P156: 2022 | Q156: Hälsovård, sjukvård och social omsorg | R156: Folkhälsopolitik | S156: Åtgärder avseende alkohol, narkotika, dopning, tobak samt spel | T156: =IFERROR(INDEX(Admin!$D$10:$E$100,MATCH(Q156,Admin!$D$10:$D$83,0),2),Q156) -> Hälsovård, sjukvård och social omsorg | U156: =INDEX(Befolkning!$F$10:$F$50,MATCH(BudgetData!$P156*1,Befolkning!$B$10:$B$50,0),1) -> 10457147 | V156: 9.144846104 | W156: 0.7620705087
A157: Utgifter2022 | B157: Utgift | E157: 3 Funktionshinderspolitik | F157: 250822 | G157: 3 Funktionshinderspolitik | H157: 9 | I157: 3 | K157: 3 | L157: Sum | M157: FALSE | N157: =IF(M157=TRUE,FALSE, IF(COUNTIFS($R$10:R157,R157,$H$10:H157,H157,$P$10:P157,P157)=1,TRUE, IF(COUNTIFS(H:H,H157,I:I,">0",P:P,P157)=0,TRUE,FALSE))) -> TRUE | O157: FALSE | P157: 2022 | Q157: Hälsovård, sjukvård och social omsorg | R157: Funktionshinderspolitik | T157: =IFERROR(INDEX(Admin!$D$10:$E$100,MATCH(Q157,Admin!$D$10:$D$83,0),2),Q157) -> Hälsovård, sjukvård och social omsorg | U157: =INDEX(Befolkning!$F$10:$F$50,MATCH(BudgetData!$P157*1,Befolkning!$B$10:$B$50,0),1) -> 10457147 | V157: 23.98570088 | W157: 1.998808407
A158: Utgifter2022 | B158: Utgift | E158: 1 Myndigheten för delaktighet | F158: 62080 | G158: 1 Myndigheten för delaktighet | H158: 9 | J158: 1 | K158: 1 | M158: FALSE | N158: =IF(M158=TRUE,FALSE, IF(COUNTIFS($R$10:R158,R158,$H$10:H158,H158,$P$10:P158,P158)=1,TRUE, IF(COUNTIFS(H:H,H158,I:I,">0",P:P,P158)=0,TRUE,FALSE))) -> FALSE | O158: TRUE | P158: 2022 | Q158: Hälsovård, sjukvård och social omsorg | R158: Funktionshinderspolitik | S158: Myndigheten för delaktighet | T158: =IFERROR(INDEX(Admin!$D$10:$E$100,MATCH(Q158,Admin!$D$10:$D$83,0),2),Q158) -> Hälsovård, sjukvård och social omsorg | U158: =INDEX(Befolkning!$F$10:$F$50,MATCH(BudgetData!$P158*1,Befolkning!$B$10:$B$50,0),1) -> 10457147 | V158: 5.93660967 | W158: 0.4947174725
A159: Utgifter2022 | B159: Utgift | E159: 2 Bidrag till funktionshindersorganisationer | F159: 188742 | G159: 2 Bidrag till funktionshindersorganisationer | H159: 9 | J159: 2 | K159: 2 | M159: FALSE | N159: =IF(M159=TRUE,FALSE, IF(COUNTIFS($R$10:R159,R159,$H$10:H159,H159,$P$10:P159,P159)=1,TRUE, IF(COUNTIFS(H:H,H159,I:I,">0",P:P,P159)=0,TRUE,FALSE))) -> FALSE | O159: TRUE | P159: 2022 | Q159: Hälsovård, sjukvård och social omsorg | R159: Funktionshinderspolitik | S159: Bidrag till funktionshindersorganisationer | T159: =IFERROR(INDEX(Admin!$D$10:$E$100,MATCH(Q159,Admin!$D$10:$D$83,0),2),Q159) -> Hälsovård, sjukvård och social omsorg | U159: =INDEX(Befolkning!$F$10:$F$50,MATCH(BudgetData!$P159*1,Befolkning!$B$10:$B$50,0),1) -> 10457147 | V159: 18.04909121 | W159: 1.504090934
A160: Utgifter2022 | B160: Utgift | E160: 4 Politik för sociala tjänster | F160: 37359776 | G160: 4 Politik för sociala tjänster | H160: 9 | I160: 4 | K160: 4 | L160: Sum | M160: FALSE | N160: =IF(M160=TRUE,FALSE, IF(COUNTIFS($R$10:R160,R160,$H$10:H160,H160,$P$10:P160,P160)=1,TRUE, IF(COUNTIFS(H:H,H160,I:I,">0",P:P,P160)=0,TRUE,FALSE))) -> TRUE | O160: FALSE | P160: 2022 | Q160: Hälsovård, sjukvård och social omsorg | R160: Politik för sociala tjänster | T160: =IFERROR(INDEX(Admin!$D$10:$E$100,MATCH(Q160,Admin!$D$10:$D$83,0),2),Q160) -> Hälsovård, sjukvård och social omsorg | U160: =INDEX(Befolkning!$F$10:$F$50,MATCH(BudgetData!$P160*1,Befolkning!$B$10:$B$50,0),1) -> 10457147 | V160: 3572.654759 | W160: 297.72123
A161: Utgifter2022 | B161: Utgift | E161: 1 Myndigheten för familjerätt och föräldraskapsstöd | F161: 32548 | G161: 1 Myndigheten för familjerätt och föräldraskapsstöd | H161: 9 | J161: 1 | K161: 1 | M161: FALSE | N161: =IF(M161=TRUE,FALSE, IF(COUNTIFS($R$10:R161,R161,$H$10:H161,H161,$P$10:P161,P161)=1,TRUE, IF(COUNTIFS(H:H,H161,I:I,">0",P:P,P161)=0,TRUE,FALSE))) -> FALSE | O161: TRUE | P161: 2022 | Q161: Hälsovård, sjukvård och social omsorg | R161: Politik för sociala tjänster | S161: Myndigheten för familjerätt och föräldraskapsstöd | T161: =IFERROR(INDEX(Admin!$D$10:$E$100,MATCH(Q161,Admin!$D$10:$D$83,0),2),Q161) -> Hälsovård, sjukvård och social omsorg | U161: =INDEX(Befolkning!$F$10:$F$50,MATCH(BudgetData!$P161*1,Befolkning!$B$10:$B$50,0),1) -> 10457147 | V161: 3.112512428 | W161: 0.2593760357
A162: Utgifter2022 | B162: Utgift | E162: 2 Vissa statsbidrag inom funktionshindersområdet | F162: 785514 | G162: 2 Vissa statsbidrag inom funktionshindersområdet | H162: 9 | J162: 2 | K162: 2 | M162: FALSE | N162: =IF(M162=TRUE,FALSE, IF(COUNTIFS($R$10:R162,R162,$H$10:H162,H162,$P$10:P162,P162)=1,TRUE, IF(COUNTIFS(H:H,H162,I:I,">0",P:P,P162)=0,TRUE,FALSE))) -> FALSE | O162: TRUE | P162: 2022 | Q162: Hälsovård, sjukvård och social omsorg | R162: Politik för sociala tjänster | S162: Vissa statsbidrag inom funktionshindersområdet | T162: =IFERROR(INDEX(Admin!$D$10:$E$100,MATCH(Q162,Admin!$D$10:$D$83,0),2),Q162) -> Hälsovård, sjukvård och social omsorg | U162: =INDEX(Befolkning!$F$10:$F$50,MATCH(BudgetData!$P162*1,Befolkning!$B$10:$B$50,0),1) -> 10457147 | V162: 75.11742926 | W162: 6.259785771
A163: Utgifter2022 | B163: Utgift | E163: 3 Bilstöd till personer med funktionsnedsättning | F163: 263395 | G163: 3 Bilstöd till personer med funktionsnedsättning | H163: 9 | J163: 3 | K163: 3 | M163: FALSE | N163: =IF(M163=TRUE,FALSE, IF(COUNTIFS($R$10:R163,R163,$H$10:H163,H163,$P$10:P163,P163)=1,TRUE, IF(COUNTIFS(H:H,H163,I:I,">0",P:P,P163)=0,TRUE,FALSE))) -> FALSE | O163: TRUE | P163: 2022 | Q163: Hälsovård, sjukvård och social omsorg | R163: Politik för sociala tjänster | S163: Bilstöd till personer med funktionsnedsättning | T163: =IFERROR(INDEX(Admin!$D$10:$E$100,MATCH(Q163,Admin!$D$10:$D$83,0),2),Q163) -> Hälsovård, sjukvård och social omsorg | U163: =INDEX(Befolkning!$F$10:$F$50,MATCH(BudgetData!$P163*1,Befolkning!$B$10:$B$50,0),1) -> 10457147 | V163: 25.18803647 | W163: 2.099003039
A164: Utgifter2022 | B164: Utgift | E164: 4 Kostnader för statlig assistansersättning | F164: 25043066 | G164: 4 Kostnader för statlig assistansersättning | H164: 9 | J164: 4 | K164: 4 | M164: FALSE | N164: =IF(M164=TRUE,FALSE, IF(COUNTIFS($R$10:R164,R164,$H$10:H164,H164,$P$10:P164,P164)=1,TRUE, IF(COUNTIFS(H:H,H164,I:I,">0",P:P,P164)=0,TRUE,FALSE))) -> FALSE | O164: TRUE | P164: 2022 | Q164: Hälsovård, sjukvård och social omsorg | R164: Politik för sociala tjänster | S164: Kostnader för statlig assistansersättning | T164: =IFERROR(INDEX(Admin!$D$10:$E$100,MATCH(Q164,Admin!$D$10:$D$83,0),2),Q164) -> Hälsovård, sjukvård och social omsorg | U164: =INDEX(Befolkning!$F$10:$F$50,MATCH(BudgetData!$P164*1,Befolkning!$B$10:$B$50,0),1) -> 10457147 | V164: 2394.827767 | W164: 199.5689806
A165: Utgifter2022 | B165: Utgift | E165: 5 Stimulansbidrag och åtgärder inom äldreområdet | F165: 8660490 | G165: 5 Stimulansbidrag och åtgärder inom äldreområdet | H165: 9 | J165: 5 | K165: 5 | M165: FALSE | N165: =IF(M165=TRUE,FALSE, IF(COUNTIFS($R$10:R165,R165,$H$10:H165,H165,$P$10:P165,P165)=1,TRUE, IF(COUNTIFS(H:H,H165,I:I,">0",P:P,P165)=0,TRUE,FALSE))) -> FALSE | O165: TRUE | P165: 2022 | Q165: Hälsovård, sjukvård och social omsorg | R165: Politik för sociala tjänster | S165: Stimulansbidrag och åtgärder inom äldreområdet | T165: =IFERROR(INDEX(Admin!$D$10:$E$100,MATCH(Q165,Admin!$D$10:$D$83,0),2),Q165) -> Hälsovård, sjukvård och social omsorg | U165: =INDEX(Befolkning!$F$10:$F$50,MATCH(BudgetData!$P165*1,Befolkning!$B$10:$B$50,0),1) -> 10457147 | V165: 828.1886063 | W165: 69.01571719
A166: Utgifter2022 | B166: Utgift | E166: 6 Statens institutionsstyrelse | F166: 1867518 | G166: 6 Statens institutionsstyrelse | H166: 9 | J166: 6 | K166: 6 | M166: FALSE | N166: =IF(M166=TRUE,FALSE, IF(COUNTIFS($R$10:R166,R166,$H$10:H166,H166,$P$10:P166,P166)=1,TRUE, IF(COUNTIFS(H:H,H166,I:I,">0",P:P,P166)=0,TRUE,FALSE))) -> FALSE | O166: TRUE | P166: 2022 | Q166: Hälsovård, sjukvård och social omsorg | R166: Politik för sociala tjänster | S166: Statens institutionsstyrelse | T166: =IFERROR(INDEX(Admin!$D$10:$E$100,MATCH(Q166,Admin!$D$10:$D$83,0),2),Q166) -> Hälsovård, sjukvård och social omsorg | U166: =INDEX(Befolkning!$F$10:$F$50,MATCH(BudgetData!$P166*1,Befolkning!$B$10:$B$50,0),1) -> 10457147 | V166: 178.5877161 | W166: 14.88230968
A167: Utgifter2022 | B167: Utgift | E167: 7 Bidrag till utveckling av socialt arbete m.m. | F167: 669151 | G167: 7 Bidrag till utveckling av socialt arbete m.m. | H167: 9 | J167: 7 | K167: 7 | M167: FALSE | N167: =IF(M167=TRUE,FALSE, IF(COUNTIFS($R$10:R167,R167,$H$10:H167,H167,$P$10:P167,P167)=1,TRUE, IF(COUNTIFS(H:H,H167,I:I,">0",P:P,P167)=0,TRUE,FALSE))) -> FALSE | O167: TRUE | P167: 2022 | Q167: Hälsovård, sjukvård och social omsorg | R167: Politik för sociala tjänster | S167: Bidrag till utveckling av socialt arbete m.m. | T167: =IFERROR(INDEX(Admin!$D$10:$E$100,MATCH(Q167,Admin!$D$10:$D$83,0),2),Q167) -> Hälsovård, sjukvård och social omsorg | U167: =INDEX(Befolkning!$F$10:$F$50,MATCH(BudgetData!$P167*1,Befolkning!$B$10:$B$50,0),1) -> 10457147 | V167: 63.98982438 | W167: 5.332485365
A168: Utgifter2022 | B168: Utgift | E168: 8 Myndigheten för vård- och omsorgsanalys | F168: 38094 | G168: 8 Myndigheten för vård- och omsorgsanalys | H168: 9 | J168: 8 | K168: 8 | M168: FALSE | N168: =IF(M168=TRUE,FALSE, IF(COUNTIFS($R$10:R168,R168,$H$10:H168,H168,$P$10:P168,P168)=1,TRUE, IF(COUNTIFS(H:H,H168,I:I,">0",P:P,P168)=0,TRUE,FALSE))) -> FALSE | O168: TRUE | P168: 2022 | Q168: Hälsovård, sjukvård och social omsorg | R168: Politik för sociala tjänster | S168: Myndigheten för vård- och omsorgsanalys | T168: =IFERROR(INDEX(Admin!$D$10:$E$100,MATCH(Q168,Admin!$D$10:$D$83,0),2),Q168) -> Hälsovård, sjukvård och social omsorg | U168: =INDEX(Befolkning!$F$10:$F$50,MATCH(BudgetData!$P168*1,Befolkning!$B$10:$B$50,0),1) -> 10457147 | V168: 3.642867409 | W168: 0.3035722841
A169: Utgifter2022 | B169: Utgift | E169: 5 Barnrättspolitik | F169: 69200 | G169: 5 Barnrättspolitik | H169: 9 | I169: 5 | K169: 5 | L169: Sum | M169: FALSE | N169: =IF(M169=TRUE,FALSE, IF(COUNTIFS($R$10:R169,R169,$H$10:H169,H169,$P$10:P169,P169)=1,TRUE, IF(COUNTIFS(H:H,H169,I:I,">0",P:P,P169)=0,TRUE,FALSE))) -> TRUE | O169: FALSE | P169: 2022 | Q169: Hälsovård, sjukvård och social omsorg | R169: Barnrättspolitik | T169: =IFERROR(INDEX(Admin!$D$10:$E$100,MATCH(Q169,Admin!$D$10:$D$83,0),2),Q169) -> Hälsovård, sjukvård och social omsorg | U169: =INDEX(Befolkning!$F$10:$F$50,MATCH(BudgetData!$P169*1,Befolkning!$B$10:$B$50,0),1) -> 10457147 | V169: 6.617483717 | W169: 0.5514569764
A170: Utgifter2022 | B170: Utgift | E170: 1 Barnombudsmannen | F170: 26939 | G170: 1 Barnombudsmannen | H170: 9 | J170: 1 | K170: 1 | M170: FALSE | N170: =IF(M170=TRUE,FALSE, IF(COUNTIFS($R$10:R170,R170,$H$10:H170,H170,$P$10:P170,P170)=1,TRUE, IF(COUNTIFS(H:H,H170,I:I,">0",P:P,P170)=0,TRUE,FALSE))) -> FALSE | O170: TRUE | P170: 2022 | Q170: Hälsovård, sjukvård och social omsorg | R170: Barnrättspolitik | S170: Barnombudsmannen | T170: =IFERROR(INDEX(Admin!$D$10:$E$100,MATCH(Q170,Admin!$D$10:$D$83,0),2),Q170) -> Hälsovård, sjukvård och social omsorg | U170: =INDEX(Befolkning!$F$10:$F$50,MATCH(BudgetData!$P170*1,Befolkning!$B$10:$B$50,0),1) -> 10457147 | V170: 2.576132859 | W170: 0.2146777383
A171: Utgifter2022 | B171: Utgift | E171: 2 Barnets rättigheter | F171: 42261 | G171: 2 Barnets rättigheter | H171: 9 | J171: 2 | K171: 2 | M171: FALSE | N171: =IF(M171=TRUE,FALSE, IF(COUNTIFS($R$10:R171,R171,$H$10:H171,H171,$P$10:P171,P171)=1,TRUE, IF(COUNTIFS(H:H,H171,I:I,">0",P:P,P171)=0,TRUE,FALSE))) -> FALSE | O171: TRUE | P171: 2022 | Q171: Hälsovård, sjukvård och social omsorg | R171: Barnrättspolitik | S171: Barnets rättigheter | T171: =IFERROR(INDEX(Admin!$D$10:$E$100,MATCH(Q171,Admin!$D$10:$D$83,0),2),Q171) -> Hälsovård, sjukvård och social omsorg | U171: =INDEX(Befolkning!$F$10:$F$50,MATCH(BudgetData!$P171*1,Befolkning!$B$10:$B$50,0),1) -> 10457147 | V171: 4.041350858 | W171: 0.3367792382
A172: Utgifter2022 | B172: Utgift | E172: 6 Forskningspolitik | F172: 827505 | G172: 6 Forskningspolitik | H172: 9 | I172: 6 | K172: 6 | L172: Sum | M172: FALSE | N172: =IF(M172=TRUE,FALSE, IF(COUNTIFS($R$10:R172,R172,$H$10:H172,H172,$P$10:P172,P172)=1,TRUE, IF(COUNTIFS(H:H,H172,I:I,">0",P:P,P172)=0,TRUE,FALSE))) -> TRUE | O172: FALSE | P172: 2022 | Q172: Hälsovård, sjukvård och social omsorg | R172: Forskningspolitik | T172: =IFERROR(INDEX(Admin!$D$10:$E$100,MATCH(Q172,Admin!$D$10:$D$83,0),2),Q172) -> Hälsovård, sjukvård och social omsorg | U172: =INDEX(Befolkning!$F$10:$F$50,MATCH(BudgetData!$P172*1,Befolkning!$B$10:$B$50,0),1) -> 10457147 | V172: 79.13296045 | W172: 6.594413371
A173: Utgifter2022 | B173: Utgift | E173: 1 Forskningsrådet för hälsa, arbetsliv och välfärd: Förvaltning | F173: 41002 | G173: 1 Forskningsrådet för hälsa, arbetsliv och välfärd: Förvaltning | H173: 9 | J173: 1 | K173: 1 | M173: FALSE | N173: =IF(M173=TRUE,FALSE, IF(COUNTIFS($R$10:R173,R173,$H$10:H173,H173,$P$10:P173,P173)=1,TRUE, IF(COUNTIFS(H:H,H173,I:I,">0",P:P,P173)=0,TRUE,FALSE))) -> FALSE | O173: TRUE | P173: 2022 | Q173: Hälsovård, sjukvård och social omsorg | R173: Forskningspolitik | S173: Forskningsrådet för hälsa, arbetsliv och välfärd: Förvaltning | T173: =IFERROR(INDEX(Admin!$D$10:$E$100,MATCH(Q173,Admin!$D$10:$D$83,0),2),Q173) -> Hälsovård, sjukvård och social omsorg | U173: =INDEX(Befolkning!$F$10:$F$50,MATCH(BudgetData!$P173*1,Befolkning!$B$10:$B$50,0),1) -> 10457147 | V173: 3.920954731 | W173: 0.3267462276
A174: Utgifter2022 | B174: Utgift | E174: 2 Forskningsrådet för hälsa, arbetsliv och välfärd: Forskning | F174: 786503 | G174: 2 Forskningsrådet för hälsa, arbetsliv och välfärd: Forskning | H174: 9 | J174: 2 | K174: 2 | M174: FALSE | N174: =IF(M174=TRUE,FALSE, IF(COUNTIFS($R$10:R174,R174,$H$10:H174,H174,$P$10:P174,P174)=1,TRUE, IF(COUNTIFS(H:H,H174,I:I,">0",P:P,P174)=0,TRUE,FALSE))) -> FALSE | O174: TRUE | P174: 2022 | Q174: Hälsovård, sjukvård och social omsorg | R174: Forskningspolitik | S174: Forskningsrådet för hälsa, arbetsliv och välfärd: Forskning | T174: =IFERROR(INDEX(Admin!$D$10:$E$100,MATCH(Q174,Admin!$D$10:$D$83,0),2),Q174) -> Hälsovård, sjukvård och social omsorg | U174: =INDEX(Befolkning!$F$10:$F$50,MATCH(BudgetData!$P174*1,Befolkning!$B$10:$B$50,0),1) -> 10457147 | V174: 75.21200572 | W174: 6.267667144
A175: Utgifter2022 | B175: Utgift | D175: 10 | E175: 10 Ekonomisk trygghet vid sjukdom och funktionsnedsättning | F175: 97721457 | G175: 10 Ekonomisk trygghet vid sjukdom och funktionsnedsättning | H175: 10 | K175: 10 | L175: Sum | M175: TRUE | N175: =IF(M175=TRUE,FALSE, IF(COUNTIFS($R$10:R175,R175,$H$10:H175,H175,$P$10:P175,P175)=1,TRUE, IF(COUNTIFS(H:H,H175,I:I,">0",P:P,P175)=0,TRUE,FALSE))) -> FALSE | O175: FALSE | P175: 2022 | Q175: Ekonomisk trygghet vid sjukdom och funktionsnedsättning | T175: =IFERROR(INDEX(Admin!$D$10:$E$100,MATCH(Q175,Admin!$D$10:$D$83,0),2),Q175) -> Ekonomisk trygghet vid sjukdom och funktionsnedsättning | U175: =INDEX(Befolkning!$F$10:$F$50,MATCH(BudgetData!$P175*1,Befolkning!$B$10:$B$50,0),1) -> 10457147 | V175: 9344.944372 | W175: 778.7453643
A176: Utgifter2022 | B176: Utgift | E176: 1 Ersättning vid sjukdom och funktionsnedsättning | F176: 88124819 | G176: 1 Ersättning vid sjukdom och funktionsnedsättning | H176: 10 | I176: 1 | K176: 1 | L176: Sum | M176: FALSE | N176: =IF(M176=TRUE,FALSE, IF(COUNTIFS($R$10:R176,R176,$H$10:H176,H176,$P$10:P176,P176)=1,TRUE, IF(COUNTIFS(H:H,H176,I:I,">0",P:P,P176)=0,TRUE,FALSE))) -> TRUE | O176: FALSE | P176: 2022 | Q176: Ekonomisk trygghet vid sjukdom och funktionsnedsättning | R176: Ersättning vid sjukdom och funktionsnedsättning | T176: =IFERROR(INDEX(Admin!$D$10:$E$100,MATCH(Q176,Admin!$D$10:$D$83,0),2),Q176) -> Ekonomisk trygghet vid sjukdom och funktionsnedsättning | U176: =INDEX(Befolkning!$F$10:$F$50,MATCH(BudgetData!$P176*1,Befolkning!$B$10:$B$50,0),1) -> 10457147 | V176: 8427.233451 | W176: 702.2694542
A177: Utgifter2022 | B177: Utgift | E177: 1 Sjukpenning och rehabilitering m.m. | F177: 41005070 | G177: 1 Sjukpenning och rehabilitering m.m. | H177: 10 | J177: 1 | K177: 1 | M177: FALSE | N177: =IF(M177=TRUE,FALSE, IF(COUNTIFS($R$10:R177,R177,$H$10:H177,H177,$P$10:P177,P177)=1,TRUE, IF(COUNTIFS(H:H,H177,I:I,">0",P:P,P177)=0,TRUE,FALSE))) -> FALSE | O177: TRUE | P177: 2022 | Q177: Ekonomisk trygghet vid sjukdom och funktionsnedsättning | R177: Ersättning vid sjukdom och funktionsnedsättning | S177: Sjukpenning och rehabilitering m.m. | T177: =IFERROR(INDEX(Admin!$D$10:$E$100,MATCH(Q177,Admin!$D$10:$D$83,0),2),Q177) -> Ekonomisk trygghet vid sjukdom och funktionsnedsättning | U177: =INDEX(Befolkning!$F$10:$F$50,MATCH(BudgetData!$P177*1,Befolkning!$B$10:$B$50,0),1) -> 10457147 | V177: 3921.24831 | W177: 326.7706925
A178: Utgifter2022 | B178: Utgift | E178: 2 Aktivitets- och sjukersättningar m.m. | F178: 41706400 | G178: 2 Aktivitets- och sjukersättningar m.m. | H178: 10 | J178: 2 | K178: 2 | M178: FALSE | N178: =IF(M178=TRUE,FALSE, IF(COUNTIFS($R$10:R178,R178,$H$10:H178,H178,$P$10:P178,P178)=1,TRUE, IF(COUNTIFS(H:H,H178,I:I,">0",P:P,P178)=0,TRUE,FALSE))) -> FALSE | O178: TRUE | P178: 2022 | Q178: Ekonomisk trygghet vid sjukdom och funktionsnedsättning | R178: Ersättning vid sjukdom och funktionsnedsättning | S178: Aktivitets- och sjukersättningar m.m. | T178: =IFERROR(INDEX(Admin!$D$10:$E$100,MATCH(Q178,Admin!$D$10:$D$83,0),2),Q178) -> Ekonomisk trygghet vid sjukdom och funktionsnedsättning | U178: =INDEX(Befolkning!$F$10:$F$50,MATCH(BudgetData!$P178*1,Befolkning!$B$10:$B$50,0),1) -> 10457147 | V178: 3988.31536 | W178: 332.3596133
A179: Utgifter2022 | B179: Utgift | E179: 3 Merkostnadsersättning och handikappersättning | F179: 1351000 | G179: 3 Merkostnadsersättning och handikappersättning | H179: 10 | J179: 3 | K179: 3 | M179: FALSE | N179: =IF(M179=TRUE,FALSE, IF(COUNTIFS($R$10:R179,R179,$H$10:H179,H179,$P$10:P179,P179)=1,TRUE, IF(COUNTIFS(H:H,H179,I:I,">0",P:P,P179)=0,TRUE,FALSE))) -> FALSE | O179: TRUE | P179: 2022 | Q179: Ekonomisk trygghet vid sjukdom och funktionsnedsättning | R179: Ersättning vid sjukdom och funktionsnedsättning | S179: Merkostnadsersättning och handikappersättning | T179: =IFERROR(INDEX(Admin!$D$10:$E$100,MATCH(Q179,Admin!$D$10:$D$83,0),2),Q179) -> Ekonomisk trygghet vid sjukdom och funktionsnedsättning | U179: =INDEX(Befolkning!$F$10:$F$50,MATCH(BudgetData!$P179*1,Befolkning!$B$10:$B$50,0),1) -> 10457147 | V179: 129.1939379 | W179: 10.76616149
A180: Utgifter2022 | B180: Utgift | E180: 4 Arbetsskadeersättningar m.m. | F180: 2252000 | G180: 4 Arbetsskadeersättningar m.m. | H180: 10 | J180: 4 | K180: 4 | M180: FALSE | N180: =IF(M180=TRUE,FALSE, IF(COUNTIFS($R$10:R180,R180,$H$10:H180,H180,$P$10:P180,P180)=1,TRUE, IF(COUNTIFS(H:H,H180,I:I,">0",P:P,P180)=0,TRUE,FALSE))) -> FALSE | O180: TRUE | P180: 2022 | Q180: Ekonomisk trygghet vid sjukdom och funktionsnedsättning | R180: Ersättning vid sjukdom och funktionsnedsättning | S180: Arbetsskadeersättningar m.m. | T180: =IFERROR(INDEX(Admin!$D$10:$E$100,MATCH(Q180,Admin!$D$10:$D$83,0),2),Q180) -> Ekonomisk trygghet vid sjukdom och funktionsnedsättning | U180: =INDEX(Befolkning!$F$10:$F$50,MATCH(BudgetData!$P180*1,Befolkning!$B$10:$B$50,0),1) -> 10457147 | V180: 215.3551059 | W180: 17.94625883
A181: Utgifter2022 | B181: Utgift | E181: 5 Ersättning inom det statliga personskadeskyddet | F181: 36649 | G181: 5 Ersättning inom det statliga personskadeskyddet | H181: 10 | J181: 5 | K181: 5 | M181: FALSE | N181: =IF(M181=TRUE,FALSE, IF(COUNTIFS($R$10:R181,R181,$H$10:H181,H181,$P$10:P181,P181)=1,TRUE, IF(COUNTIFS(H:H,H181,I:I,">0",P:P,P181)=0,TRUE,FALSE))) -> FALSE | O181: TRUE | P181: 2022 | Q181: Ekonomisk trygghet vid sjukdom och funktionsnedsättning | R181: Ersättning vid sjukdom och funktionsnedsättning | S181: Ersättning inom det statliga personskadeskyddet | T181: =IFERROR(INDEX(Admin!$D$10:$E$100,MATCH(Q181,Admin!$D$10:$D$83,0),2),Q181) -> Ekonomisk trygghet vid sjukdom och funktionsnedsättning | U181: =INDEX(Befolkning!$F$10:$F$50,MATCH(BudgetData!$P181*1,Befolkning!$B$10:$B$50,0),1) -> 10457147 | V181: 3.504684404 | W181: 0.2920570337
A182: Utgifter2022 | B182: Utgift | E182: 6 Bidrag för sjukskrivningsprocessen | F182: 1491700 | G182: 6 Bidrag för sjukskrivningsprocessen | H182: 10 | J182: 6 | K182: 6 | M182: FALSE | N182: =IF(M182=TRUE,FALSE, IF(COUNTIFS($R$10:R182,R182,$H$10:H182,H182,$P$10:P182,P182)=1,TRUE, IF(COUNTIFS(H:H,H182,I:I,">0",P:P,P182)=0,TRUE,FALSE))) -> FALSE | O182: TRUE | P182: 2022 | Q182: Ekonomisk trygghet vid sjukdom och funktionsnedsättning | R182: Ersättning vid sjukdom och funktionsnedsättning | S182: Bidrag för sjukskrivningsprocessen | T182: =IFERROR(INDEX(Admin!$D$10:$E$100,MATCH(Q182,Admin!$D$10:$D$83,0),2),Q182) -> Ekonomisk trygghet vid sjukdom och funktionsnedsättning | U182: =INDEX(Befolkning!$F$10:$F$50,MATCH(BudgetData!$P182*1,Befolkning!$B$10:$B$50,0),1) -> 10457147 | V182: 142.6488506 | W182: 11.88740422
A183: Utgifter2022 | B183: Utgift | E183: 7 Ersättning för höga sjuklönekostnader | F183: 282000 | G183: 7 Ersättning för höga sjuklönekostnader | H183: 10 | J183: 7 | K183: 7 | M183: FALSE | N183: =IF(M183=TRUE,FALSE, IF(COUNTIFS($R$10:R183,R183,$H$10:H183,H183,$P$10:P183,P183)=1,TRUE, IF(COUNTIFS(H:H,H183,I:I,">0",P:P,P183)=0,TRUE,FALSE))) -> FALSE | O183: TRUE | P183: 2022 | Q183: Ekonomisk trygghet vid sjukdom och funktionsnedsättning | R183: Ersättning vid sjukdom och funktionsnedsättning | S183: Ersättning för höga sjuklönekostnader | T183: =IFERROR(INDEX(Admin!$D$10:$E$100,MATCH(Q183,Admin!$D$10:$D$83,0),2),Q183) -> Ekonomisk trygghet vid sjukdom och funktionsnedsättning | U183: =INDEX(Befolkning!$F$10:$F$50,MATCH(BudgetData!$P183*1,Befolkning!$B$10:$B$50,0),1) -> 10457147 | V183: 26.96720243 | W183: 2.247266869
A184: Utgifter2022 | B184: Utgift | E184: 2 Myndigheter | F184: 9596638 | G184: 2 Myndigheter | H184: 10 | I184: 2 | K184: 2 | L184: Sum | M184: FALSE | N184: =IF(M184=TRUE,FALSE, IF(COUNTIFS($R$10:R184,R184,$H$10:H184,H184,$P$10:P184,P184)=1,TRUE, IF(COUNTIFS(H:H,H184,I:I,">0",P:P,P184)=0,TRUE,FALSE))) -> TRUE | O184: FALSE | P184: 2022 | Q184: Ekonomisk trygghet vid sjukdom och funktionsnedsättning | R184: Myndigheter | T184: =IFERROR(INDEX(Admin!$D$10:$E$100,MATCH(Q184,Admin!$D$10:$D$83,0),2),Q184) -> Ekonomisk trygghet vid sjukdom och funktionsnedsättning | U184: =INDEX(Befolkning!$F$10:$F$50,MATCH(BudgetData!$P184*1,Befolkning!$B$10:$B$50,0),1) -> 10457147 | V184: 917.7109206 | W184: 76.47591005
A185: Utgifter2022 | B185: Utgift | E185: 1 Försäkringskassan | F185: 9524366 | G185: 1 Försäkringskassan | H185: 10 | J185: 1 | K185: 1 | M185: FALSE | N185: =IF(M185=TRUE,FALSE, IF(COUNTIFS($R$10:R185,R185,$H$10:H185,H185,$P$10:P185,P185)=1,TRUE, IF(COUNTIFS(H:H,H185,I:I,">0",P:P,P185)=0,TRUE,FALSE))) -> FALSE | O185: TRUE | P185: 2022 | Q185: Ekonomisk trygghet vid sjukdom och funktionsnedsättning | R185: Myndigheter | S185: Försäkringskassan | T185: =IFERROR(INDEX(Admin!$D$10:$E$100,MATCH(Q185,Admin!$D$10:$D$83,0),2),Q185) -> Ekonomisk trygghet vid sjukdom och funktionsnedsättning | U185: =INDEX(Befolkning!$F$10:$F$50,MATCH(BudgetData!$P185*1,Befolkning!$B$10:$B$50,0),1) -> 10457147 | V185: 910.7996665 | W185: 75.89997221
A186: Utgifter2022 | B186: Utgift | E186: 2 Inspektionen för socialförsäkringen | F186: 72272 | G186: 2 Inspektionen för socialförsäkringen | H186: 10 | J186: 2 | K186: 2 | M186: FALSE | N186: =IF(M186=TRUE,FALSE, IF(COUNTIFS($R$10:R186,R186,$H$10:H186,H186,$P$10:P186,P186)=1,TRUE, IF(COUNTIFS(H:H,H186,I:I,">0",P:P,P186)=0,TRUE,FALSE))) -> FALSE | O186: TRUE | P186: 2022 | Q186: Ekonomisk trygghet vid sjukdom och funktionsnedsättning | R186: Myndigheter | S186: Inspektionen för socialförsäkringen | T186: =IFERROR(INDEX(Admin!$D$10:$E$100,MATCH(Q186,Admin!$D$10:$D$83,0),2),Q186) -> Ekonomisk trygghet vid sjukdom och funktionsnedsättning | U186: =INDEX(Befolkning!$F$10:$F$50,MATCH(BudgetData!$P186*1,Befolkning!$B$10:$B$50,0),1) -> 10457147 | V186: 6.911254093 | W186: 0.575937841
A187: Utgifter2022 | B187: Utgift | D187: 11 | E187: 11 Ekonomisk trygghet vid ålderdom | F187: 41786128 | G187: 11 Ekonomisk trygghet vid ålderdom | H187: 11 | K187: 11 | L187: Sum | M187: TRUE | N187: =IF(M187=TRUE,FALSE, IF(COUNTIFS($R$10:R187,R187,$H$10:H187,H187,$P$10:P187,P187)=1,TRUE, IF(COUNTIFS(H:H,H187,I:I,">0",P:P,P187)=0,TRUE,FALSE))) -> FALSE | O187: FALSE | P187: 2022 | Q187: Ekonomisk trygghet vid ålderdom | T187: =IFERROR(INDEX(Admin!$D$10:$E$100,MATCH(Q187,Admin!$D$10:$D$83,0),2),Q187) -> Ekonomisk trygghet vid ålderdom | U187: =INDEX(Befolkning!$F$10:$F$50,MATCH(BudgetData!$P187*1,Befolkning!$B$10:$B$50,0),1) -> 10457147 | V187: 3995.939619 | W187: 332.9949683
A188: Utgifter2022 | B188: Utgift | E188: 1 Ersättning vid ålderdom | F188: 41085900 | G188: 1 Ersättning vid ålderdom | H188: 11 | I188: 1 | K188: 1 | L188: Sum | M188: FALSE | N188: =IF(M188=TRUE,FALSE, IF(COUNTIFS($R$10:R188,R188,$H$10:H188,H188,$P$10:P188,P188)=1,TRUE, IF(COUNTIFS(H:H,H188,I:I,">0",P:P,P188)=0,TRUE,FALSE))) -> TRUE | O188: FALSE | P188: 2022 | Q188: Ekonomisk trygghet vid ålderdom | R188: Ersättning vid ålderdom | T188: =IFERROR(INDEX(Admin!$D$10:$E$100,MATCH(Q188,Admin!$D$10:$D$83,0),2),Q188) -> Ekonomisk trygghet vid ålderdom | U188: =INDEX(Befolkning!$F$10:$F$50,MATCH(BudgetData!$P188*1,Befolkning!$B$10:$B$50,0),1) -> 10457147 | V188: 3928.977952 | W188: 327.4148293
A189: Utgifter2022 | B189: Utgift | E189: 1 Garantipension till ålderspension | F189: 13416400 | G189: 1 Garantipension till ålderspension | H189: 11 | J189: 1 | K189: 1 | M189: FALSE | N189: =IF(M189=TRUE,FALSE, IF(COUNTIFS($R$10:R189,R189,$H$10:H189,H189,$P$10:P189,P189)=1,TRUE, IF(COUNTIFS(H:H,H189,I:I,">0",P:P,P189)=0,TRUE,FALSE))) -> FALSE | O189: TRUE | P189: 2022 | Q189: Ekonomisk trygghet vid ålderdom | R189: Ersättning vid ålderdom | S189: Garantipension till ålderspension | T189: =IFERROR(INDEX(Admin!$D$10:$E$100,MATCH(Q189,Admin!$D$10:$D$83,0),2),Q189) -> Ekonomisk trygghet vid ålderdom | U189: =INDEX(Befolkning!$F$10:$F$50,MATCH(BudgetData!$P189*1,Befolkning!$B$10:$B$50,0),1) -> 10457147 | V189: 1282.988563 | W189: 106.9157136
A190: Utgifter2022 | B190: Utgift | E190: 2 Efterlevandepensioner till vuxna | F190: 8834900 | G190: 2 Efterlevandepensioner till vuxna | H190: 11 | J190: 2 | K190: 2 | M190: FALSE | N190: =IF(M190=TRUE,FALSE, IF(COUNTIFS($R$10:R190,R190,$H$10:H190,H190,$P$10:P190,P190)=1,TRUE, IF(COUNTIFS(H:H,H190,I:I,">0",P:P,P190)=0,TRUE,FALSE))) -> FALSE | O190: TRUE | P190: 2022 | Q190: Ekonomisk trygghet vid ålderdom | R190: Ersättning vid ålderdom | S190: Efterlevandepensioner till vuxna | T190: =IFERROR(INDEX(Admin!$D$10:$E$100,MATCH(Q190,Admin!$D$10:$D$83,0),2),Q190) -> Ekonomisk trygghet vid ålderdom | U190: =INDEX(Befolkning!$F$10:$F$50,MATCH(BudgetData!$P190*1,Befolkning!$B$10:$B$50,0),1) -> 10457147 | V190: 844.8671516 | W190: 70.40559597
A191: Utgifter2022 | B191: Utgift | E191: 3 Bostadstillägg till pensionärer | F191: 11461400 | G191: 3 Bostadstillägg till pensionärer | H191: 11 | J191: 3 | K191: 3 | M191: FALSE | N191: =IF(M191=TRUE,FALSE, IF(COUNTIFS($R$10:R191,R191,$H$10:H191,H191,$P$10:P191,P191)=1,TRUE, IF(COUNTIFS(H:H,H191,I:I,">0",P:P,P191)=0,TRUE,FALSE))) -> FALSE | O191: TRUE | P191: 2022 | Q191: Ekonomisk trygghet vid ålderdom | R191: Ersättning vid ålderdom | S191: Bostadstillägg till pensionärer | T191: =IFERROR(INDEX(Admin!$D$10:$E$100,MATCH(Q191,Admin!$D$10:$D$83,0),2),Q191) -> Ekonomisk trygghet vid ålderdom | U191: =INDEX(Befolkning!$F$10:$F$50,MATCH(BudgetData!$P191*1,Befolkning!$B$10:$B$50,0),1) -> 10457147 | V191: 1096.035085 | W191: 91.33625708
A192: Utgifter2022 | B192: Utgift | E192: 4 Äldreförsörjningsstöd | F192: 1252200 | G192: 4 Äldreförsörjningsstöd | H192: 11 | J192: 4 | K192: 4 | M192: FALSE | N192: =IF(M192=TRUE,FALSE, IF(COUNTIFS($R$10:R192,R192,$H$10:H192,H192,$P$10:P192,P192)=1,TRUE, IF(COUNTIFS(H:H,H192,I:I,">0",P:P,P192)=0,TRUE,FALSE))) -> FALSE | O192: TRUE | P192: 2022 | Q192: Ekonomisk trygghet vid ålderdom | R192: Ersättning vid ålderdom | S192: Äldreförsörjningsstöd | T192: =IFERROR(INDEX(Admin!$D$10:$E$100,MATCH(Q192,Admin!$D$10:$D$83,0),2),Q192) -> Ekonomisk trygghet vid ålderdom | U192: =INDEX(Befolkning!$F$10:$F$50,MATCH(BudgetData!$P192*1,Befolkning!$B$10:$B$50,0),1) -> 10457147 | V192: 119.7458542 | W192: 9.978821183
A193: Utgifter2022 | B193: Utgift | E193: 5 Inkomstpensionstillägg | F193: 6121000 | G193: 5 Inkomstpensionstillägg | H193: 11 | J193: 5 | K193: 5 | M193: FALSE | N193: =IF(M193=TRUE,FALSE, IF(COUNTIFS($R$10:R193,R193,$H$10:H193,H193,$P$10:P193,P193)=1,TRUE, IF(COUNTIFS(H:H,H193,I:I,">0",P:P,P193)=0,TRUE,FALSE))) -> FALSE | O193: TRUE | P193: 2022 | Q193: Ekonomisk trygghet vid ålderdom | R193: Ersättning vid ålderdom | S193: Inkomstpensionstillägg | T193: =IFERROR(INDEX(Admin!$D$10:$E$100,MATCH(Q193,Admin!$D$10:$D$83,0),2),Q193) -> Ekonomisk trygghet vid ålderdom | U193: =INDEX(Befolkning!$F$10:$F$50,MATCH(BudgetData!$P193*1,Befolkning!$B$10:$B$50,0),1) -> 10457147 | V193: 585.3412982 | W193: 48.77844151
A194: Utgifter2022 | B194: Utgift | E194: 2 Myndigheter | F194: 700228 | G194: 2 Myndigheter | H194: 11 | I194: 2 | K194: 2 | L194: Sum | M194: FALSE | N194: =IF(M194=TRUE,FALSE, IF(COUNTIFS($R$10:R194,R194,$H$10:H194,H194,$P$10:P194,P194)=1,TRUE, IF(COUNTIFS(H:H,H194,I:I,">0",P:P,P194)=0,TRUE,FALSE))) -> TRUE | O194: FALSE | P194: 2022 | Q194: Ekonomisk trygghet vid ålderdom | R194: Myndigheter | T194: =IFERROR(INDEX(Admin!$D$10:$E$100,MATCH(Q194,Admin!$D$10:$D$83,0),2),Q194) -> Ekonomisk trygghet vid ålderdom | U194: =INDEX(Befolkning!$F$10:$F$50,MATCH(BudgetData!$P194*1,Befolkning!$B$10:$B$50,0),1) -> 10457147 | V194: 66.96166746 | W194: 5.580138955
A195: Utgifter2022 | B195: Utgift | E195: 1 Pensionsmyndigheten | F195: 700228 | G195: 1 Pensionsmyndigheten | H195: 11 | J195: 1 | K195: 1 | M195: FALSE | N195: =IF(M195=TRUE,FALSE, IF(COUNTIFS($R$10:R195,R195,$H$10:H195,H195,$P$10:P195,P195)=1,TRUE, IF(COUNTIFS(H:H,H195,I:I,">0",P:P,P195)=0,TRUE,FALSE))) -> FALSE | O195: TRUE | P195: 2022 | Q195: Ekonomisk trygghet vid ålderdom | R195: Myndigheter | S195: Pensionsmyndigheten | T195: =IFERROR(INDEX(Admin!$D$10:$E$100,MATCH(Q195,Admin!$D$10:$D$83,0),2),Q195) -> Ekonomisk trygghet vid ålderdom | U195: =INDEX(Befolkning!$F$10:$F$50,MATCH(BudgetData!$P195*1,Befolkning!$B$10:$B$50,0),1) -> 10457147 | V195: 66.96166746 | W195: 5.580138955
A196: Utgifter2022 | B196: Utgift | D196: 12 | E196: 12 Ekonomisk trygghet för familjer och barn | F196: 103040770 | G196: 12 Ekonomisk trygghet för familjer och barn | H196: 12 | K196: 12 | L196: Sum | M196: TRUE | N196: =IF(M196=TRUE,FALSE, IF(COUNTIFS($R$10:R196,R196,$H$10:H196,H196,$P$10:P196,P196)=1,TRUE, IF(COUNTIFS(H:H,H196,I:I,">0",P:P,P196)=0,TRUE,FALSE))) -> FALSE | O196: FALSE | P196: 2022 | Q196: Ekonomisk trygghet för familjer och barn | T196: =IFERROR(INDEX(Admin!$D$10:$E$100,MATCH(Q196,Admin!$D$10:$D$83,0),2),Q196) -> Ekonomisk trygghet för familjer och barn | U196: =INDEX(Befolkning!$F$10:$F$50,MATCH(BudgetData!$P196*1,Befolkning!$B$10:$B$50,0),1) -> 10457147 | V196: 9853.621643 | W196: 821.1351369
A197: Utgifter2022 | B197: Utgift | E197: 1 Barnbidrag | F197: 33426477 | G197: 1 Barnbidrag | H197: 12 | J197: 1 | K197: 1 | M197: FALSE | N197: =IF(M197=TRUE,FALSE, IF(COUNTIFS($R$10:R197,R197,$H$10:H197,H197,$P$10:P197,P197)=1,TRUE, IF(COUNTIFS(H:H,H197,I:I,">0",P:P,P197)=0,TRUE,FALSE))) -> TRUE | O197: TRUE | P197: 2022 | Q197: Ekonomisk trygghet för familjer och barn | R197: Ekonomisk trygghet för familjer och barn | S197: Barnbidrag | T197: =IFERROR(INDEX(Admin!$D$10:$E$100,MATCH(Q197,Admin!$D$10:$D$83,0),2),Q197) -> Ekonomisk trygghet för familjer och barn | U197: =INDEX(Befolkning!$F$10:$F$50,MATCH(BudgetData!$P197*1,Befolkning!$B$10:$B$50,0),1) -> 10457147 | V197: 3196.519758 | W197: 266.3766465
A198: Utgifter2022 | B198: Utgift | E198: 2 Föräldraförsäkring | F198: 48225247 | G198: 2 Föräldraförsäkring | H198: 12 | J198: 2 | K198: 2 | M198: FALSE | N198: =IF(M198=TRUE,FALSE, IF(COUNTIFS($R$10:R198,R198,$H$10:H198,H198,$P$10:P198,P198)=1,TRUE, IF(COUNTIFS(H:H,H198,I:I,">0",P:P,P198)=0,TRUE,FALSE))) -> TRUE | O198: TRUE | P198: 2022 | Q198: Ekonomisk trygghet för familjer och barn | R198: Ekonomisk trygghet för familjer och barn | S198: Föräldraförsäkring | T198: =IFERROR(INDEX(Admin!$D$10:$E$100,MATCH(Q198,Admin!$D$10:$D$83,0),2),Q198) -> Ekonomisk trygghet för familjer och barn | U198: =INDEX(Befolkning!$F$10:$F$50,MATCH(BudgetData!$P198*1,Befolkning!$B$10:$B$50,0),1) -> 10457147 | V198: 4611.702121 | W198: 384.3085101
A199: Utgifter2022 | B199: Utgift | E199: 3 Underhållsstöd | F199: 2838365 | G199: 3 Underhållsstöd | H199: 12 | J199: 3 | K199: 3 | M199: FALSE | N199: =IF(M199=TRUE,FALSE, IF(COUNTIFS($R$10:R199,R199,$H$10:H199,H199,$P$10:P199,P199)=1,TRUE, IF(COUNTIFS(H:H,H199,I:I,">0",P:P,P199)=0,TRUE,FALSE))) -> TRUE | O199: TRUE | P199: 2022 | Q199: Ekonomisk trygghet för familjer och barn | R199: Ekonomisk trygghet för familjer och barn | S199: Underhållsstöd | T199: =IFERROR(INDEX(Admin!$D$10:$E$100,MATCH(Q199,Admin!$D$10:$D$83,0),2),Q199) -> Ekonomisk trygghet för familjer och barn | U199: =INDEX(Befolkning!$F$10:$F$50,MATCH(BudgetData!$P199*1,Befolkning!$B$10:$B$50,0),1) -> 10457147 | V199: 271.4282395 | W199: 22.61901996
A200: Utgifter2022 | B200: Utgift | E200: 4 Adoptionsbidrag | F200: 14784 | G200: 4 Adoptionsbidrag | H200: 12 | J200: 4 | K200: 4 | M200: FALSE | N200: =IF(M200=TRUE,FALSE, IF(COUNTIFS($R$10:R200,R200,$H$10:H200,H200,$P$10:P200,P200)=1,TRUE, IF(COUNTIFS(H:H,H200,I:I,">0",P:P,P200)=0,TRUE,FALSE))) -> TRUE | O200: TRUE | P200: 2022 | Q200: Ekonomisk trygghet för familjer och barn | R200: Ekonomisk trygghet för familjer och barn | S200: Adoptionsbidrag | T200: =IFERROR(INDEX(Admin!$D$10:$E$100,MATCH(Q200,Admin!$D$10:$D$83,0),2),Q200) -> Ekonomisk trygghet för familjer och barn | U200: =INDEX(Befolkning!$F$10:$F$50,MATCH(BudgetData!$P200*1,Befolkning!$B$10:$B$50,0),1) -> 10457147 | V200: 1.413769932 | W200: 0.117814161
A201: Utgifter2022 | B201: Utgift | E201: 5 Barnpension och efterlevandestöd | F201: 1029900 | G201: 5 Barnpension och efterlevandestöd | H201: 12 | J201: 5 | K201: 5 | M201: FALSE | N201: =IF(M201=TRUE,FALSE, IF(COUNTIFS($R$10:R201,R201,$H$10:H201,H201,$P$10:P201,P201)=1,TRUE, IF(COUNTIFS(H:H,H201,I:I,">0",P:P,P201)=0,TRUE,FALSE))) -> TRUE | O201: TRUE | P201: 2022 | Q201: Ekonomisk trygghet för familjer och barn | R201: Ekonomisk trygghet för familjer och barn | S201: Barnpension och efterlevandestöd | T201: =IFERROR(INDEX(Admin!$D$10:$E$100,MATCH(Q201,Admin!$D$10:$D$83,0),2),Q201) -> Ekonomisk trygghet för familjer och barn | U201: =INDEX(Befolkning!$F$10:$F$50,MATCH(BudgetData!$P201*1,Befolkning!$B$10:$B$50,0),1) -> 10457147 | V201: 98.4876659 | W201: =V201/12 -> 8.207305492
A202: Utgifter2022 | B202: Utgift | E202: 6 Omvårdnadsbidrag och vårdbidrag | F202: 4752293 | G202: 6 Omvårdnadsbidrag och vårdbidrag | H202: 12 | J202: 6 | K202: 6 | M202: FALSE | N202: =IF(M202=TRUE,FALSE, IF(COUNTIFS($R$10:R202,R202,$H$10:H202,H202,$P$10:P202,P202)=1,TRUE, IF(COUNTIFS(H:H,H202,I:I,">0",P:P,P202)=0,TRUE,FALSE))) -> TRUE | O202: TRUE | P202: 2022 | Q202: Ekonomisk trygghet för familjer och barn | R202: Ekonomisk trygghet för familjer och barn | S202: Omvårdnadsbidrag och vårdbidrag | T202: =IFERROR(INDEX(Admin!$D$10:$E$100,MATCH(Q202,Admin!$D$10:$D$83,0),2),Q202) -> Ekonomisk trygghet för familjer och barn | U202: =INDEX(Befolkning!$F$10:$F$50,MATCH(BudgetData!$P202*1,Befolkning!$B$10:$B$50,0),1) -> 10457147 | V202: 454.4540686 | W202: 37.87117238
A203: Utgifter2022 | B203: Utgift | E203: 7 Pensionsrätt för barnår | F203: 8467300 | G203: =IF(B203="Utgift",E203,D203&" "&E203) -> 7 Pensionsrätt för barnår | H203: =IF(B203="Utgift",IF(D203="",H202,D203),IF(B203="Inkomst",IF(C203="",H202,C203),"")) -> 12 | I203: =IF(B203="Utgift",IF(D203<>"","", IF(IFERROR(LEFT(E204,FIND(" ",E204)-1)*1,"")=1, IFERROR(LEFT(E203,FIND(" ",E203)-1)*1,""),"")),IF(C203="","",C203)) ->  | J203: =IF(D203<>"","",IF(I203="",IFERROR(LEFT(E203,FIND(" ",E203)-1)*1,""),"")) -> 7 | K203: =IFERROR(LEFT(G203,FIND(" ",G203)-1)*1,"") -> 7 | L203: =IF(B203="Utgift",IF(OR(LEFT(E203,5)="Summa",K204=1),"Sum",""),IF(B203="Inkomst",IF(C203="","","Sum"))) ->  | M203: =IF(D203<>"",TRUE,FALSE) -> FALSE | N203: =IF(M203=TRUE,FALSE, IF(COUNTIFS($R$10:R203,R203,$H$10:H203,H203,$P$10:P203,P203)=1,TRUE, IF(COUNTIFS(H:H,H203,I:I,">0",P:P,P203)=0,TRUE,FALSE))) -> TRUE | O203: =+IF(J203="",FALSE,TRUE) -> TRUE | P203: 2022 | Q203: =IF(B203="Utgift",TRIM(IF(D203="",Q202,SUBSTITUTE(E203,D203&" ",""))),IF(C203="",Q204,IF(C203=ROUND(C203/1000,0)*1000,D203,Q204))) -> Ekonomisk trygghet för familjer och barn | R203: =IF(B203="Utgift",TRIM(IF(D203="",IF(L203="Sum",SUBSTITUTE(G203,I203&" ",""),IF(R202="",Q203,R202)),"")),IF(L203="Sum",D203,R202)) -> Ekonomisk trygghet för familjer och barn | S203: Pensionsrätt för barnår | T203: =IFERROR(INDEX(Admin!$D$10:$E$100,MATCH(Q203,Admin!$D$10:$D$83,0),2),Q203) -> Ekonomisk trygghet för familjer och barn | U203: =INDEX(Befolkning!$F$10:$F$50,MATCH(BudgetData!$P203*1,Befolkning!$B$10:$B$50,0),1) -> 10457147 | V203: =F203/(U203/1000) -> 809.7141601 | W203: 67.47618001
A204: Utgifter2022 | B204: Utgift | E204: 8 Bostadsbidrag | F204: 4286404 | G204: 8 Bostadsbidrag | H204: 12 | J204: 8 | K204: 8 | M204: FALSE | N204: =IF(M204=TRUE,FALSE, IF(COUNTIFS($R$10:R204,R204,$H$10:H204,H204,$P$10:P204,P204)=1,TRUE, IF(COUNTIFS(H:H,H204,I:I,">0",P:P,P204)=0,TRUE,FALSE))) -> TRUE | O204: TRUE | P204: 2022 | Q204: Ekonomisk trygghet för familjer och barn | R204: Ekonomisk trygghet för familjer och barn | S204: =+IF(K204="","",IF(L204="Sum","", IF(RIGHT(IF(MID(E204,2,1)=" ",RIGHT(E204,LEN(E204)-2),IF(MID(E204,3,1)=" ",RIGHT(E204,LEN(E204)-3),E204)),1)=" ", LEFT(IF(MID(E204,2,1)=" ",RIGHT(E204,LEN(E204)-2),IF(MID(E204,3,1)=" ",RIGHT(E204,LEN(E204)-3),E204)), LEN(IF(MID(E204,2,1)=" ",RIGHT(E204,LEN(E204)-2),IF(MID(E204,3,1)=" ",RIGHT(E204,LEN(E204)-3),E204)))-1), IF(MID(E204,2,1)=" ",RIGHT(E204,LEN(E204)-2),IF(MID(E204,3,1)=" ",RIGHT(E204,LEN(E204)-3),E204))) )) -> Bostadsbidrag | T204: =IFERROR(INDEX(Admin!$D$10:$E$100,MATCH(Q204,Admin!$D$10:$D$83,0),2),Q204) -> Ekonomisk trygghet för familjer och barn | U204: =INDEX(Befolkning!$F$10:$F$50,MATCH(BudgetData!$P204*1,Befolkning!$B$10:$B$50,0),1) -> 10457147 | V204: 409.9018595 | W204: 34.15848829
A205: Utgifter2022 | B205: Utgift | D205: 13 | E205: 13 Jämställdhet och nyanlända invandrares etablering | F205: 6319015 | G205: 13 Jämställdhet och nyanlända invandrares etablering | H205: 13 | K205: 13 | L205: Sum | M205: TRUE | N205: =IF(M205=TRUE,FALSE, IF(COUNTIFS($R$10:R205,R205,$H$10:H205,H205,$P$10:P205,P205)=1,TRUE, IF(COUNTIFS(H:H,H205,I:I,">0",P:P,P205)=0,TRUE,FALSE))) -> FALSE | O205: FALSE | P205: 2022 | Q205: Jämställdhet och nyanlända invandrares etablering | T205: =IFERROR(INDEX(Admin!$D$10:$E$100,MATCH(Q205,Admin!$D$10:$D$83,0),2),Q205) -> Integration och jämställdhet | U205: =INDEX(Befolkning!$F$10:$F$50,MATCH(BudgetData!$P205*1,Befolkning!$B$10:$B$50,0),1) -> 10457147 | V205: 604.2771513 | W205: 50.35642928
A206: Utgifter2022 | B206: Utgift | E206: 1 Nyanlända invandrares etablering | F206: 4825517 | G206: 1 Nyanlända invandrares etablering | H206: 13 | I206: 1 | K206: 1 | L206: Sum | M206: FALSE | N206: =IF(M206=TRUE,FALSE, IF(COUNTIFS($R$10:R206,R206,$H$10:H206,H206,$P$10:P206,P206)=1,TRUE, IF(COUNTIFS(H:H,H206,I:I,">0",P:P,P206)=0,TRUE,FALSE))) -> TRUE | O206: FALSE | P206: 2022 | Q206: Jämställdhet och nyanlända invandrares etablering | R206: Nyanlända invandrares etablering | T206: =IFERROR(INDEX(Admin!$D$10:$E$100,MATCH(Q206,Admin!$D$10:$D$83,0),2),Q206) -> Integration och jämställdhet | U206: =INDEX(Befolkning!$F$10:$F$50,MATCH(BudgetData!$P206*1,Befolkning!$B$10:$B$50,0),1) -> 10457147 | V206: 461.4563609 | W206: 38.45469674
... 3342 more rows

Sheet Befolkning
B10: År | C10: ÅrMånad | D10: Kön | E10: Befolkning | F10: Totalt
B11: =LEFT(C11,4)*1 -> 2014 | C11: 2014M01 | D11: män | E11: 4818212 | F11: =E11+E24 -> 9651531
B12: =LEFT(C12,4)*1 -> 2015 | C12: 2015M01 | D12: män | E12: 4875914 | F12: 9753627
B13: 2016 | C13: 2016M01 | D13: män | E13: 4935526 | F13: 9858794
B14: 2017 | C14: 2017M01 | D14: män | E14: 5019580 | F14: 10005673
B15: 2018 | C15: 2018M01 | D15: män | E15: 5087095 | F15: 10128320
B16: 2019 | C16: 2019M01 | D16: män | E16: 5147612 | F16: 10238627
B17: 2020 | C17: 2020M01 | D17: män | E17: 5199013 | F17: 10333456
B18: 2021 | C18: 2021M01 | D18: män | E18: 5223488 | F18: 10380491
B19: 2022 | C19: 2022M01 | D19: män | E19: 5263358 | F19: 10457147
B20: 2023 | C20: 2023M01 | D20: män | E20: 5299550 | F20: 10523709
B21: 2024 | C21: 2024M01 | D21: män | E21: 5311562 | F21: 10550054
B22: 2025 | C22: 2025M01 | D22: män | E22: 5324711 | F22: 10587977
B23: 2026 | C23: 2026M01 | D23: män | E23: 5324711 | F23: =E23+E36 -> 10587977
B24: 2014 | C24: 2014M01 | D24: kvinnor | E24: 4833319
B25: 2015 | C25: 2015M01 | D25: kvinnor | E25: 4877713
B26: 2016 | C26: 2016M01 | D26: kvinnor | E26: 4923268
B27: 2017 | C27: 2017M01 | D27: kvinnor | E27: 4986093
B28: 2018 | C28: 2018M01 | D28: kvinnor | E28: 5041225
B29: 2019 | C29: 2019M01 | D29: kvinnor | E29: 5091015
B30: 2020 | C30: 2020M01 | D30: kvinnor | E30: 5134443
B31: 2021 | C31: 2021M01 | D31: kvinnor | E31: 5157003
B32: 2022 | C32: 2022M01 | D32: kvinnor | E32: 5193789
B33: 2023 | C33: 2023M01 | D33: kvinnor | E33: 5224159
B34: 2024 | C34: 2024M01 | D34: kvinnor | E34: 5238492
B35: 2025 | C35: 2025M01 | D35: kvinnor | E35: 5263266
B36: 2026 | C36: 2026M01 | D36: kvinnor | E36: 5263266

Sheet Admin
D10: In | E10: Ut | F10: 2022 | G10: 2023 | H10: 2024 | I10: 2025 | J10: 2026
D11: Allmänna bidrag till kommuner | E11: Allmänna bidrag till kommuner | F11: 1218.187732 | G11: 1259.959685 | H11: 1393.796145 | I11: 1384.415019 | J11: 1445.324328
D12: Försvar och samhällets krisberedskap | E12: Försvar och samhällets krisberedskap | F12: 612.0105486 | G12: 751.3829974 | H12: 1008.154902 | I12: 1357.008509 | J12: 1799.604007
D13: Hälsovård, sjukvård och social omsorg | E13: Hälsovård, sjukvård och social omsorg | F13: 899.5810381 | G13: 883.1552463 | H13: 881.7839411 | I13: 961.731222 | J13: 1021.331582
D14: Ekonomisk trygghet vid sjukdom och funktionsnedsättning | E14: Ekonomisk trygghet vid sjukdom och funktionsnedsättning | F14: 781.5215691 | G14: 851.1460653 | H14: 934.9584773 | I14: 984.1564859 | J14: 975.6413628
D15: Ekonomisk trygghet för familjer och barn | E15: Ekonomisk trygghet för familjer och barn | F15: 824.06246 | G15: 841.0075496 | H15: 848.2944018 | I15: 835.9840771 | J15: 833.5598928
D16: Utbildning och universitetsforskning | E16: Utbildning och universitetsforskning | F16: 755.993642 | G16: 759.6926663 | H16: 795.4338372 | I16: 830.4953695 | J16: 855.2198976
D17: Arbetsmarknad och arbetsliv | E17: Arbetsmarknad och arbetsliv | F17: 751.9651791 | G17: 720.5988964 | H17: 736.2395953 | I17: 748.0758077 | J17: 729.0679143
D18: Kommunikationer | E18: Kommunikationer | F18: 615.5194498 | G18: 631.4172825 | H18: 662.7877479 | I18: 755.3377479 | J18: 853.3650992
D19: Rättsväsendet | E19: Rättsväsendet | F19: 493.3540147 | G19: 546.272025 | H19: 608.0295345 | I19: 694.1113164 | J19: 757.709373
D20: Ekonomisk trygghet vid ålderdom | E20: Ekonomisk trygghet vid ålderdom | F20: 334.1820857 | G20: 443.0113244 | H20: 482.3295186 | I20: 502.9619322 | J20: 474.4225128
D21: Avgiften till Europeiska unionen | E21: Avgiften till Europeiska unionen | F21: 382.5723608 | G21: 366.8414267 | H21: 325.9741603 | I21: 381.9730566 | J21: 433.4601008
D22: Internationellt bistånd | E22: Internationellt bistånd | F22: 415.3851727 | G22: 377.5290067 | H22: 388.9165787 | I22: 355.8848688 | J22: 349.1117402
D23: Studiestöd | E23: Studiestöd | F23: 222.340731 | G23: 223.2277271 | H23: 244.2831894 | I23: 270.2612444 | J23: 286.2091651
D24: Rikets styrelse | E24: Rikets styrelse | F24: 138.1025112 | G24: 292.2265515 | H24: 152.5140995 | I24: 160.9963292 | J24: 172.859277
D25: Areella näringar, landsbygd och livsmedel | E25: Areella näringar, landsbygd och livsmedel | F25: 176.3016155 | G25: 154.9372361 | H25: 191.7240963 | I25: 173.5269034 | J25: 180.4754798
D26: Samhällsekonomi och finansförvaltning | E26: Samhällsekonomi och finansförvaltning | F26: 143.7234725 | G26: 152.1225128 | H26: 166.9950256 | I26: 173.8170026 | J26: 176.253207
D27: Statsskuldsräntor m.m. | E27: Statsskuldsräntor m.m. | F27: 97.21049264 | G27: 105.2079335 | H27: 163.5892514 | I27: 229.9680102 | J27: 215.5726168
D28: Kultur, medier, trossamfund och fritid | E28: Kultur, medier, trossamfund och fritid | F28: 147.5895154 | G28: 133.3009277 | H28: 133.1276791 | I28: 134.8519994 | J28: 138.653263
D29: Skatt, tull och exekution | E29: Skatt, tull och exekution | F29: 101.8052943 | G29: 103.353255 | H29: 134.7917226 | I29: 118.4612764 | J29: 124.0554862
D30: Migration | E30: Migration | F30: 67.62927063 | G30: 128.1169626 | H30: 110.4308541 | I30: 95.46970569 | J30: 108.1602687
D31: Allmän miljö- och naturvård | E31: Klimat, miljö och natur | F31: 174.7567179 | G31: 156.2915147 | H31: 154.409461
D32: Näringsliv | E32: Näringsliv | F32: 74.73529271 | G32: 91.23298944 | H32: 76.39399392 | I32: 66.50110365 | J32: 71.61800224
D33: Klimat, miljö och natur | E33: Klimat, miljö och natur | I33: 131.4691059 | J33: 156.9525032
D34: Energi | E34: Energi | F34: 35.62799104 | G34: 39.54613724 | H34: 44.82021753 | I34: 53.03340531 | J34: 63.49820058
D35: Samhällsplanering, bostadsförsörjning och byggande samt konsumentpolitik | E35: Samhällsplanering, bostadsförsörjning och byggande samt konsumentpolitik | F35: 56.1846929 | G35: 48.77765515 | H35: 48.6396833 | I35: 25.91246001 | J35: 14.19648113
D36: Regional utveckling | E36: Regional utveckling | F36: 41.92099328 | G36: 36.26200416 | H36: 31.36757038 | I36: 34.34261836 | J36: 38.98113404
D37: Jämställdhet och nyanlända invandrares etablering | E37: Integration och jämställdhet | F37: 50.5359485 | G37: 44.50740563 | H37: 32.13682022
D38: Integration och jämställdhet | E38: Integration och jämställdhet | I38: 50.11010077 | J38: 46.91479527
D39: Internationell samverkan | E39: Internationell samverkan | F39: 17.87521593 | G39: 16.75199136 | H39: 18.18557262 | I39: 18.22113724 | J39: 20.37268874

Sheet FörsvarsanslagOut
C3: År | D3: MedborgarKronorMånad
B4: Försvar och samhällets krisberedskap | C4: 2022 | D4: 609.8364991
B5: Försvar och samhällets krisberedskap | C5: 2023 | D5: 743.9782717
B6: Försvar och samhällets krisberedskap | C6: 2024 | D6: 995.727044
B7: Försvar och samhällets krisberedskap | C7: 2025 | D7: 1335.47973
B8: Försvar och samhällets krisberedskap | C8: 2026 | D8: 1771.053502
B63: Text.
B64: Hur mycket lägger vi på försvaret?
B65: 225 Miljarder. Men det säger inte så mycket? Hur mycket lägger vi som snittmedborgare per månad? 1 771 SEK. Så mycket lägger vi idag. Det är en ökning från 610 SEK för fem år sedan.
B66: Jag säger verkligen inte att det är pengar som är bortkastade eller inte borde spenderas så, vi har ändå ett fientligt sinnat land i öst som har långtgågna planer på ett storkrig som kommer involvera Sverige. Det är dock en uppoffring vi gör.
B68: Hur har vi räknat ut detta? Vi har tagit hela försvarsanslaget, delat på befolkningen för respektive år för januari, och delat den på 12. Så vi inkluderar även grupper som inte betalar skatt I vår definition av befolkning.

Sheet Försvarsanslag
C3: År | D3: MedborgarKronorMånad
B4: Försvar och samhällets krisberedskap | C4: 2022 | D4: 609.8364991
B5: Försvar och samhällets krisberedskap | C5: 2023 | D5: 743.9782717
B6: Försvar och samhällets krisberedskap | C6: 2024 | D6: 995.727044
B7: Försvar och samhällets krisberedskap | C7: 2025 | D7: 1335.47973
B8: Försvar och samhällets krisberedskap | C8: 2026 | D8: 1771.053502
B63: Text.
B64: Hur mycket lägger vi på försvaret?
B65: 225 Miljarder. Men det säger inte så mycket? Hur mycket lägger vi som snittmedborgare per månad? 1 771 SEK. Så mycket lägger vi idag. Det är en ökning från 610 SEK för fem år sedan.
B66: Jag säger verkligen inte att det är pengar som är bortkastade eller inte borde spenderas så, vi har ändå ett fientligt sinnat land i öst som har långtgågna planer på ett storkrig som kommer involvera Sverige. Det är dock en uppoffring vi gör.
B68: Hur har vi räknat ut detta? Vi har tagit hela försvarsanslaget, delat på befolkningen för respektive år för januari, och delat den på 12. Så vi inkluderar även grupper som inte betalar skatt I vår definition av befolkning.

Sheet Inkomster2022 (hidden)
C1: Tusentals kronor
B3: Skatt på arbete | C3: =SUM(C5,C31) -> 1356049890
A5: 1100 | B5: Direkta skatter på arbete | C5: 699968626
A7: 1110 | B7: Inkomstskatter | C7: 883829564
A8: 1111 | B8: Statlig inkomstskatt | C8: 54707724
A9: 1115 | B9: Kommunal inkomstskatt | C9: 829121840
A11: 1120 | B11: Allmän pensionsavgift | C11: 142000175
A12: 1121 | B12: Allmän pensionsavgift | C12: 142000175
A14: 1130 | B14: Artistskatt | C14: 0
A15: 1131 | B15: Artistskatt | C15: 0
A17: 1140-1160 | B17: Skattereduktioner | C17: -325861113
A18: 1141 | B18: Allmän pensionsavgift | C18: -141969545
A19: 1144 | B19: Fastighetsavgift | C19: -388746
A20: 1151 | B20: Sjöinkomst | C20: -50735
A21: 1153 | B21: Jobbskatteavdrag | C21: -136055728
A22: 1154 | B22: Hus-avdrag | C22: -19562983
A23: 1155 | B23: Gåvor till ideell verksamhet | C23: -100000
A24: 1156 | B24: Övriga skattereduktioner | C24: -5078336
A25: 1157 | B25: Grön skattereduktion | C25: -1340887
A26: 1158 | B26: Skattereduktion sjuk- och aktivitetsersättning | C26: -3044027
A27: 1159 | B27: Skattereduktion för förnybar el | C27: -100346
A28: 1161 | B28: Skattereduktion för installation av grön teknik | C28: -198000
A29: 1162 | B29: Skattereduktion för förvärvsinkomst | C29: -17971780
A31: 1200 | B31: Indirekta skatter på arbete | C31: 656081264
A33: 1210 | B33: Arbetsgivaravgifter | C33: 650550006
A34: 1211 | B34: Sjukförsäkringsavgift | C34: 70291091
A35: 1212 | B35: Föräldraförsäkringsavgift | C35: 51480799
A36: 1213 | B36: Arbetsskadeavgift | C36: 3960061
A37: 1214 | B37: Ålderspensionsavgift | C37: 214450401
A38: 1215 | B38: Efterlevandepensionsavgift | C38: 11880184
A39: 1216 | B39: Arbetsmarknadsavgift | C39: 51662374
A40: 1217 | B40: Allmän löneavgift | C40: 230079571
A41: 1218 | B41: Ofördelade avgifter | C41: 0
A42: 1219 | B42: Nedsatta avgifter | C42: 16745525
A44: 1240 | B44: Egenavgifter | C44: 13916853
A45: 1241 | B45: Sjukförsäkringsavgift | C45: 541849
A46: 1242 | B46: Föräldraförsäkringsavgift | C46: 912726
A47: 1243 | B47: Arbetsskadeavgift | C47: 84482
A48: 1244 | B48: Ålderspensionsavgift, netto | C48: 5096042
A49: 1245 | B49: Efterlevandepensionsavgift | C49: 253685
A50: 1246 | B50: Arbetsmarknadsavgift | C50: 42177
A51: 1247 | B51: Allmän löneavgift | C51: 4783011
A52: 1248 | B52: Ofördelade avgifter | C52: 0
A53: 1249 | B53: Nedsatta avgifter | C53: 2202881
A55: 1260 | B55: Avgifter till premiepensionssystemet | C55: -44607084
A56: 1261 | B56: Avgifter till premiepensionssystemet | C56: -44607084
A58: 1270 | B58: Särskild löneskatt | C58: 54580049
A59: 1271 | B59: Pensionskostnader, företag | C59: 48608687
A60: 1272 | B60: Pensionskostnader, staten | C60: 4642011
A61: 1273 | B61: Förvärvsinkomster | C61: 589782
A62: 1274 | B62: Egenföretagare | C62: 739569
A63: 1275 | B63: Övrigt | C63: 0
A65: 1280 | B65: Nedsättningar | C65: -18948405
A66: 1282 | B66: Arbetsgivaravgifter | C66: -16745525
A67: 1283 | B67: Egenavgifter, generell nedsättning | C67: -2128525
A68: 1284 | B68: Egenavgifter, regional nedsättning | C68: -74355
A70: 1290 | B70: Tjänstegruppliv | C70: 589845
A71: 1291 | B71: Tjänstegruppliv | C71: 589845
A73: 1300 | B73: Skatt på kapital | C73: 316724321
A75: 1310 | B75: Skatt på kapital, hushåll | C75: 86042613
A76: 1311 | B76: Skatt på kapital | C76: 110804941
A77: 1312 | B77: Skattereduktion kapital | C77: -24774345
A78: 1313 | B78: Expansionsmedelsskatt | C78: 12017
A80: 1320 | B80: Skatt på företagsvinster | C80: 166837235
A81: 1321 | B81: Skatt på företagsvinster | C81: 168239369
A82: 1322 | B82: Skattereduktioner | C82: -1402134
A84: 1330 | B84: Kupongskatt | C84: 5759753
A85: 1331 | B85: Kupongskatt | C85: 5759753
A87: 1340 | B87: Avkastningsskatt | C87: 7423010
A88: 1341 | B88: Avkastningsskatt hushåll | C88: 176531
A89: 1342 | B89: Avkastningsskatt företag | C89: 7145780
A90: 1343 | B90: Avkastningsskatt på individuellt pensionssparande | C90: 100699
A92: 1350 | B92: Fastighetskatt | C92: 35927402
A93: 1351 | B93: Fastighetsskatt hushåll | C93: 786868
A94: 1352 | B94: Fastighetsskatt företag | C94: 14213842
A95: 1353 | B95: Kommunal fastighetsavgift hushåll | C95: 16652538
A96: 1354 | B96: Kommunal fastighetsavgift företag | C96: 4274154
A98: 1360 | B98: Stämpelskatt | C98: 14734308
A99: 1361 | B99: Stämpelskatt | C99: 14734308
A101: 1400 | B101: Skatt på konsumtion och insatsvaror | C101: 671957954
A103: 1410 | B103: Mervärdesskatt, hushåll | C103: 526816803
A104: 1411 | B104: Mervärdesskatt | C104: 526816803
A106: 1420 | B106: Skatt på alkohol och tobak | C106: 28519640
A107: 1421 | B107: Skatt på tobak | C107: 11992724
A108: 1422 | B108: Skatt på etylalkohol | C108: 5289614
A109: 1423 | B109: Skatt på vin | C109: 6471140
A110: 1424 | B110: Skatt på mellanklassprodukter | C110: 143194
A111: 1425 | B111: Skatt på öl | C111: 4432699
A112: 1426 | B112: Privatinförsel av alkohol och tobak | C112: 6362
A113: 1427 | B113: Skatt på vissa nikotinhaltiga produkter | C113: 183907
A115: 1430 | B115: Energiskatt | C115: 56482051
A116: 1431 | B116: Skatt på elektrisk kraft | C116: 28969092
A117: 1432 | B117: Energiskatt bensin | C117: 12145581
A118: 1433 | B118: Energiskatt oljeprodukter | C118: 14699526
A119: 1434 | B119: Energiskatt övrigt | C119: 667852
A121: 1440 | B121: Koldioxidskatt | C121: 21954815
A122: 1441 | B122: Koldioxidskatt bensin | C122: 7881952
A123: 1442 | B123: Koldioxidskatt oljeprodukter | C123: 13913270
A124: 1443 | B124: Koldioxidskatt övrigt | C124: 159593
A126: 1450-1460 | B126: Övriga skatter på energi och miljö | C126: 7223481
A127: 1451 | B127: Svavelskatt | C127: 9810
A128: 1452 | B128: Skatt på råtallolja | C128: 0
A129: 1453 | B129: Särskild skatt mot försurning | C129: 63163
A130: 1454 | B130: Skatt på bekämpningsmedel | C130: 142739
A131: 1456 | B131: Avfallsskatt | C131: 202452
A132: 1457 | B132: Avgifter till Kemikalieinspektionen | C132: 51617
A133: 1458 | B133: Övriga skatter | C133: 179247
A134: 1459 | B134: Intäkter från EU:s handel med utsläppsrätter | C134: 2676266
A135: 1461 | B135: Kemikalieskatt | C135: 1683010
A136: 1462 | B136: Flygskatt | C136: 699177
A137: 1463 | B137: Skatt på avfallsförbränning | C137: 450000
A138: 1464 | B138: Skatt på plastbärkassar | C138: 400000
A139: 1465 | B139: Elcertifikat | C139: 666000
A141: 1470 | B141: Skatt på vägtrafik | C141: 23400368
A142: 1471 | B142: Fordonsskatt | C142: 16102315
A143: 1472 | B143: Vägavgifter | C143: 1309830
A144: 1473 | B144: Trängselskatt | C144: 3110000
A145: 1474 | B145: Skatt på trafikförsäkringspremier | C145: 2878223
A147: 1480 | B147: Övriga skatter | C147: 7560796
A148: 1481 | B148: Systembolaget AB:s överskott | C148: 252815
A149: 1482 | B149: Inlevererat överskott från Svenska Spel AB | C149: 2889000
A150: 1483 | B150: Skatt på spel | C150: 4261981
A151: 1485 | B151: Spelavgifter | C151: 57000
A152: 1486 | B152: Skatt på annonser och reklam | C152: 0
A153: 1491 | B153: Avgifter för telekommunikation | C153: 100000
A155: 1500 | B155: Skatt på import | C155: 6990812
A157: 1510 | B157: Skatt på import | C157: 6990812
A158: 1511 | B158: Tullmedel | C158: 6990812
A159: 1512 | B159: Sockeravgifter | C159: 0
A161: 1600 | B161: Restförda och övriga skatter | C161: 14227748
A163: 1610 | B163: Restförda skatter | C163: -5955961
A164: 1611 | B164: Restförda skatter, hushåll | C164: -843568
A165: 1612 | B165: Restförda skatter, företag | C165: -5112393
A167: 1620 | B167: Övriga skatter hushåll | C167: 5084756
A168: 1621 | B168: Omprövningar aktuellt taxeringsår | C168: -469687
A169: 1622 | B169: Omprövningar äldre taxeringsår | C169: 613040
A170: 1623 | B170: Anstånd | C170: 500000
A171: 1624 | B171: Övriga skatter | C171: 4142863
A172: 1625 | B172: Skattetillägg | C172: 150663
A173: 1626 | B173: Förseningsavgifter | C173: 147877
A175: 1630 | B175: Övriga skatter företag | C175: -467678
A176: 1631 | B176: Omprövningar aktuellt taxeringsår | C176: -1579138
A177: 1632 | B177: Omprövningar äldre taxeringsår | C177: 0
A178: 1633 | B178: Anstånd | C178: -500000
A179: 1634 | B179: Övriga skatter | C179: -10000
A180: 1635 | B180: Skattetillägg | C180: 1149337
A181: 1636 | B181: Förseningsavgifter | C181: 472123
A183: 1640 | B183: Intäkter som förs till fonder | C183: 6042111
A184: 1641 | B184: Insättningsgarantiavgifter | C184: 1807916
A185: 1644 | B185: Batteriavgifter | C185: 1335
A186: 1645 | B186: Kväveoxidavgifter | C186: 603860
A187: 1647 | B187: Resolutionsavgifter | C187: 3629000
A189: 1650 | B189: Avgifter till public service | C189: 9524520
A190: 1651 | B190: Avgifter till public service | C190: 9524520
A192: Totala skatteintäkter | C192: 2365950725
A195: 1700 | B195: Avgående poster, skatter till EU | C195: -6990812
A197: 1710 | B197: EU-skatter | C197: -6990812
A198: 1711 | B198: EU-skatter | C198: -6990812
A200: Offentliga sektorns skatteintäkter (periodiserat) | C200: 2358959913
A203: 1800 | B203: Avgående poster, skatter till andra sektorer | C203: -1142287113
A205: 1810 | B205: Skatter till andra sektorer | C205: -1142287113
A206: 1811 | B206: Kommunala skatter | C206: -849628700
A207: 1812 | B207: Avgifter till AP-fonder | C207: -292658413
A209: Statens skatteintäkter (periodiserat) | C209: 1216672800
A212: 1900 | B212: Periodiseringar | C212: 5124024
A214: 1910 | B214: Uppbördförskjutningar | C214: -8120005
A215: 1911 | B215: Uppbördsförskjutningar | C215: -8120005
A217: 1920 | B217: Betalningsförskjutningar | C217: -55971
A218: 1921 | B218: Kommuner och regioner | C218: 10027844
A219: 1922 | B219: Ålderpensionssystemet | C219: -1924274
A220: 1923 | B220: Företag och hushåll | C220: -8098960
A221: 1924 | B221: Kyrkosamfund | C221: -101135
A222: 1925 | B222: EU | C222: 40554
A224: 1930 | B224: Anstånd | C224: 13300000
A225: 1931 | B225: Anstånd | C225: 13300000
A227: 1000 | B227: Statens skatteinkomster (kassamässigt) | C227: 1221796824
B230: Övriga inkomster (kassamässigt) | C230: -30802590
A233: 2100 | B233: Rörelseöverskott | C233: 2854315
A235: 2110 | B235: Affärsverkens inlevererade överskott | C235: 363000
A236: 2114 | B236: Luftfartsverkets inlevererade överskott | C236: 0
A237: 2116 | B237: Affärsverket Svenska Kraftnäts inlevererade utdelning och inleverans av motsvari | C237: 363000
A238: 2118 | B238: Sjöfartsverkets inlevererade överskott | C238: 0
A240: 2120 | B240: Övriga myndigheters inlevererade överskott | C240: 491315
A241: 2124 | B241: Inlevererat överskott av Riksgäldskontorets garantiverksamhet | C241: 85519
A242: 2126 | B242: Inlevererat överskott av statsstödd exportkredit | C242: 0
A243: 2127 | B243: Inlevererat överskott från övriga myndigheter | C243: 405796
A245: 2130 | B245: Riksbankens inlevererade överskott | C245: 2000000
A246: 2131 | B246: Riksbankens inlevererade överskott | C246: 2000000
A248: 2200 | B248: Överskott av statens fastighetsförvaltning | C248: 501000
A250: 2210 | B250: Överskott av fastighetsförvaltning | C250: 501000
A251: 2215 | B251: Inlevererat överskott av statens fastighetsförvaltning | C251: 501000
A253: 2300 | B253: Ränteinkomster | C253: 2056380
A255: 2320 | B255: Räntor på näringslån | C255: 0
A256: 2314 | B256: Ränteinkomster på lån till fiskerinäringen | C256: 0
A257: 2322 | B257: Räntor på övriga näringslån | C257: 0
A258: 2323 | B258: Räntor på övriga näringslån | C258: 0
A259: 2324 | B259: Ränteinkomster på lokaliseringslån | C259: 0
A261: 2340 | B261: Räntor på studielån | C261: 21000
A262: 2342 | B262: Ränteinkomster på allmänna studielån | C262: 21000
A264: 2390 | B264: Övriga ränteinkomster | C264: 2035380
... 125 more rows
